Department ,Entity,Date of Payment,Expense Type,Expense Area,Supplier,Transaction Number,Amount,,
UNITED KINGDOM ATOMIC ENERGY AUTHORITY,UNITED KINGDOM ATOMIC ENERGY AUTHORITY,30/01/2013,HIRED STAFF,FUSION,TRASYS,5100284576,4826.7,,
UNITED KINGDOM ATOMIC ENERGY AUTHORITY,UNITED KINGDOM ATOMIC ENERGY AUTHORITY,30/01/2013,HIRED STAFF,FUSION,TRASYS,5100284578,-6033.38,,
UNITED KINGDOM ATOMIC ENERGY AUTHORITY,UNITED KINGDOM ATOMIC ENERGY AUTHORITY,30/01/2013,HIRED STAFF,FUSION,TRASYS,5100284579,7952.63,,
UNITED KINGDOM ATOMIC ENERGY AUTHORITY,UNITED KINGDOM ATOMIC ENERGY AUTHORITY,30/01/2013,HIRED STAFF,FUSION,TRASYS,5100284580,6012.6,,
UNITED KINGDOM ATOMIC ENERGY AUTHORITY,UNITED KINGDOM ATOMIC ENERGY AUTHORITY,30/01/2013,HIRED STAFF,FUSION,TRASYS,5100284581,6033.38,,
UNITED KINGDOM ATOMIC ENERGY AUTHORITY,UNITED KINGDOM ATOMIC ENERGY AUTHORITY,30/01/2013,HIRED STAFF,FUSION,TRASYS,5100284582,5023.13,,
UNITED KINGDOM ATOMIC ENERGY AUTHORITY,UNITED KINGDOM ATOMIC ENERGY AUTHORITY,06/02/2013,EFDA SECONDEE CONTRACT,FUSION,AUSTRIAN ACADEMY OF SCIENCES,5100284608,13806.16,,
UNITED KINGDOM ATOMIC ENERGY AUTHORITY,UNITED KINGDOM ATOMIC ENERGY AUTHORITY,06/02/2013,EFDA SECONDEE CONTRACT,FUSION,FORSCHUNGSZENTRUM JULICH,5100284609,31659.32,,
UNITED KINGDOM ATOMIC ENERGY AUTHORITY,UNITED KINGDOM ATOMIC ENERGY AUTHORITY,30/01/2013,EFDA SECONDEE CONTRACT,FUSION,UPPSALA UNIVERSITY,5100284707,6919.65,,
UNITED KINGDOM ATOMIC ENERGY AUTHORITY,UNITED KINGDOM ATOMIC ENERGY AUTHORITY,28/01/2013,HIRED STAFF,FUSION,RULLION ENGINEERING PERSONNEL LTD,5100284741,683108.83,,
UNITED KINGDOM ATOMIC ENERGY AUTHORITY,UNITED KINGDOM ATOMIC ENERGY AUTHORITY,20/02/2013,EFDA SECONDEE CONTRACT,FUSION,TECHNICAL RESEARCH CENTRE,5100284860,23021.31,,
UNITED KINGDOM ATOMIC ENERGY AUTHORITY,UNITED KINGDOM ATOMIC ENERGY AUTHORITY,20/02/2013,EFDA SECONDEE CONTRACT,FUSION,CNR CONSIGLIO NAZIONALE DELLE RICER,5100284910,15803.62,,
UNITED KINGDOM ATOMIC ENERGY AUTHORITY,UNITED KINGDOM ATOMIC ENERGY AUTHORITY,11/02/2013,TRAVEL,SUPPORT SERVICES,CAPITA BUSINESS TRAVEL,5100285104,31801.28,,
UNITED KINGDOM ATOMIC ENERGY AUTHORITY,UNITED KINGDOM ATOMIC ENERGY AUTHORITY,13/02/2013,PROFESSIONAL SERVICES,FUSION,OXFORD TECHNOLOGIES LTD (CB),5100285176,4150.78,,
UNITED KINGDOM ATOMIC ENERGY AUTHORITY,UNITED KINGDOM ATOMIC ENERGY AUTHORITY,13/02/2013,PROFESSIONAL SERVICES,FUSION,OXFORD TECHNOLOGIES LTD (CB),5100285177,4954.02,,
UNITED KINGDOM ATOMIC ENERGY AUTHORITY,UNITED KINGDOM ATOMIC ENERGY AUTHORITY,13/02/2013,PROFESSIONAL SERVICES,FUSION,OXFORD TECHNOLOGIES LTD,5100285178,108.34,,
UNITED KINGDOM ATOMIC ENERGY AUTHORITY,UNITED KINGDOM ATOMIC ENERGY AUTHORITY,13/02/2013,PROFESSIONAL SERVICES,FUSION,OXFORD TECHNOLOGIES LTD,5100285179,487.53,,
UNITED KINGDOM ATOMIC ENERGY AUTHORITY,UNITED KINGDOM ATOMIC ENERGY AUTHORITY,13/02/2013,HIRED STAFF,FUSION,TESSELLA PLC,5100285203,4732.56,,
UNITED KINGDOM ATOMIC ENERGY AUTHORITY,UNITED KINGDOM ATOMIC ENERGY AUTHORITY,13/02/2013,HIRED STAFF,FUSION,TESSELLA PLC,5100285204,8207.31,,
UNITED KINGDOM ATOMIC ENERGY AUTHORITY,UNITED KINGDOM ATOMIC ENERGY AUTHORITY,13/02/2013,HIRED STAFF,FUSION,TESSELLA PLC,5100285205,7820.51,,
UNITED KINGDOM ATOMIC ENERGY AUTHORITY,UNITED KINGDOM ATOMIC ENERGY AUTHORITY,18/02/2013,HIRED STAFF,FUSION,GENTLE ASSOCIATES LTD,5100285481,3640.35,,
UNITED KINGDOM ATOMIC ENERGY AUTHORITY,UNITED KINGDOM ATOMIC ENERGY AUTHORITY,20/02/2013,HIRED STAFF,FUSION,BLACK DIAMOND UMBRELLA LTD,5100285661,3986.55,,
UNITED KINGDOM ATOMIC ENERGY AUTHORITY,UNITED KINGDOM ATOMIC ENERGY AUTHORITY,20/02/2013,HIRED STAFF,FUSION,BLACK DIAMOND UMBRELLA LTD,5100285662,4539.16,,
UNITED KINGDOM ATOMIC ENERGY AUTHORITY,UNITED KINGDOM ATOMIC ENERGY AUTHORITY,20/02/2013,HIRED STAFF,FUSION,BLACK DIAMOND UMBRELLA LTD,5100285663,1174.88,,
UNITED KINGDOM ATOMIC ENERGY AUTHORITY,UNITED KINGDOM ATOMIC ENERGY AUTHORITY,20/02/2013,HIRED STAFF,FUSION,BLACK DIAMOND UMBRELLA LTD,5100285664,1174.88,,
UNITED KINGDOM ATOMIC ENERGY AUTHORITY,UNITED KINGDOM ATOMIC ENERGY AUTHORITY,20/02/2013,HIRED STAFF,FUSION,BLACK DIAMOND UMBRELLA LTD,5100285666,1174.88,,
UNITED KINGDOM ATOMIC ENERGY AUTHORITY,UNITED KINGDOM ATOMIC ENERGY AUTHORITY,20/02/2013,HIRED STAFF,FUSION,BLACK DIAMOND UMBRELLA LTD,5100285667,1174.88,,
UNITED KINGDOM ATOMIC ENERGY AUTHORITY,UNITED KINGDOM ATOMIC ENERGY AUTHORITY,20/02/2013,HIRED STAFF,FUSION,BLACK DIAMOND UMBRELLA LTD,5100285668,836.25,,
UNITED KINGDOM ATOMIC ENERGY AUTHORITY,UNITED KINGDOM ATOMIC ENERGY AUTHORITY,20/02/2013,HIRED STAFF,FUSION,BLACK DIAMOND UMBRELLA LTD,5100285669,836.25,,
UNITED KINGDOM ATOMIC ENERGY AUTHORITY,UNITED KINGDOM ATOMIC ENERGY AUTHORITY,20/02/2013,HIRED STAFF,FUSION,BLACK DIAMOND UMBRELLA LTD,5100285670,836.25,,
UNITED KINGDOM ATOMIC ENERGY AUTHORITY,UNITED KINGDOM ATOMIC ENERGY AUTHORITY,20/02/2013,HIRED STAFF,FUSION,BLACK DIAMOND UMBRELLA LTD,5100285671,836.25,,
UNITED KINGDOM ATOMIC ENERGY AUTHORITY,UNITED KINGDOM ATOMIC ENERGY AUTHORITY,22/02/2013,OTHER EXTERNAL COSTS,FUSION,VISITOR EXPENSES,1900057756,1961.30,,
UNITED KINGDOM ATOMIC ENERGY AUTHORITY,UNITED KINGDOM ATOMIC ENERGY AUTHORITY,14/02/2013,EFDA TRAVEL EXPENSES,FUSION,EMPLOYEE EXPENSES,100676062,447.65,,
UNITED KINGDOM ATOMIC ENERGY AUTHORITY,UNITED KINGDOM ATOMIC ENERGY AUTHORITY,31/01/2013,EFDA TRAVEL EXPENSES,FUSION,EMPLOYEE EXPENSES,100675818,251.77,,
UNITED KINGDOM ATOMIC ENERGY AUTHORITY,UNITED KINGDOM ATOMIC ENERGY AUTHORITY,31/01/2013,EFDA TRAVEL EXPENSES,FUSION,EMPLOYEE EXPENSES,100675819,26.20,,
UNITED KINGDOM ATOMIC ENERGY AUTHORITY,UNITED KINGDOM ATOMIC ENERGY AUTHORITY,31/01/2013,EFDA TRAVEL EXPENSES,FUSION,EMPLOYEE EXPENSES,100675821,375.25,,
UNITED KINGDOM ATOMIC ENERGY AUTHORITY,UNITED KINGDOM ATOMIC ENERGY AUTHORITY,14/02/2013,EFDA TRAVEL EXPENSES,FUSION,EMPLOYEE EXPENSES,100676055,441.72,,
UNITED KINGDOM ATOMIC ENERGY AUTHORITY,UNITED KINGDOM ATOMIC ENERGY AUTHORITY,14/02/2013,EFDA TRAVEL EXPENSES,FUSION,EMPLOYEE EXPENSES,100676057,522.69,,
UNITED KINGDOM ATOMIC ENERGY AUTHORITY,UNITED KINGDOM ATOMIC ENERGY AUTHORITY,14/02/2013,EFDA TRAVEL EXPENSES,FUSION,EMPLOYEE EXPENSES,100676058,2.08,,
UNITED KINGDOM ATOMIC ENERGY AUTHORITY,UNITED KINGDOM ATOMIC ENERGY AUTHORITY,14/02/2013,EFDA TRAVEL EXPENSES,FUSION,EMPLOYEE EXPENSES,100676059,76.30,,
UNITED KINGDOM ATOMIC ENERGY AUTHORITY,UNITED KINGDOM ATOMIC ENERGY AUTHORITY,14/02/2013,EFDA TRAVEL EXPENSES,FUSION,EMPLOYEE EXPENSES,100676060,241.19,,
UNITED KINGDOM ATOMIC ENERGY AUTHORITY,UNITED KINGDOM ATOMIC ENERGY AUTHORITY,14/02/2013,EFDA TRAVEL EXPENSES,FUSION,EMPLOYEE EXPENSES,100676061,144.29,,
UNITED KINGDOM ATOMIC ENERGY AUTHORITY,UNITED KINGDOM ATOMIC ENERGY AUTHORITY,14/02/2013,EFDA TRAVEL EXPENSES,FUSION,EMPLOYEE EXPENSES,100676063,305.17,,
UNITED KINGDOM ATOMIC ENERGY AUTHORITY,UNITED KINGDOM ATOMIC ENERGY AUTHORITY,14/02/2013,EFDA TRAVEL EXPENSES,FUSION,EMPLOYEE EXPENSES,100676069,164.97,,
UNITED KINGDOM ATOMIC ENERGY AUTHORITY,UNITED KINGDOM ATOMIC ENERGY AUTHORITY,28/01/2013,PUBLICATIONS,FUSION,IOP PUBLISHING LTD,5100284550,3016.88,,
UNITED KINGDOM ATOMIC ENERGY AUTHORITY,UNITED KINGDOM ATOMIC ENERGY AUTHORITY,28/01/2013,OTHER EXTERNAL COSTS,FUSION,VISITOR EXPENSES,1900057688,103.86,,
UNITED KINGDOM ATOMIC ENERGY AUTHORITY,UNITED KINGDOM ATOMIC ENERGY AUTHORITY,11/02/2013,OTHER EXTERNAL COSTS,FUSION,VISITOR EXPENSES,1900057721,356.47,,
UNITED KINGDOM ATOMIC ENERGY AUTHORITY,UNITED KINGDOM ATOMIC ENERGY AUTHORITY,11/02/2013,OTHER EXTERNAL COSTS,FUSION,VISITOR EXPENSES,1900057722,343.60,,
UNITED KINGDOM ATOMIC ENERGY AUTHORITY,UNITED KINGDOM ATOMIC ENERGY AUTHORITY,28/01/2013,LEGAL FEES,SUPPORT SERVICES,CATER LEYDON MILLARD LTD,5100284562,245,,
UNITED KINGDOM ATOMIC ENERGY AUTHORITY,UNITED KINGDOM ATOMIC ENERGY AUTHORITY,13/02/2013,LEGAL FEES,SUPPORT SERVICES,CATER LEYDON MILLARD LTD,5100284565,385,,
UNITED KINGDOM ATOMIC ENERGY AUTHORITY,UNITED KINGDOM ATOMIC ENERGY AUTHORITY,28/01/2013,BUILDING REPAIRS,SUPPORT SERVICES,KNOWLES & SONS (OXFORD) LTD,5100284677,385,,
UNITED KINGDOM ATOMIC ENERGY AUTHORITY,UNITED KINGDOM ATOMIC ENERGY AUTHORITY,11/02/2013,PROFESSIONAL SERVICES,SUPPORT SERVICES,LOGICA CMG UK LTD,5100284988,2780.49,,
UNITED KINGDOM ATOMIC ENERGY AUTHORITY,UNITED KINGDOM ATOMIC ENERGY AUTHORITY,13/02/2013,PROFESSIONAL SERVICES,SUPPORT SERVICES,BDO LLP,5100285051,3410,,
UNITED KINGDOM ATOMIC ENERGY AUTHORITY,UNITED KINGDOM ATOMIC ENERGY AUTHORITY,07/02/2013,SUBSISTENCE,SUPPORT SERVICES,EMPLOYEE EXPENSES,100675979,12.67,,
UNITED KINGDOM ATOMIC ENERGY AUTHORITY,UNITED KINGDOM ATOMIC ENERGY AUTHORITY,09/02/2013,SUBSISTENCE,SUPPORT SERVICES,EMPLOYEE EXPENSES,100676024,3.29,,
UNITED KINGDOM ATOMIC ENERGY AUTHORITY,UNITED KINGDOM ATOMIC ENERGY AUTHORITY,09/02/2013,SUBSISTENCE,SUPPORT SERVICES,EMPLOYEE EXPENSES,100676024,4.42,,
UNITED KINGDOM ATOMIC ENERGY AUTHORITY,UNITED KINGDOM ATOMIC ENERGY AUTHORITY,09/02/2013,MILEAGE ALLOWANCE,SUPPORT SERVICES,EMPLOYEE EXPENSES,100676024,4.40,,
UNITED KINGDOM ATOMIC ENERGY AUTHORITY,UNITED KINGDOM ATOMIC ENERGY AUTHORITY,07/02/2013,RAIL TRAVEL,SUPPORT SERVICES,EMPLOYEE EXPENSES,100675979,8.40,,
UNITED KINGDOM ATOMIC ENERGY AUTHORITY,UNITED KINGDOM ATOMIC ENERGY AUTHORITY,09/02/2013,RAIL TRAVEL,SUPPORT SERVICES,EMPLOYEE EXPENSES,100676024,9.40,,
UNITED KINGDOM ATOMIC ENERGY AUTHORITY,UNITED KINGDOM ATOMIC ENERGY AUTHORITY,07/02/2013,ROAD TRAVEL,SUPPORT SERVICES,EMPLOYEE EXPENSES,100675979,16.00,,
UNITED KINGDOM ATOMIC ENERGY AUTHORITY,UNITED KINGDOM ATOMIC ENERGY AUTHORITY,07/02/2013,ROAD TRAVEL,SUPPORT SERVICES,EMPLOYEE EXPENSES,100675979,7.00,,
UNITED KINGDOM ATOMIC ENERGY AUTHORITY,UNITED KINGDOM ATOMIC ENERGY AUTHORITY,09/02/2013,ROAD TRAVEL,SUPPORT SERVICES,EMPLOYEE EXPENSES,100676024,12.00,,
UNITED KINGDOM ATOMIC ENERGY AUTHORITY,UNITED KINGDOM ATOMIC ENERGY AUTHORITY,21/02/2013,ROAD TRAVEL,SUPPORT SERVICES,EMPLOYEE EXPENSES,100678484,29.80,,
UNITED KINGDOM ATOMIC ENERGY AUTHORITY,UNITED KINGDOM ATOMIC ENERGY AUTHORITY,28/01/2013,PROFESSIONAL SERVICES,SUPPORT SERVICES,FREYA CONSULTING,5100284019,525,,
UNITED KINGDOM ATOMIC ENERGY AUTHORITY,UNITED KINGDOM ATOMIC ENERGY AUTHORITY,28/01/2013,ARCHIVING & RECORDS,SUPPORT SERVICES,BOX-IT UK LTD,5100284473,2442.86,,
UNITED KINGDOM ATOMIC ENERGY AUTHORITY,UNITED KINGDOM ATOMIC ENERGY AUTHORITY,11/02/2013,GASES,SUPPORT SERVICES,BOC LTD,5100284494,3340,,
UNITED KINGDOM ATOMIC ENERGY AUTHORITY,UNITED KINGDOM ATOMIC ENERGY AUTHORITY,11/02/2013,SAFETY STORES,SUPPORT SERVICES,CONTRACT FIRE SECURITY,5100284499,10540.33,,
UNITED KINGDOM ATOMIC ENERGY AUTHORITY,UNITED KINGDOM ATOMIC ENERGY AUTHORITY,28/01/2013,BUILDING REPAIRS,SUPPORT SERVICES,KNOWLES & SONS (OXFORD) LTD,5100284672,115.12,,
UNITED KINGDOM ATOMIC ENERGY AUTHORITY,UNITED KINGDOM ATOMIC ENERGY AUTHORITY,30/01/2013,PERSONAL PROTECTIVE EQUIPMENT,SUPPORT SERVICES,ARCO LTD,5100284678,40.79,,
UNITED KINGDOM ATOMIC ENERGY AUTHORITY,UNITED KINGDOM ATOMIC ENERGY AUTHORITY,28/01/2013,PLANT & EQUIPMENT,SUPPORT SERVICES,FISHER SCIENTIFIC UK LTD,5100284703,128.88,,
UNITED KINGDOM ATOMIC ENERGY AUTHORITY,UNITED KINGDOM ATOMIC ENERGY AUTHORITY,05/02/2013,TRAINING COURSE FEES,SUPPORT SERVICES,LLOYDS BRITISH TRAINING PLC,5100284730,70,,
UNITED KINGDOM ATOMIC ENERGY AUTHORITY,UNITED KINGDOM ATOMIC ENERGY AUTHORITY,05/02/2013,TRAINING COURSE FEES,SUPPORT SERVICES,LLOYDS BRITISH TRAINING PLC,5100284792,470,,
UNITED KINGDOM ATOMIC ENERGY AUTHORITY,UNITED KINGDOM ATOMIC ENERGY AUTHORITY,11/02/2013,PROFESSIONAL SERVICES,SUPPORT SERVICES,NUCLEAR MANAGEMENT CONSULTANCE LTD,5100284857,800,,
UNITED KINGDOM ATOMIC ENERGY AUTHORITY,UNITED KINGDOM ATOMIC ENERGY AUTHORITY,05/02/2013,STATIONERY,SUPPORT SERVICES,LYRECO UK LIMITED,5100284894,155.47,,
UNITED KINGDOM ATOMIC ENERGY AUTHORITY,UNITED KINGDOM ATOMIC ENERGY AUTHORITY,20/02/2013,PROFESSIONAL SERVICES,SUPPORT SERVICES,FREYA CONSULTING,5100284908,375,,
UNITED KINGDOM ATOMIC ENERGY AUTHORITY,UNITED KINGDOM ATOMIC ENERGY AUTHORITY,05/02/2013,CAR HIRE,SUPPORT SERVICES,LEASEDRIVE VELO,5100284935,72.88,,
UNITED KINGDOM ATOMIC ENERGY AUTHORITY,UNITED KINGDOM ATOMIC ENERGY AUTHORITY,11/02/2013,PROFESSIONAL SERVICES,SUPPORT SERVICES,HAY GROUP,5100284989,12000,,
UNITED KINGDOM ATOMIC ENERGY AUTHORITY,UNITED KINGDOM ATOMIC ENERGY AUTHORITY,05/02/2013,MATERIALS & SPARES,SUPPORT SERVICES,CPC PLC,5100284994,12.12,,
UNITED KINGDOM ATOMIC ENERGY AUTHORITY,UNITED KINGDOM ATOMIC ENERGY AUTHORITY,11/02/2013,PROFESSIONAL SERVICES,SUPPORT SERVICES,ESR TECHNOLOGY LTD,5100285025,550,,
UNITED KINGDOM ATOMIC ENERGY AUTHORITY,UNITED KINGDOM ATOMIC ENERGY AUTHORITY,11/02/2013,PROFESSIONAL SERVICES,SUPPORT SERVICES,DISCLOSURE SCOTLAND,5100285125,150,,
UNITED KINGDOM ATOMIC ENERGY AUTHORITY,UNITED KINGDOM ATOMIC ENERGY AUTHORITY,13/02/2013,BOOKS & PUBLICATIONS,SUPPORT SERVICES,THE BRITISH LIBRARY,5100285149,6.8,,
UNITED KINGDOM ATOMIC ENERGY AUTHORITY,UNITED KINGDOM ATOMIC ENERGY AUTHORITY,13/02/2013,BOOKS & PUBLICATIONS,SUPPORT SERVICES,THE BRITISH LIBRARY,5100285152,38.75,,
UNITED KINGDOM ATOMIC ENERGY AUTHORITY,UNITED KINGDOM ATOMIC ENERGY AUTHORITY,13/02/2013,INSPECTION SERVICES,SUPPORT SERVICES,ASHDALE ENGINEERING,5100285250,5400,,
UNITED KINGDOM ATOMIC ENERGY AUTHORITY,UNITED KINGDOM ATOMIC ENERGY AUTHORITY,18/02/2013,TRAINING COSTS,SUPPORT SERVICES,SCA TRAINING & CONSULTANCY SERVICES,5100285386,297,,
UNITED KINGDOM ATOMIC ENERGY AUTHORITY,UNITED KINGDOM ATOMIC ENERGY AUTHORITY,18/02/2013,CATERING SUPPLIES,SUPPORT SERVICES,BWT UK LTD,5100285388,1459,,
UNITED KINGDOM ATOMIC ENERGY AUTHORITY,UNITED KINGDOM ATOMIC ENERGY AUTHORITY,18/02/2013,CONSUMABLES,SUPPORT SERVICES,SYNERGY HEALTH LABORATORY SERVICES,5100285548,87.5,,
UNITED KINGDOM ATOMIC ENERGY AUTHORITY,UNITED KINGDOM ATOMIC ENERGY AUTHORITY,29/01/2013,INTERVIEW EXPENSES,SUPPORT SERVICES,INTERVIEW EXPENSES,1900057689,92.00,,
UNITED KINGDOM ATOMIC ENERGY AUTHORITY,UNITED KINGDOM ATOMIC ENERGY AUTHORITY,31/01/2013,OTHER EXTERNAL COSTS,SUPPORT SERVICES,VISITOR EXPENSES,1900057705,479.55,,
UNITED KINGDOM ATOMIC ENERGY AUTHORITY,UNITED KINGDOM ATOMIC ENERGY AUTHORITY,31/01/2013,OTHER EXTERNAL COSTS,SUPPORT SERVICES,VISITOR EXPENSES,1900057706,218.25,,
UNITED KINGDOM ATOMIC ENERGY AUTHORITY,UNITED KINGDOM ATOMIC ENERGY AUTHORITY,18/02/2013,CHARITABLE DONATIONS,SUPPORT SERVICES,Didcot Girls School,1900057735,462.00,,
UNITED KINGDOM ATOMIC ENERGY AUTHORITY,UNITED KINGDOM ATOMIC ENERGY AUTHORITY,18/02/2013,CHARITABLE DONATIONS,SUPPORT SERVICES,Hagbourne Baby & Toddler Group,1900057736,400.00,,
UNITED KINGDOM ATOMIC ENERGY AUTHORITY,UNITED KINGDOM ATOMIC ENERGY AUTHORITY,07/02/2013,TAXIS,SUPPORT SERVICES,EMPLOYEE EXPENSES,100675973,30.70,,
UNITED KINGDOM ATOMIC ENERGY AUTHORITY,UNITED KINGDOM ATOMIC ENERGY AUTHORITY,07/02/2013,SUBSISTENCE,SUPPORT SERVICES,EMPLOYEE EXPENSES,100675973,5.00,,
UNITED KINGDOM ATOMIC ENERGY AUTHORITY,UNITED KINGDOM ATOMIC ENERGY AUTHORITY,07/02/2013,SUBSISTENCE,SUPPORT SERVICES,EMPLOYEE EXPENSES,100675973,5.21,,
UNITED KINGDOM ATOMIC ENERGY AUTHORITY,UNITED KINGDOM ATOMIC ENERGY AUTHORITY,21/02/2013,SUBSISTENCE,SUPPORT SERVICES,EMPLOYEE EXPENSES,100678480,234.00,,
UNITED KINGDOM ATOMIC ENERGY AUTHORITY,UNITED KINGDOM ATOMIC ENERGY AUTHORITY,21/02/2013,MILEAGE ALLOWANCE,SUPPORT SERVICES,EMPLOYEE EXPENSES,100678464,11.20,,
UNITED KINGDOM ATOMIC ENERGY AUTHORITY,UNITED KINGDOM ATOMIC ENERGY AUTHORITY,07/02/2013,RAIL TRAVEL,SUPPORT SERVICES,EMPLOYEE EXPENSES,100675973,4.00,,
UNITED KINGDOM ATOMIC ENERGY AUTHORITY,UNITED KINGDOM ATOMIC ENERGY AUTHORITY,21/02/2013,ROAD TRAVEL,SUPPORT SERVICES,EMPLOYEE EXPENSES,100678464,4.75,,
UNITED KINGDOM ATOMIC ENERGY AUTHORITY,UNITED KINGDOM ATOMIC ENERGY AUTHORITY,16/02/2013,RELOCATION COSTS,SUPPORT SERVICES,EMPLOYEE EXPENSES,100676081,"6,526.72",,
UNITED KINGDOM ATOMIC ENERGY AUTHORITY,UNITED KINGDOM ATOMIC ENERGY AUTHORITY,16/02/2013,RELOCATION COSTS,SUPPORT SERVICES,EMPLOYEE EXPENSES,100676081,"1,062.50",,
UNITED KINGDOM ATOMIC ENERGY AUTHORITY,UNITED KINGDOM ATOMIC ENERGY AUTHORITY,16/02/2013,RELOCATION COSTS,SUPPORT SERVICES,EMPLOYEE EXPENSES,100676082,"1,275.00",,
UNITED KINGDOM ATOMIC ENERGY AUTHORITY,UNITED KINGDOM ATOMIC ENERGY AUTHORITY,16/02/2013,RELOCATION COSTS,SUPPORT SERVICES,EMPLOYEE EXPENSES,100676082,"1,062.50",,
UNITED KINGDOM ATOMIC ENERGY AUTHORITY,UNITED KINGDOM ATOMIC ENERGY AUTHORITY,28/01/2013,STATIONERY,FUSION,FD SOLUTIONS LTD,5100284539,83.25,,
UNITED KINGDOM ATOMIC ENERGY AUTHORITY,UNITED KINGDOM ATOMIC ENERGY AUTHORITY,28/01/2013,PRINTING & GRAPHICS,FUSION,Lamport Gilbert Ltd,5100284657,1124,,
UNITED KINGDOM ATOMIC ENERGY AUTHORITY,UNITED KINGDOM ATOMIC ENERGY AUTHORITY,28/01/2013,PRINTING & GRAPHICS,FUSION,Lamport Gilbert Ltd,5100284658,543,,
UNITED KINGDOM ATOMIC ENERGY AUTHORITY,UNITED KINGDOM ATOMIC ENERGY AUTHORITY,28/01/2013,PRINTING & GRAPHICS,FUSION,Lamport Gilbert Ltd,5100284660,582,,
UNITED KINGDOM ATOMIC ENERGY AUTHORITY,UNITED KINGDOM ATOMIC ENERGY AUTHORITY,28/01/2013,PRINTING & GRAPHICS,FUSION,Lamport Gilbert Ltd,5100284662,607,,
UNITED KINGDOM ATOMIC ENERGY AUTHORITY,UNITED KINGDOM ATOMIC ENERGY AUTHORITY,28/01/2013,PRINTING & GRAPHICS,FUSION,Lamport Gilbert Ltd,5100284663,616,,
UNITED KINGDOM ATOMIC ENERGY AUTHORITY,UNITED KINGDOM ATOMIC ENERGY AUTHORITY,28/01/2013,PROFESSIONAL SERVICES,FUSION,GRAFX,5100284706,1000,,
UNITED KINGDOM ATOMIC ENERGY AUTHORITY,UNITED KINGDOM ATOMIC ENERGY AUTHORITY,05/02/2013,OPERATING LEASE,FUSION,ANNODATA BUSINESS COMMUNICATIONS,5100284810,2778.3,,
UNITED KINGDOM ATOMIC ENERGY AUTHORITY,UNITED KINGDOM ATOMIC ENERGY AUTHORITY,31/01/2013,PROFESSIONAL SERVICES,FUSION,GRAFX,5100284919,-1000,,
UNITED KINGDOM ATOMIC ENERGY AUTHORITY,UNITED KINGDOM ATOMIC ENERGY AUTHORITY,31/01/2013,PROFESSIONAL SERVICES,FUSION,GRAFX,5100284920,1000,,
UNITED KINGDOM ATOMIC ENERGY AUTHORITY,UNITED KINGDOM ATOMIC ENERGY AUTHORITY,05/02/2013,CONSUMABLES,FUSION,WILES GREENWORLD,5100284933,235,,
UNITED KINGDOM ATOMIC ENERGY AUTHORITY,UNITED KINGDOM ATOMIC ENERGY AUTHORITY,11/02/2013,STATIONERY,FUSION,PERFECT COLOURS LIMITED,5100285024,126,,
UNITED KINGDOM ATOMIC ENERGY AUTHORITY,UNITED KINGDOM ATOMIC ENERGY AUTHORITY,18/02/2013,STATIONERY,FUSION,FINE PRINT SERVICES,5100285026,1364,,
UNITED KINGDOM ATOMIC ENERGY AUTHORITY,UNITED KINGDOM ATOMIC ENERGY AUTHORITY,11/02/2013,STATIONERY,FUSION,MPS SERVICES LTD,5100285030,332,,
UNITED KINGDOM ATOMIC ENERGY AUTHORITY,UNITED KINGDOM ATOMIC ENERGY AUTHORITY,13/02/2013,BUILDING REPAIRS,FUSION,LORNE STEWART PLC,5100285084,2357.58,,
UNITED KINGDOM ATOMIC ENERGY AUTHORITY,UNITED KINGDOM ATOMIC ENERGY AUTHORITY,11/02/2013,STATIONERY,FUSION,ARTISAN LITHO PRINT  DESIGN,5100285126,75,,
UNITED KINGDOM ATOMIC ENERGY AUTHORITY,UNITED KINGDOM ATOMIC ENERGY AUTHORITY,11/02/2013,STATIONERY,FUSION,PREMIER PAPER GROUP LTD,5100285225,1497.88,,
UNITED KINGDOM ATOMIC ENERGY AUTHORITY,UNITED KINGDOM ATOMIC ENERGY AUTHORITY,11/02/2013,STATIONERY,FUSION,PREMIER PAPER GROUP LTD,5100285226,116.53,,
UNITED KINGDOM ATOMIC ENERGY AUTHORITY,UNITED KINGDOM ATOMIC ENERGY AUTHORITY,18/02/2013,STATIONERY,FUSION,PREMIER PAPER GROUP LTD,5100285538,60.68,,
UNITED KINGDOM ATOMIC ENERGY AUTHORITY,UNITED KINGDOM ATOMIC ENERGY AUTHORITY,18/02/2013,PROFESSIONAL SERVICES,FUSION,ELECTRIC STUDIO LTD,5100285547,3500,,
UNITED KINGDOM ATOMIC ENERGY AUTHORITY,UNITED KINGDOM ATOMIC ENERGY AUTHORITY,18/02/2013,PRINTING & GRAPHICS,FUSION,Lamport Gilbert Ltd,5100285552,411,,
UNITED KINGDOM ATOMIC ENERGY AUTHORITY,UNITED KINGDOM ATOMIC ENERGY AUTHORITY,18/02/2013,PROFESSIONAL SERVICES,FUSION,ELECTRIC STUDIO LTD,5100285556,-3500,,
UNITED KINGDOM ATOMIC ENERGY AUTHORITY,UNITED KINGDOM ATOMIC ENERGY AUTHORITY,20/02/2013,PROFESSIONAL SERVICES,FUSION,ELECTRIC STUDIO LTD,5100285577,3500,,
UNITED KINGDOM ATOMIC ENERGY AUTHORITY,UNITED KINGDOM ATOMIC ENERGY AUTHORITY,20/02/2013,PRINTING & GRAPHICS,FUSION,Lamport Gilbert Ltd,5100285734,960,,
UNITED KINGDOM ATOMIC ENERGY AUTHORITY,UNITED KINGDOM ATOMIC ENERGY AUTHORITY,20/02/2013,PROFESSIONAL SERVICES,FUSION,ELECTRIC STUDIO LTD,5100285735,-3500,,
UNITED KINGDOM ATOMIC ENERGY AUTHORITY,UNITED KINGDOM ATOMIC ENERGY AUTHORITY,08/02/2013,PRINTING & GRAPHICS,FUSION,Proactive UK Ltd,1900057718,3174.00,,
UNITED KINGDOM ATOMIC ENERGY AUTHORITY,UNITED KINGDOM ATOMIC ENERGY AUTHORITY,14/02/2013,PRINTING & GRAPHICS,FUSION,Xamax Clothing Ltd,1900057730,1185.00,,
UNITED KINGDOM ATOMIC ENERGY AUTHORITY,UNITED KINGDOM ATOMIC ENERGY AUTHORITY,11/02/2013,TAXIS,FUSION,HAROLDS CARS,5100284991,4125.88,,
UNITED KINGDOM ATOMIC ENERGY AUTHORITY,UNITED KINGDOM ATOMIC ENERGY AUTHORITY,05/02/2013,ELECTRICITY,FUSION,NATIONAL GRID TRANSCO,5100284794,3412.84,,
UNITED KINGDOM ATOMIC ENERGY AUTHORITY,UNITED KINGDOM ATOMIC ENERGY AUTHORITY,11/02/2013,UTILITIES/ELECTRICITY,FUSION,EDF ENERGY,5100285208,164857.93,,
UNITED KINGDOM ATOMIC ENERGY AUTHORITY,UNITED KINGDOM ATOMIC ENERGY AUTHORITY,18/02/2013,UTILITIES/ELECTRICITY,FUSION,EDF ENERGY,5100285469,36.51,,
UNITED KINGDOM ATOMIC ENERGY AUTHORITY,UNITED KINGDOM ATOMIC ENERGY AUTHORITY,05/02/2013,REPAIRS & MAINTENANCE,FUSION,BSA MACHINE TOOLS LTD,5100284533,3250,,
UNITED KINGDOM ATOMIC ENERGY AUTHORITY,UNITED KINGDOM ATOMIC ENERGY AUTHORITY,05/02/2013,MATERIALS & SPARES,FUSION,RS COMPONENTS LTD,5100284762,21.9,,
UNITED KINGDOM ATOMIC ENERGY AUTHORITY,UNITED KINGDOM ATOMIC ENERGY AUTHORITY,11/02/2013,MATERIALS & SPARES,FUSION,RS COMPONENTS LTD,5100285231,113,,
UNITED KINGDOM ATOMIC ENERGY AUTHORITY,UNITED KINGDOM ATOMIC ENERGY AUTHORITY,13/02/2013,PERSONAL PROTECTIVE EQUIPMENT,FUSION,BUCK & HICKMAN LTD,5100285257,2.7,,
UNITED KINGDOM ATOMIC ENERGY AUTHORITY,UNITED KINGDOM ATOMIC ENERGY AUTHORITY,11/02/2013,MATERIALS & SPARES,FUSION,RS COMPONENTS LTD,5100285331,60.78,,
UNITED KINGDOM ATOMIC ENERGY AUTHORITY,UNITED KINGDOM ATOMIC ENERGY AUTHORITY,18/02/2013,MATERIALS & SPARES,FUSION,RS COMPONENTS LTD,5100285495,37.76,,
UNITED KINGDOM ATOMIC ENERGY AUTHORITY,UNITED KINGDOM ATOMIC ENERGY AUTHORITY,30/01/2013,MATERIALS & SPARES,FUSION,ALPHA ENGINEERING SUPPLIES,5100283880,265.39,,
UNITED KINGDOM ATOMIC ENERGY AUTHORITY,UNITED KINGDOM ATOMIC ENERGY AUTHORITY,28/01/2013,MATERIALS & SPARES,FUSION,CROMWELL LTD,5100284530,142.75,,
UNITED KINGDOM ATOMIC ENERGY AUTHORITY,UNITED KINGDOM ATOMIC ENERGY AUTHORITY,28/01/2013,PLANT SPARES,FUSION,PARMLEY GRAHAM LTD,5100284559,3488.8,,
UNITED KINGDOM ATOMIC ENERGY AUTHORITY,UNITED KINGDOM ATOMIC ENERGY AUTHORITY,28/01/2013,PLANT SPARES,FUSION,PARMLEY GRAHAM LTD,5100284561,313,,
UNITED KINGDOM ATOMIC ENERGY AUTHORITY,UNITED KINGDOM ATOMIC ENERGY AUTHORITY,30/01/2013,MATERIALS & SPARES,FUSION,SP ARC EQUIPMENT SYSTEMS LTD,5100284631,1350,,
UNITED KINGDOM ATOMIC ENERGY AUTHORITY,UNITED KINGDOM ATOMIC ENERGY AUTHORITY,28/01/2013,BUILDING REPAIRS,FUSION,KNOWLES & SONS (OXFORD) LTD,5100284685,591.11,,
UNITED KINGDOM ATOMIC ENERGY AUTHORITY,UNITED KINGDOM ATOMIC ENERGY AUTHORITY,30/01/2013,MATERIALS & SPARES,FUSION,OXFORD BOLTS & BEARINGS,5100284699,116,,
UNITED KINGDOM ATOMIC ENERGY AUTHORITY,UNITED KINGDOM ATOMIC ENERGY AUTHORITY,28/01/2013,PLANT & EQUIPMENT,FUSION,HEWDEN,5100284705,750,,
UNITED KINGDOM ATOMIC ENERGY AUTHORITY,UNITED KINGDOM ATOMIC ENERGY AUTHORITY,28/01/2013,MATERIALS & SPARES,FUSION,CROMWELL LTD,5100284735,116,,
UNITED KINGDOM ATOMIC ENERGY AUTHORITY,UNITED KINGDOM ATOMIC ENERGY AUTHORITY,28/01/2013,MATERIALS & SPARES,FUSION,CROMWELL LTD,5100284736,130.42,,
UNITED KINGDOM ATOMIC ENERGY AUTHORITY,UNITED KINGDOM ATOMIC ENERGY AUTHORITY,05/02/2013,MATERIALS & SPARES,FUSION,RS COMPONENTS LTD,5100284751,619.54,,
UNITED KINGDOM ATOMIC ENERGY AUTHORITY,UNITED KINGDOM ATOMIC ENERGY AUTHORITY,05/02/2013,MATERIALS & SPARES,FUSION,RS COMPONENTS LTD,5100284758,136.94,,
UNITED KINGDOM ATOMIC ENERGY AUTHORITY,UNITED KINGDOM ATOMIC ENERGY AUTHORITY,05/02/2013,PLANT & EQUIPMENT REPAIR,FUSION,BRACKLEY REWINDS LTD,5100284778,340,,
UNITED KINGDOM ATOMIC ENERGY AUTHORITY,UNITED KINGDOM ATOMIC ENERGY AUTHORITY,05/02/2013,CONSUMABLES,FUSION,STRUERS LTD,5100284812,114,,
UNITED KINGDOM ATOMIC ENERGY AUTHORITY,UNITED KINGDOM ATOMIC ENERGY AUTHORITY,05/02/2013,MATERIALS & SPARES,FUSION,ALPHA ENGINEERING SUPPLIES,5100284841,25.32,,
UNITED KINGDOM ATOMIC ENERGY AUTHORITY,UNITED KINGDOM ATOMIC ENERGY AUTHORITY,05/02/2013,MATERIALS & SPARES,FUSION,ALPHA ENGINEERING SUPPLIES,5100284842,56.85,,
UNITED KINGDOM ATOMIC ENERGY AUTHORITY,UNITED KINGDOM ATOMIC ENERGY AUTHORITY,05/02/2013,CLEANING,FUSION,HYDROBLAST,5100284859,345,,
UNITED KINGDOM ATOMIC ENERGY AUTHORITY,UNITED KINGDOM ATOMIC ENERGY AUTHORITY,05/02/2013,PROFESSIONAL SERVICES,FUSION,BNS NUCLEAR SERVICES,5100284884,107088.07,,
UNITED KINGDOM ATOMIC ENERGY AUTHORITY,UNITED KINGDOM ATOMIC ENERGY AUTHORITY,05/02/2013,MATERIALS & SPARES,FUSION,CROMWELL LTD,5100284972,31.5,,
UNITED KINGDOM ATOMIC ENERGY AUTHORITY,UNITED KINGDOM ATOMIC ENERGY AUTHORITY,11/02/2013,PLANT & EQUIPMENT,FUSION,TACKLESTORE LTD,5100285013,1416.81,,
UNITED KINGDOM ATOMIC ENERGY AUTHORITY,UNITED KINGDOM ATOMIC ENERGY AUTHORITY,11/02/2013,MATERIALS & SPARES,FUSION,ALPHA ENGINEERING SUPPLIES,5100285040,109.45,,
UNITED KINGDOM ATOMIC ENERGY AUTHORITY,UNITED KINGDOM ATOMIC ENERGY AUTHORITY,11/02/2013,HIRED STAFF,FUSION,MORSON INTERNATIONAL,5100285102,259818.14,,
UNITED KINGDOM ATOMIC ENERGY AUTHORITY,UNITED KINGDOM ATOMIC ENERGY AUTHORITY,11/02/2013,PLANT SPARES,FUSION,PW RESISTANCE WELDING PRODUCTS LTD,5100285108,1115,,
UNITED KINGDOM ATOMIC ENERGY AUTHORITY,UNITED KINGDOM ATOMIC ENERGY AUTHORITY,11/02/2013,MATERIALS & SPARES,FUSION,CROMWELL LTD,5100285159,52.34,,
UNITED KINGDOM ATOMIC ENERGY AUTHORITY,UNITED KINGDOM ATOMIC ENERGY AUTHORITY,11/02/2013,MATERIALS & SPARES,FUSION,ALPHA ENGINEERING SUPPLIES,5100285201,43.63,,
UNITED KINGDOM ATOMIC ENERGY AUTHORITY,UNITED KINGDOM ATOMIC ENERGY AUTHORITY,11/02/2013,MATERIALS & SPARES,FUSION,RS COMPONENTS LTD,5100285264,224.22,,
UNITED KINGDOM ATOMIC ENERGY AUTHORITY,UNITED KINGDOM ATOMIC ENERGY AUTHORITY,18/02/2013,MATERIALS & SPARES,FUSION,RS COMPONENTS LTD,5100285328,77.14,,
UNITED KINGDOM ATOMIC ENERGY AUTHORITY,UNITED KINGDOM ATOMIC ENERGY AUTHORITY,18/02/2013,HIRED STAFF,FUSION,MORSON INTERNATIONAL,5100285344,73.9,,
UNITED KINGDOM ATOMIC ENERGY AUTHORITY,UNITED KINGDOM ATOMIC ENERGY AUTHORITY,18/02/2013,MATERIALS & SPARES,FUSION,ALPHA ENGINEERING SUPPLIES,5100285411,61.41,,
UNITED KINGDOM ATOMIC ENERGY AUTHORITY,UNITED KINGDOM ATOMIC ENERGY AUTHORITY,18/02/2013,CLEANING,FUSION,OCS CLEANING & SUPPORT SERVICES,5100285430,2748.71,,
UNITED KINGDOM ATOMIC ENERGY AUTHORITY,UNITED KINGDOM ATOMIC ENERGY AUTHORITY,20/02/2013,GASES,FUSION,BOC LTD,5100285462,55.64,,
UNITED KINGDOM ATOMIC ENERGY AUTHORITY,UNITED KINGDOM ATOMIC ENERGY AUTHORITY,14/02/2013,MATERIALS & SPARES,FUSION,Forgeweld Ltd,1900057729,461.46,,
UNITED KINGDOM ATOMIC ENERGY AUTHORITY,UNITED KINGDOM ATOMIC ENERGY AUTHORITY,24/02/2013,OTHER EXTERNAL COSTS,FUSION,PURCHASE CARDS,100678971,763.50,,
UNITED KINGDOM ATOMIC ENERGY AUTHORITY,UNITED KINGDOM ATOMIC ENERGY AUTHORITY,28/01/2013,MATERIALS & SPARES,FUSION,METALFAST (A DIVISION OF,5100284734,101,,
UNITED KINGDOM ATOMIC ENERGY AUTHORITY,UNITED KINGDOM ATOMIC ENERGY AUTHORITY,31/01/2013,PLANT & EQUIPMENT,FUSION,CECOM S.N.C.,5100284863,16347.14,,
UNITED KINGDOM ATOMIC ENERGY AUTHORITY,UNITED KINGDOM ATOMIC ENERGY AUTHORITY,11/02/2013,PLANT & EQUIPMENT,FUSION,SIGMA INDUSTRIAL INTERCOM SYSTEMS,5100285006,1531.5,,
UNITED KINGDOM ATOMIC ENERGY AUTHORITY,UNITED KINGDOM ATOMIC ENERGY AUTHORITY,11/02/2013,MATERIALS & SPARES,FUSION,RS COMPONENTS LTD,5100285289,101.84,,
UNITED KINGDOM ATOMIC ENERGY AUTHORITY,UNITED KINGDOM ATOMIC ENERGY AUTHORITY,18/02/2013,PLANT & EQUIPMENT,FUSION,MILLHILL TOOLS LTD,5100285347,23.35,,
UNITED KINGDOM ATOMIC ENERGY AUTHORITY,UNITED KINGDOM ATOMIC ENERGY AUTHORITY,18/02/2013,PLANT & EQUIPMENT,FUSION,MILLHILL TOOLS LTD,5100285350,34.97,,
UNITED KINGDOM ATOMIC ENERGY AUTHORITY,UNITED KINGDOM ATOMIC ENERGY AUTHORITY,22/02/2013,TRAINING COURSE FEES,FUSION,Provek,1900057757,1816.67,,
UNITED KINGDOM ATOMIC ENERGY AUTHORITY,UNITED KINGDOM ATOMIC ENERGY AUTHORITY,28/01/2013,MATERIALS & SPARES,FUSION,METALFAST (A DIVISION OF,5100283753,149,,
UNITED KINGDOM ATOMIC ENERGY AUTHORITY,UNITED KINGDOM ATOMIC ENERGY AUTHORITY,28/01/2013,MATERIALS & SPARES,FUSION,FARNELL ELECTRONIC,5100284624,11.32,,
UNITED KINGDOM ATOMIC ENERGY AUTHORITY,UNITED KINGDOM ATOMIC ENERGY AUTHORITY,28/01/2013,MATERIALS & SPARES,FUSION,FARNELL ELECTRONIC,5100284625,11.32,,
UNITED KINGDOM ATOMIC ENERGY AUTHORITY,UNITED KINGDOM ATOMIC ENERGY AUTHORITY,28/01/2013,MATERIALS & SPARES,FUSION,OXFORD BOLTS & BEARINGS,5100284698,127.38,,
UNITED KINGDOM ATOMIC ENERGY AUTHORITY,UNITED KINGDOM ATOMIC ENERGY AUTHORITY,28/01/2013,MATERIALS & SPARES,FUSION,RS COMPONENTS LTD,5100284719,77.4,,
UNITED KINGDOM ATOMIC ENERGY AUTHORITY,UNITED KINGDOM ATOMIC ENERGY AUTHORITY,05/02/2013,MATERIALS & SPARES,FUSION,METALFAST (A DIVISION OF,5100284952,78,,
UNITED KINGDOM ATOMIC ENERGY AUTHORITY,UNITED KINGDOM ATOMIC ENERGY AUTHORITY,05/02/2013,MATERIALS & SPARES,FUSION,METALFAST (A DIVISION OF,5100284953,127,,
UNITED KINGDOM ATOMIC ENERGY AUTHORITY,UNITED KINGDOM ATOMIC ENERGY AUTHORITY,05/02/2013,PROFESSIONAL SERVICES,FUSION,METRO ENGINEERING AND PLATING WORKS,5100284996,100,,
UNITED KINGDOM ATOMIC ENERGY AUTHORITY,UNITED KINGDOM ATOMIC ENERGY AUTHORITY,05/02/2013,PROFESSIONAL SERVICES,FUSION,METRO ENGINEERING AND PLATING WORKS,5100284997,100,,
UNITED KINGDOM ATOMIC ENERGY AUTHORITY,UNITED KINGDOM ATOMIC ENERGY AUTHORITY,11/02/2013,MATERIALS & SPARES,FUSION,RS COMPONENTS LTD,5100285240,9.71,,
UNITED KINGDOM ATOMIC ENERGY AUTHORITY,UNITED KINGDOM ATOMIC ENERGY AUTHORITY,20/02/2013,GASES,FUSION,BOC LTD,5100285283,350.67,,
UNITED KINGDOM ATOMIC ENERGY AUTHORITY,UNITED KINGDOM ATOMIC ENERGY AUTHORITY,18/02/2013,PLANT & EQUIPMENT,FUSION,MILLHILL TOOLS LTD,5100285348,22.23,,
UNITED KINGDOM ATOMIC ENERGY AUTHORITY,UNITED KINGDOM ATOMIC ENERGY AUTHORITY,18/02/2013,MATERIALS & SPARES,FUSION,RS COMPONENTS LTD,5100285493,66.28,,
UNITED KINGDOM ATOMIC ENERGY AUTHORITY,UNITED KINGDOM ATOMIC ENERGY AUTHORITY,28/01/2013,IT EQUIPMENT NON CAPITAL,FUSION,MAAINTECH,5100284568,2661,,
UNITED KINGDOM ATOMIC ENERGY AUTHORITY,UNITED KINGDOM ATOMIC ENERGY AUTHORITY,28/01/2013,SOFTWARE,FUSION,APPLIED CAE,5100284573,1453,,
UNITED KINGDOM ATOMIC ENERGY AUTHORITY,UNITED KINGDOM ATOMIC ENERGY AUTHORITY,13/02/2013,IT EQUIPMENT NON CAPITAL,FUSION,SCANNING & DATA SOLUTIONS LTD,5100285127,7425.22,,
UNITED KINGDOM ATOMIC ENERGY AUTHORITY,UNITED KINGDOM ATOMIC ENERGY AUTHORITY,11/02/2013,PRINTING & GRAPHICS,FUSION,KIP UK SERVICE CENTRE,5100285166,299.56,,
UNITED KINGDOM ATOMIC ENERGY AUTHORITY,UNITED KINGDOM ATOMIC ENERGY AUTHORITY,28/01/2013,MATERIALS & SPARES,FUSION,WOODSTOCK INDUSTRIAL SUPPLIES LTD,5100284281,12.14,,
UNITED KINGDOM ATOMIC ENERGY AUTHORITY,UNITED KINGDOM ATOMIC ENERGY AUTHORITY,28/01/2013,PLANT SPARES,FUSION,BATT CABLES PLC,5100284674,69,,
UNITED KINGDOM ATOMIC ENERGY AUTHORITY,UNITED KINGDOM ATOMIC ENERGY AUTHORITY,28/01/2013,SAFETY STORES,FUSION,NETWORK SIGNS,5100284727,156,,
UNITED KINGDOM ATOMIC ENERGY AUTHORITY,UNITED KINGDOM ATOMIC ENERGY AUTHORITY,13/02/2013,COMPUTER REPAIRS,FUSION,NORTECH CONTROL SYSTEMS LIMITED,5100285109,-87,,
UNITED KINGDOM ATOMIC ENERGY AUTHORITY,UNITED KINGDOM ATOMIC ENERGY AUTHORITY,11/02/2013,MATERIALS & SPARES,FUSION,GOODMAN STEEL SERVICES LTD,5100285156,74.75,,
UNITED KINGDOM ATOMIC ENERGY AUTHORITY,UNITED KINGDOM ATOMIC ENERGY AUTHORITY,13/02/2013,COMPUTER REPAIRS,FUSION,NORTECH CONTROL SYSTEMS LIMITED,5100285157,585.5,,
UNITED KINGDOM ATOMIC ENERGY AUTHORITY,UNITED KINGDOM ATOMIC ENERGY AUTHORITY,18/02/2013,INTERVIEW EXPENSES,FUSION,INTERVIEW EXPENSES,1900057731,23.50,,
UNITED KINGDOM ATOMIC ENERGY AUTHORITY,UNITED KINGDOM ATOMIC ENERGY AUTHORITY,21/02/2013,SUBSISTENCE,FUSION,EMPLOYEE EXPENSES,100678465,10.55,,
UNITED KINGDOM ATOMIC ENERGY AUTHORITY,UNITED KINGDOM ATOMIC ENERGY AUTHORITY,31/01/2013,MILEAGE ALLOWANCE,FUSION,EMPLOYEE EXPENSES,100675812,62.00,,
UNITED KINGDOM ATOMIC ENERGY AUTHORITY,UNITED KINGDOM ATOMIC ENERGY AUTHORITY,02/02/2013,MILEAGE ALLOWANCE,FUSION,EMPLOYEE EXPENSES,100675928,59.20,,
UNITED KINGDOM ATOMIC ENERGY AUTHORITY,UNITED KINGDOM ATOMIC ENERGY AUTHORITY,07/02/2013,MILEAGE ALLOWANCE,FUSION,EMPLOYEE EXPENSES,100675978,59.20,,
UNITED KINGDOM ATOMIC ENERGY AUTHORITY,UNITED KINGDOM ATOMIC ENERGY AUTHORITY,09/02/2013,MILEAGE ALLOWANCE,FUSION,EMPLOYEE EXPENSES,100676033,62.00,,
UNITED KINGDOM ATOMIC ENERGY AUTHORITY,UNITED KINGDOM ATOMIC ENERGY AUTHORITY,14/02/2013,MILEAGE ALLOWANCE,FUSION,EMPLOYEE EXPENSES,100676064,59.20,,
UNITED KINGDOM ATOMIC ENERGY AUTHORITY,UNITED KINGDOM ATOMIC ENERGY AUTHORITY,14/02/2013,MILEAGE ALLOWANCE,FUSION,EMPLOYEE EXPENSES,100676066,62.00,,
UNITED KINGDOM ATOMIC ENERGY AUTHORITY,UNITED KINGDOM ATOMIC ENERGY AUTHORITY,21/02/2013,MILEAGE ALLOWANCE,FUSION,EMPLOYEE EXPENSES,100678478,59.20,,
UNITED KINGDOM ATOMIC ENERGY AUTHORITY,UNITED KINGDOM ATOMIC ENERGY AUTHORITY,21/02/2013,MILEAGE ALLOWANCE,FUSION,EMPLOYEE EXPENSES,100678483,62.00,,
UNITED KINGDOM ATOMIC ENERGY AUTHORITY,UNITED KINGDOM ATOMIC ENERGY AUTHORITY,09/02/2013,RAIL TRAVEL,FUSION,EMPLOYEE EXPENSES,100676032,9.40,,
UNITED KINGDOM ATOMIC ENERGY AUTHORITY,UNITED KINGDOM ATOMIC ENERGY AUTHORITY,09/02/2013,ROAD TRAVEL,FUSION,EMPLOYEE EXPENSES,100676032,7.90,,
UNITED KINGDOM ATOMIC ENERGY AUTHORITY,UNITED KINGDOM ATOMIC ENERGY AUTHORITY,02/02/2013,PROFESSIONAL SUBSCRIPTION,FUSION,EMPLOYEE EXPENSES,100675923,133.00,,
UNITED KINGDOM ATOMIC ENERGY AUTHORITY,UNITED KINGDOM ATOMIC ENERGY AUTHORITY,11/02/2013,GASES,FUSION,BOC LTD,5100284495,179.25,,
UNITED KINGDOM ATOMIC ENERGY AUTHORITY,UNITED KINGDOM ATOMIC ENERGY AUTHORITY,28/01/2013,GASES,FUSION,AIR PRODUCTS PLC,5100284554,18.91,,
UNITED KINGDOM ATOMIC ENERGY AUTHORITY,UNITED KINGDOM ATOMIC ENERGY AUTHORITY,28/01/2013,MATERIALS & SPARES,FUSION,RS COMPONENTS LTD,5100284713,282.12,,
UNITED KINGDOM ATOMIC ENERGY AUTHORITY,UNITED KINGDOM ATOMIC ENERGY AUTHORITY,05/02/2013,MATERIALS & SPARES,FUSION,RS COMPONENTS LTD,5100284744,43.2,,
UNITED KINGDOM ATOMIC ENERGY AUTHORITY,UNITED KINGDOM ATOMIC ENERGY AUTHORITY,05/02/2013,MATERIALS & SPARES,FUSION,RS COMPONENTS LTD,5100284757,203.42,,
UNITED KINGDOM ATOMIC ENERGY AUTHORITY,UNITED KINGDOM ATOMIC ENERGY AUTHORITY,05/02/2013,MATERIALS & SPARES,FUSION,FARNELL ELECTRONIC,5100284879,18.99,,
UNITED KINGDOM ATOMIC ENERGY AUTHORITY,UNITED KINGDOM ATOMIC ENERGY AUTHORITY,05/02/2013,MATERIALS & SPARES,FUSION,FARNELL ELECTRONIC,5100284901,97.32,,
UNITED KINGDOM ATOMIC ENERGY AUTHORITY,UNITED KINGDOM ATOMIC ENERGY AUTHORITY,05/02/2013,MATERIALS & SPARES,FUSION,FARNELL ELECTRONIC,5100284946,11.81,,
UNITED KINGDOM ATOMIC ENERGY AUTHORITY,UNITED KINGDOM ATOMIC ENERGY AUTHORITY,05/02/2013,MATERIALS & SPARES,FUSION,FARNELL ELECTRONIC,5100284947,12,,
UNITED KINGDOM ATOMIC ENERGY AUTHORITY,UNITED KINGDOM ATOMIC ENERGY AUTHORITY,11/02/2013,GASES,FUSION,BOC LTD,5100285023,31.2,,
UNITED KINGDOM ATOMIC ENERGY AUTHORITY,UNITED KINGDOM ATOMIC ENERGY AUTHORITY,11/02/2013,PLANT & EQUIPMENT,FUSION,NOR-CAL UK LTD,5100285031,108.5,,
UNITED KINGDOM ATOMIC ENERGY AUTHORITY,UNITED KINGDOM ATOMIC ENERGY AUTHORITY,18/02/2013,MATERIALS & SPARES,FUSION,ALR SERVICES,5100285041,375.28,,
UNITED KINGDOM ATOMIC ENERGY AUTHORITY,UNITED KINGDOM ATOMIC ENERGY AUTHORITY,11/02/2013,MATERIALS & SPARES,FUSION,RS COMPONENTS LTD,5100285211,13.86,,
UNITED KINGDOM ATOMIC ENERGY AUTHORITY,UNITED KINGDOM ATOMIC ENERGY AUTHORITY,11/02/2013,MATERIALS & SPARES,FUSION,RS COMPONENTS LTD,5100285219,126.62,,
UNITED KINGDOM ATOMIC ENERGY AUTHORITY,UNITED KINGDOM ATOMIC ENERGY AUTHORITY,11/02/2013,MATERIALS & SPARES,FUSION,RS COMPONENTS LTD,5100285232,57.11,,
UNITED KINGDOM ATOMIC ENERGY AUTHORITY,UNITED KINGDOM ATOMIC ENERGY AUTHORITY,11/02/2013,MATERIALS & SPARES,FUSION,RS COMPONENTS LTD,5100285252,208.7,,
UNITED KINGDOM ATOMIC ENERGY AUTHORITY,UNITED KINGDOM ATOMIC ENERGY AUTHORITY,11/02/2013,MATERIALS & SPARES,FUSION,RS COMPONENTS LTD,5100285330,159.89,,
UNITED KINGDOM ATOMIC ENERGY AUTHORITY,UNITED KINGDOM ATOMIC ENERGY AUTHORITY,18/02/2013,MATERIALS & SPARES,FUSION,SCREWFIX DIRECT LTD,5100285385,222.78,,
UNITED KINGDOM ATOMIC ENERGY AUTHORITY,UNITED KINGDOM ATOMIC ENERGY AUTHORITY,18/02/2013,MATERIALS & SPARES,FUSION,RS COMPONENTS LTD,5100285494,5.2,,
UNITED KINGDOM ATOMIC ENERGY AUTHORITY,UNITED KINGDOM ATOMIC ENERGY AUTHORITY,18/02/2013,MATERIALS & SPARES,FUSION,RS COMPONENTS LTD,5100285496,17.98,,
UNITED KINGDOM ATOMIC ENERGY AUTHORITY,UNITED KINGDOM ATOMIC ENERGY AUTHORITY,18/02/2013,MATERIALS & SPARES,FUSION,RS COMPONENTS LTD,5100285502,259.75,,
UNITED KINGDOM ATOMIC ENERGY AUTHORITY,UNITED KINGDOM ATOMIC ENERGY AUTHORITY,08/02/2013,PLANT & EQUIPMENT,FUSION,PURCHASE CARDS,100676007,"1,010.16",,
UNITED KINGDOM ATOMIC ENERGY AUTHORITY,UNITED KINGDOM ATOMIC ENERGY AUTHORITY,05/02/2013,MATERIALS & SPARES,FUSION,RS COMPONENTS LTD,5100284759,2.47,,
UNITED KINGDOM ATOMIC ENERGY AUTHORITY,UNITED KINGDOM ATOMIC ENERGY AUTHORITY,05/02/2013,MATERIALS & SPARES,FUSION,RS COMPONENTS LTD,5100284774,78.8,,
UNITED KINGDOM ATOMIC ENERGY AUTHORITY,UNITED KINGDOM ATOMIC ENERGY AUTHORITY,05/02/2013,MATERIALS & SPARES,FUSION,FARNELL ELECTRONIC,5100284902,153.59,,
UNITED KINGDOM ATOMIC ENERGY AUTHORITY,UNITED KINGDOM ATOMIC ENERGY AUTHORITY,05/02/2013,MATERIALS & SPARES,FUSION,FARNELL ELECTRONIC,5100284903,4.84,,
UNITED KINGDOM ATOMIC ENERGY AUTHORITY,UNITED KINGDOM ATOMIC ENERGY AUTHORITY,13/02/2013,BUILDING REPAIRS,FUSION,LORNE STEWART PLC,5100285092,25.7,,
UNITED KINGDOM ATOMIC ENERGY AUTHORITY,UNITED KINGDOM ATOMIC ENERGY AUTHORITY,11/02/2013,IT EQUIPMENT NON CAPITAL,FUSION,MAAINTECH,5100285129,1805.5,,
UNITED KINGDOM ATOMIC ENERGY AUTHORITY,UNITED KINGDOM ATOMIC ENERGY AUTHORITY,18/02/2013,MATERIALS & SPARES,FUSION,RS COMPONENTS LTD,5100285247,49.72,,
UNITED KINGDOM ATOMIC ENERGY AUTHORITY,UNITED KINGDOM ATOMIC ENERGY AUTHORITY,18/02/2013,MATERIALS & SPARES,FUSION,FARNELL ELECTRONIC,5100285317,3.77,,
UNITED KINGDOM ATOMIC ENERGY AUTHORITY,UNITED KINGDOM ATOMIC ENERGY AUTHORITY,18/02/2013,MATERIALS & SPARES,FUSION,SCREWFIX DIRECT LTD,5100285384,69.94,,
UNITED KINGDOM ATOMIC ENERGY AUTHORITY,UNITED KINGDOM ATOMIC ENERGY AUTHORITY,18/02/2013,MATERIALS & SPARES,FUSION,NEWBURY ELECTRONICS,5100285424,803.8,,
UNITED KINGDOM ATOMIC ENERGY AUTHORITY,UNITED KINGDOM ATOMIC ENERGY AUTHORITY,28/01/2013,PROFESSIONAL SERVICES,FUSION,SCIENTIFICS LTD,5100284270,167,,
UNITED KINGDOM ATOMIC ENERGY AUTHORITY,UNITED KINGDOM ATOMIC ENERGY AUTHORITY,13/02/2013,MATERIALS & SPARES,FUSION,FARNELL ELECTRONIC,5100284899,47.71,,
UNITED KINGDOM ATOMIC ENERGY AUTHORITY,UNITED KINGDOM ATOMIC ENERGY AUTHORITY,18/02/2013,PLANT & EQUIPMENT,FUSION,ATLANTIC MICROWAVE LTD,5100285181,83,,
UNITED KINGDOM ATOMIC ENERGY AUTHORITY,UNITED KINGDOM ATOMIC ENERGY AUTHORITY,11/02/2013,MATERIALS & SPARES,FUSION,RS COMPONENTS LTD,5100285275,44.62,,
UNITED KINGDOM ATOMIC ENERGY AUTHORITY,UNITED KINGDOM ATOMIC ENERGY AUTHORITY,18/02/2013,MATERIALS & SPARES,FUSION,RS COMPONENTS LTD,5100285293,590.66,,
UNITED KINGDOM ATOMIC ENERGY AUTHORITY,UNITED KINGDOM ATOMIC ENERGY AUTHORITY,11/02/2013,MATERIALS & SPARES,FUSION,RS COMPONENTS LTD,5100285333,262.15,,
UNITED KINGDOM ATOMIC ENERGY AUTHORITY,UNITED KINGDOM ATOMIC ENERGY AUTHORITY,18/02/2013,PERSONAL PROTECTIVE EQUIPMENT,FUSION,ARCO LTD,5100285373,38.39,,
UNITED KINGDOM ATOMIC ENERGY AUTHORITY,UNITED KINGDOM ATOMIC ENERGY AUTHORITY,18/02/2013,MATERIALS & SPARES,FUSION,BROWNELL LTD,5100285515,142.5,,
UNITED KINGDOM ATOMIC ENERGY AUTHORITY,UNITED KINGDOM ATOMIC ENERGY AUTHORITY,05/02/2013,PERSONAL PROTECTIVE EQUIPMENT,FUSION,ARCO LTD,5100283954,247.96,,
UNITED KINGDOM ATOMIC ENERGY AUTHORITY,UNITED KINGDOM ATOMIC ENERGY AUTHORITY,30/01/2013,MATERIALS & SPARES,FUSION,RS COMPONENTS LTD,5100284134,3.96,,
UNITED KINGDOM ATOMIC ENERGY AUTHORITY,UNITED KINGDOM ATOMIC ENERGY AUTHORITY,28/01/2013,GASES,FUSION,BOC LTD,5100284162,21160,,
UNITED KINGDOM ATOMIC ENERGY AUTHORITY,UNITED KINGDOM ATOMIC ENERGY AUTHORITY,30/01/2013,GASES,FUSION,BOC LTD,5100284493,505.2,,
UNITED KINGDOM ATOMIC ENERGY AUTHORITY,UNITED KINGDOM ATOMIC ENERGY AUTHORITY,28/01/2013,MATERIALS & SPARES,FUSION,CROMWELL LTD,5100284531,31.58,,
UNITED KINGDOM ATOMIC ENERGY AUTHORITY,UNITED KINGDOM ATOMIC ENERGY AUTHORITY,28/01/2013,PLANT & EQUIPMENT,FUSION,ROUTECO,5100284537,96.9,,
UNITED KINGDOM ATOMIC ENERGY AUTHORITY,UNITED KINGDOM ATOMIC ENERGY AUTHORITY,05/02/2013,PERSONAL PROTECTIVE EQUIPMENT,FUSION,ARCO LTD,5100284589,158.98,,
UNITED KINGDOM ATOMIC ENERGY AUTHORITY,UNITED KINGDOM ATOMIC ENERGY AUTHORITY,05/02/2013,GASES,FUSION,BOC LTD,5100284801,783.84,,
UNITED KINGDOM ATOMIC ENERGY AUTHORITY,UNITED KINGDOM ATOMIC ENERGY AUTHORITY,05/02/2013,PERSONAL PROTECTIVE EQUIPMENT,FUSION,ARCO LTD,5100284870,-247.96,,
UNITED KINGDOM ATOMIC ENERGY AUTHORITY,UNITED KINGDOM ATOMIC ENERGY AUTHORITY,18/02/2013,GASES,FUSION,BOC LTD,5100285020,255.6,,
UNITED KINGDOM ATOMIC ENERGY AUTHORITY,UNITED KINGDOM ATOMIC ENERGY AUTHORITY,18/02/2013,GASES,FUSION,BOC LTD,5100285168,272.64,,
UNITED KINGDOM ATOMIC ENERGY AUTHORITY,UNITED KINGDOM ATOMIC ENERGY AUTHORITY,11/02/2013,MATERIALS & SPARES,FUSION,RS COMPONENTS LTD,5100285234,72.42,,
UNITED KINGDOM ATOMIC ENERGY AUTHORITY,UNITED KINGDOM ATOMIC ENERGY AUTHORITY,20/02/2013,MATERIALS & SPARES,FUSION,PIPELINE PEOPLE.COM,5100285418,627.17,,
UNITED KINGDOM ATOMIC ENERGY AUTHORITY,UNITED KINGDOM ATOMIC ENERGY AUTHORITY,20/02/2013,MATERIALS & SPARES,FUSION,PIPELINE PEOPLE.COM,5100285426,138.54,,
UNITED KINGDOM ATOMIC ENERGY AUTHORITY,UNITED KINGDOM ATOMIC ENERGY AUTHORITY,18/02/2013,MATERIALS & SPARES,FUSION,RS COMPONENTS LTD,5100285505,152.1,,
UNITED KINGDOM ATOMIC ENERGY AUTHORITY,UNITED KINGDOM ATOMIC ENERGY AUTHORITY,18/02/2013,REPAIRS & MAINTENANCE,FUSION,Hydratron Ltd,5100285508,972.6,,
UNITED KINGDOM ATOMIC ENERGY AUTHORITY,UNITED KINGDOM ATOMIC ENERGY AUTHORITY,11/02/2013,MATERIALS & SPARES,FUSION,RS COMPONENTS LTD,5100285223,9.59,,
UNITED KINGDOM ATOMIC ENERGY AUTHORITY,UNITED KINGDOM ATOMIC ENERGY AUTHORITY,28/01/2013,MATERIALS & SPARES,FUSION,WOLSELEY UK LIMITED,5100284600,41.4,,
UNITED KINGDOM ATOMIC ENERGY AUTHORITY,UNITED KINGDOM ATOMIC ENERGY AUTHORITY,28/01/2013,MATERIALS & SPARES,FUSION,WOLSELEY UK LIMITED,5100284601,172.27,,
UNITED KINGDOM ATOMIC ENERGY AUTHORITY,UNITED KINGDOM ATOMIC ENERGY AUTHORITY,28/01/2013,MATERIALS & SPARES,FUSION,WOLSELEY UK LIMITED,5100284602,206.15,,
UNITED KINGDOM ATOMIC ENERGY AUTHORITY,UNITED KINGDOM ATOMIC ENERGY AUTHORITY,28/01/2013,MATERIALS & SPARES,FUSION,WOLSELEY UK LIMITED,5100284604,211.41,,
UNITED KINGDOM ATOMIC ENERGY AUTHORITY,UNITED KINGDOM ATOMIC ENERGY AUTHORITY,28/01/2013,PLANT SPARES,FUSION,A D INSTALLATION LTD,5100284656,238,,
UNITED KINGDOM ATOMIC ENERGY AUTHORITY,UNITED KINGDOM ATOMIC ENERGY AUTHORITY,28/01/2013,PLANT SPARES,FUSION,A D INSTALLATION LTD,5100284659,1860,,
UNITED KINGDOM ATOMIC ENERGY AUTHORITY,UNITED KINGDOM ATOMIC ENERGY AUTHORITY,05/02/2013,MATERIALS & SPARES,FUSION,RS COMPONENTS LTD,5100284772,68.08,,
UNITED KINGDOM ATOMIC ENERGY AUTHORITY,UNITED KINGDOM ATOMIC ENERGY AUTHORITY,05/02/2013,TREATED WATER,FUSION,B & V WATER TREATMENT,5100284839,1131.98,,
UNITED KINGDOM ATOMIC ENERGY AUTHORITY,UNITED KINGDOM ATOMIC ENERGY AUTHORITY,05/02/2013,MATERIALS & SPARES,FUSION,WOLSELEY UK LIMITED,5100284853,343,,
UNITED KINGDOM ATOMIC ENERGY AUTHORITY,UNITED KINGDOM ATOMIC ENERGY AUTHORITY,05/02/2013,MATERIALS & SPARES,FUSION,WEIR ENGINEERING SERVICES LTD,5100284876,9533.6,,
UNITED KINGDOM ATOMIC ENERGY AUTHORITY,UNITED KINGDOM ATOMIC ENERGY AUTHORITY,13/02/2013,MATERIALS & SPARES,FUSION,BSRIA INSTRUMENT SOLUTIONS,5100284927,530,,
UNITED KINGDOM ATOMIC ENERGY AUTHORITY,UNITED KINGDOM ATOMIC ENERGY AUTHORITY,05/02/2013,PERSONAL PROTECTIVE EQUIPMENT,FUSION,ARCO WESSEX,5100284977,78.82,,
UNITED KINGDOM ATOMIC ENERGY AUTHORITY,UNITED KINGDOM ATOMIC ENERGY AUTHORITY,05/02/2013,PERSONAL PROTECTIVE EQUIPMENT,FUSION,ARCO WESSEX,5100284979,78.82,,
UNITED KINGDOM ATOMIC ENERGY AUTHORITY,UNITED KINGDOM ATOMIC ENERGY AUTHORITY,11/02/2013,MATERIALS & SPARES,FUSION,WEIR ENGINEERING SERVICES LTD,5100285135,700,,
UNITED KINGDOM ATOMIC ENERGY AUTHORITY,UNITED KINGDOM ATOMIC ENERGY AUTHORITY,11/02/2013,MATERIALS & SPARES,FUSION,RS COMPONENTS LTD,5100285237,306.9,,
UNITED KINGDOM ATOMIC ENERGY AUTHORITY,UNITED KINGDOM ATOMIC ENERGY AUTHORITY,18/02/2013,MATERIALS & SPARES,FUSION,WOLSELEY UK LIMITED,5100285413,121.36,,
UNITED KINGDOM ATOMIC ENERGY AUTHORITY,UNITED KINGDOM ATOMIC ENERGY AUTHORITY,18/02/2013,MATERIALS & SPARES,FUSION,RS COMPONENTS LTD,5100285501,238.01,,
UNITED KINGDOM ATOMIC ENERGY AUTHORITY,UNITED KINGDOM ATOMIC ENERGY AUTHORITY,18/02/2013,MATERIALS & SPARES,FUSION,WOLSELEY UK LIMITED,5100285523,50.27,,
UNITED KINGDOM ATOMIC ENERGY AUTHORITY,UNITED KINGDOM ATOMIC ENERGY AUTHORITY,20/02/2013,MATERIALS & SPARES,FUSION,ROTARY EQUIPMENT SERVICES LTD,5100285527,5420,,
UNITED KINGDOM ATOMIC ENERGY AUTHORITY,UNITED KINGDOM ATOMIC ENERGY AUTHORITY,20/02/2013,MATERIALS & SPARES,FUSION,ROTARY EQUIPMENT SERVICES LTD,5100285532,1049,,
UNITED KINGDOM ATOMIC ENERGY AUTHORITY,UNITED KINGDOM ATOMIC ENERGY AUTHORITY,18/02/2013,MATERIALS & SPARES,FUSION,ERIKS UK,5100285535,102.62,,
UNITED KINGDOM ATOMIC ENERGY AUTHORITY,UNITED KINGDOM ATOMIC ENERGY AUTHORITY,28/01/2013,MATERIALS & SPARES,FUSION,NIGHTSEARCHER LTD,5100284567,118.06,,
UNITED KINGDOM ATOMIC ENERGY AUTHORITY,UNITED KINGDOM ATOMIC ENERGY AUTHORITY,28/01/2013,MATERIALS & SPARES,FUSION,TENSATOR LIMITED,5100284570,476,,
UNITED KINGDOM ATOMIC ENERGY AUTHORITY,UNITED KINGDOM ATOMIC ENERGY AUTHORITY,28/01/2013,MATERIALS & SPARES,FUSION,RS COMPONENTS LTD,5100284718,91.87,,
UNITED KINGDOM ATOMIC ENERGY AUTHORITY,UNITED KINGDOM ATOMIC ENERGY AUTHORITY,28/01/2013,CATERING,FUSION,AVENANCE PLC,5100284748,833.27,,
UNITED KINGDOM ATOMIC ENERGY AUTHORITY,UNITED KINGDOM ATOMIC ENERGY AUTHORITY,05/02/2013,PROFESSIONAL SERVICES,FUSION,JAMES FISHER INSPECTION AND,5100284934,4064,,
UNITED KINGDOM ATOMIC ENERGY AUTHORITY,UNITED KINGDOM ATOMIC ENERGY AUTHORITY,11/02/2013,PERSONAL PROTECTIVE EQUIPMENT,FUSION,ARCO WESSEX,5100285167,157.84,,
UNITED KINGDOM ATOMIC ENERGY AUTHORITY,UNITED KINGDOM ATOMIC ENERGY AUTHORITY,11/02/2013,MATERIALS & SPARES,FUSION,RS COMPONENTS LTD,5100285329,54.53,,
UNITED KINGDOM ATOMIC ENERGY AUTHORITY,UNITED KINGDOM ATOMIC ENERGY AUTHORITY,18/02/2013,PERSONAL PROTECTIVE EQUIPMENT,FUSION,ARCO WESSEX,5100285374,43.72,,
UNITED KINGDOM ATOMIC ENERGY AUTHORITY,UNITED KINGDOM ATOMIC ENERGY AUTHORITY,20/02/2013,MATERIALS & SPARES,FUSION,TENSATOR LIMITED,5100285717,320.8,,
UNITED KINGDOM ATOMIC ENERGY AUTHORITY,UNITED KINGDOM ATOMIC ENERGY AUTHORITY,08/02/2013,IT EQUIPMENT: NON CAPITAL,FUSION,PURCHASE CARDS,100675989,"1,178.63",,
UNITED KINGDOM ATOMIC ENERGY AUTHORITY,UNITED KINGDOM ATOMIC ENERGY AUTHORITY,30/01/2013,INTERVIEW EXPENSES,FUSION,INTERVIEW EXPENSES,1900057691,106.70,,
UNITED KINGDOM ATOMIC ENERGY AUTHORITY,UNITED KINGDOM ATOMIC ENERGY AUTHORITY,21/02/2013,SUBSISTENCE,FUSION,EMPLOYEE EXPENSES,100678491,22.50,,
UNITED KINGDOM ATOMIC ENERGY AUTHORITY,UNITED KINGDOM ATOMIC ENERGY AUTHORITY,23/02/2013,SUBSISTENCE,FUSION,EMPLOYEE EXPENSES,100678879,147.00,,
UNITED KINGDOM ATOMIC ENERGY AUTHORITY,UNITED KINGDOM ATOMIC ENERGY AUTHORITY,21/02/2013,RAIL TRAVEL,FUSION,EMPLOYEE EXPENSES,100678491,28.20,,
UNITED KINGDOM ATOMIC ENERGY AUTHORITY,UNITED KINGDOM ATOMIC ENERGY AUTHORITY,21/02/2013,ROAD TRAVEL,FUSION,EMPLOYEE EXPENSES,100678491,18.60,,
UNITED KINGDOM ATOMIC ENERGY AUTHORITY,UNITED KINGDOM ATOMIC ENERGY AUTHORITY,14/02/2013,PROFESSIONAL SUBSCRIPTION,FUSION,EMPLOYEE EXPENSES,100676054,115.00,,
UNITED KINGDOM ATOMIC ENERGY AUTHORITY,UNITED KINGDOM ATOMIC ENERGY AUTHORITY,23/02/2013,PROFESSIONAL SUBSCRIPTION,FUSION,EMPLOYEE EXPENSES,100678880,116.00,,
UNITED KINGDOM ATOMIC ENERGY AUTHORITY,UNITED KINGDOM ATOMIC ENERGY AUTHORITY,28/01/2013,GASES,FUSION,AIR PRODUCTS PLC,5100284553,18.91,,
UNITED KINGDOM ATOMIC ENERGY AUTHORITY,UNITED KINGDOM ATOMIC ENERGY AUTHORITY,28/01/2013,MATERIALS & SPARES,FUSION,FARNELL ELECTRONIC,5100284585,0.61,,
UNITED KINGDOM ATOMIC ENERGY AUTHORITY,UNITED KINGDOM ATOMIC ENERGY AUTHORITY,28/01/2013,MATERIALS & SPARES,FUSION,FARNELL ELECTRONIC,5100284620,83.74,,
UNITED KINGDOM ATOMIC ENERGY AUTHORITY,UNITED KINGDOM ATOMIC ENERGY AUTHORITY,30/01/2013,PLANT SPARES,FUSION,GD RECTIFIERS LTD,5100284728,345.75,,
UNITED KINGDOM ATOMIC ENERGY AUTHORITY,UNITED KINGDOM ATOMIC ENERGY AUTHORITY,05/02/2013,REPAIRS & MAINTENANCE,FUSION,TRESCAL LIMITED,5100284838,1295,,
UNITED KINGDOM ATOMIC ENERGY AUTHORITY,UNITED KINGDOM ATOMIC ENERGY AUTHORITY,05/02/2013,MATERIALS & SPARES,FUSION,FARNELL ELECTRONIC,5100284871,32.56,,
UNITED KINGDOM ATOMIC ENERGY AUTHORITY,UNITED KINGDOM ATOMIC ENERGY AUTHORITY,05/02/2013,MATERIALS & SPARES,FUSION,FARNELL ELECTRONIC,5100284873,146.24,,
UNITED KINGDOM ATOMIC ENERGY AUTHORITY,UNITED KINGDOM ATOMIC ENERGY AUTHORITY,05/02/2013,MATERIALS & SPARES,FUSION,FARNELL ELECTRONIC,5100284897,160.27,,
UNITED KINGDOM ATOMIC ENERGY AUTHORITY,UNITED KINGDOM ATOMIC ENERGY AUTHORITY,05/02/2013,PROFESSIONAL SERVICES,FUSION,CONNAUGHT COMPLIANCE SERVICES LTD,5100284925,190,,
UNITED KINGDOM ATOMIC ENERGY AUTHORITY,UNITED KINGDOM ATOMIC ENERGY AUTHORITY,05/02/2013,PROFESSIONAL SERVICES,FUSION,KITSONS ENVIRONMENTAL EUROPE LTD,5100284957,748.7,,
UNITED KINGDOM ATOMIC ENERGY AUTHORITY,UNITED KINGDOM ATOMIC ENERGY AUTHORITY,05/02/2013,GASES,FUSION,BOC LTD,5100284974,96.05,,
UNITED KINGDOM ATOMIC ENERGY AUTHORITY,UNITED KINGDOM ATOMIC ENERGY AUTHORITY,05/02/2013,GASES,FUSION,BOC LTD,5100284975,96.05,,
UNITED KINGDOM ATOMIC ENERGY AUTHORITY,UNITED KINGDOM ATOMIC ENERGY AUTHORITY,11/02/2013,MATERIALS & SPARES,FUSION,RS COMPONENTS LTD,5100285213,171.45,,
UNITED KINGDOM ATOMIC ENERGY AUTHORITY,UNITED KINGDOM ATOMIC ENERGY AUTHORITY,11/02/2013,MATERIALS & SPARES,FUSION,RS COMPONENTS LTD,5100285216,384.8,,
UNITED KINGDOM ATOMIC ENERGY AUTHORITY,UNITED KINGDOM ATOMIC ENERGY AUTHORITY,11/02/2013,MATERIALS & SPARES,FUSION,RS COMPONENTS LTD,5100285220,40.14,,
UNITED KINGDOM ATOMIC ENERGY AUTHORITY,UNITED KINGDOM ATOMIC ENERGY AUTHORITY,11/02/2013,MATERIALS & SPARES,FUSION,RS COMPONENTS LTD,5100285222,144.82,,
UNITED KINGDOM ATOMIC ENERGY AUTHORITY,UNITED KINGDOM ATOMIC ENERGY AUTHORITY,13/02/2013,GASES,FUSION,BOC LTD,5100285286,125.3,,
UNITED KINGDOM ATOMIC ENERGY AUTHORITY,UNITED KINGDOM ATOMIC ENERGY AUTHORITY,13/02/2013,MATERIALS & SPARES,FUSION,MOUSER ELECTRONICS,5100285337,101,,
UNITED KINGDOM ATOMIC ENERGY AUTHORITY,UNITED KINGDOM ATOMIC ENERGY AUTHORITY,18/02/2013,MATERIALS & SPARES,FUSION,BROWNELL LTD,5100285367,275,,
UNITED KINGDOM ATOMIC ENERGY AUTHORITY,UNITED KINGDOM ATOMIC ENERGY AUTHORITY,18/02/2013,MATERIALS & SPARES,FUSION,RS COMPONENTS LTD,5100285503,66.46,,
UNITED KINGDOM ATOMIC ENERGY AUTHORITY,UNITED KINGDOM ATOMIC ENERGY AUTHORITY,28/01/2013,MATERIALS & SPARES,FUSION,ECOMAL UK LTD,5100284505,2256.15,,
UNITED KINGDOM ATOMIC ENERGY AUTHORITY,UNITED KINGDOM ATOMIC ENERGY AUTHORITY,28/01/2013,MATERIALS & SPARES,FUSION,FARNELL ELECTRONIC,5100284606,199.16,,
UNITED KINGDOM ATOMIC ENERGY AUTHORITY,UNITED KINGDOM ATOMIC ENERGY AUTHORITY,28/01/2013,MATERIALS & SPARES,FUSION,FARNELL ELECTRONIC,5100284618,25.98,,
UNITED KINGDOM ATOMIC ENERGY AUTHORITY,UNITED KINGDOM ATOMIC ENERGY AUTHORITY,28/01/2013,MATERIALS & SPARES,FUSION,FARNELL ELECTRONIC,5100284619,113.6,,
UNITED KINGDOM ATOMIC ENERGY AUTHORITY,UNITED KINGDOM ATOMIC ENERGY AUTHORITY,28/01/2013,MATERIALS & SPARES,FUSION,FARNELL ELECTRONIC,5100284621,195.11,,
UNITED KINGDOM ATOMIC ENERGY AUTHORITY,UNITED KINGDOM ATOMIC ENERGY AUTHORITY,28/01/2013,MATERIALS & SPARES,FUSION,MARK 5,5100284661,39.99,,
UNITED KINGDOM ATOMIC ENERGY AUTHORITY,UNITED KINGDOM ATOMIC ENERGY AUTHORITY,30/01/2013,MATERIALS & SPARES,FUSION,HVR PENTAGON,5100284729,519.04,,
UNITED KINGDOM ATOMIC ENERGY AUTHORITY,UNITED KINGDOM ATOMIC ENERGY AUTHORITY,05/02/2013,MATERIALS & SPARES,FUSION,RS COMPONENTS LTD,5100284753,17.28,,
UNITED KINGDOM ATOMIC ENERGY AUTHORITY,UNITED KINGDOM ATOMIC ENERGY AUTHORITY,05/02/2013,MATERIALS & SPARES,FUSION,RS COMPONENTS LTD,5100284754,204.76,,
UNITED KINGDOM ATOMIC ENERGY AUTHORITY,UNITED KINGDOM ATOMIC ENERGY AUTHORITY,05/02/2013,MATERIALS & SPARES,FUSION,RS COMPONENTS LTD,5100284755,18.61,,
UNITED KINGDOM ATOMIC ENERGY AUTHORITY,UNITED KINGDOM ATOMIC ENERGY AUTHORITY,05/02/2013,MATERIALS & SPARES,FUSION,RS COMPONENTS LTD,5100284760,149.92,,
UNITED KINGDOM ATOMIC ENERGY AUTHORITY,UNITED KINGDOM ATOMIC ENERGY AUTHORITY,05/02/2013,MATERIALS & SPARES,FUSION,METALWEB,5100284832,108.11,,
UNITED KINGDOM ATOMIC ENERGY AUTHORITY,UNITED KINGDOM ATOMIC ENERGY AUTHORITY,05/02/2013,MATERIALS & SPARES,FUSION,FARNELL ELECTRONIC,5100284875,27.49,,
UNITED KINGDOM ATOMIC ENERGY AUTHORITY,UNITED KINGDOM ATOMIC ENERGY AUTHORITY,05/02/2013,MATERIALS & SPARES,FUSION,MARK 5,5100284878,86.19,,
UNITED KINGDOM ATOMIC ENERGY AUTHORITY,UNITED KINGDOM ATOMIC ENERGY AUTHORITY,05/02/2013,PLANT SPARES,FUSION,POWERSOLVE ELECTRONICS LTD,5100284880,596.62,,
UNITED KINGDOM ATOMIC ENERGY AUTHORITY,UNITED KINGDOM ATOMIC ENERGY AUTHORITY,05/02/2013,MATERIALS & SPARES,FUSION,FARNELL ELECTRONIC,5100284898,0.98,,
UNITED KINGDOM ATOMIC ENERGY AUTHORITY,UNITED KINGDOM ATOMIC ENERGY AUTHORITY,05/02/2013,MATERIALS & SPARES,FUSION,OXFORD BOLTS & BEARINGS,5100284936,14.82,,
UNITED KINGDOM ATOMIC ENERGY AUTHORITY,UNITED KINGDOM ATOMIC ENERGY AUTHORITY,11/02/2013,MATERIALS & SPARES,FUSION,FARNELL ELECTRONIC,5100284948,204.48,,
UNITED KINGDOM ATOMIC ENERGY AUTHORITY,UNITED KINGDOM ATOMIC ENERGY AUTHORITY,05/02/2013,MATERIALS & SPARES,FUSION,FARNELL ELECTRONIC,5100284949,68.35,,
UNITED KINGDOM ATOMIC ENERGY AUTHORITY,UNITED KINGDOM ATOMIC ENERGY AUTHORITY,05/02/2013,MATERIALS & SPARES,FUSION,FARNELL ELECTRONIC,5100284950,188.83,,
UNITED KINGDOM ATOMIC ENERGY AUTHORITY,UNITED KINGDOM ATOMIC ENERGY AUTHORITY,11/02/2013,PLANT & EQUIPMENT,FUSION,YOKOGAWA MEASUREMENT TECHNOLOGIES,5100285170,246.65,,
UNITED KINGDOM ATOMIC ENERGY AUTHORITY,UNITED KINGDOM ATOMIC ENERGY AUTHORITY,11/02/2013,MATERIALS & SPARES,FUSION,KEY INDUSTRIAL EQUIPMENT LTD,5100285172,160.55,,
UNITED KINGDOM ATOMIC ENERGY AUTHORITY,UNITED KINGDOM ATOMIC ENERGY AUTHORITY,07/02/2013,PLANT & EQUIPMENT,FUSION,H L HYDRAULIK GMBH,5100285196,-7336.52,,
UNITED KINGDOM ATOMIC ENERGY AUTHORITY,UNITED KINGDOM ATOMIC ENERGY AUTHORITY,07/02/2013,PLANT & EQUIPMENT,FUSION,H L HYDRAULIK GMBH,5100285197,-996.12,,
UNITED KINGDOM ATOMIC ENERGY AUTHORITY,UNITED KINGDOM ATOMIC ENERGY AUTHORITY,07/02/2013,PLANT & EQUIPMENT,FUSION,H L HYDRAULIK GMBH,5100285206,7336.52,,
UNITED KINGDOM ATOMIC ENERGY AUTHORITY,UNITED KINGDOM ATOMIC ENERGY AUTHORITY,07/02/2013,PLANT & EQUIPMENT,FUSION,H L HYDRAULIK GMBH,5100285207,996.12,,
UNITED KINGDOM ATOMIC ENERGY AUTHORITY,UNITED KINGDOM ATOMIC ENERGY AUTHORITY,20/02/2013,PLANT & EQUIPMENT,FUSION,H L HYDRAULIK GMBH,5100285209,2616.64,,
UNITED KINGDOM ATOMIC ENERGY AUTHORITY,UNITED KINGDOM ATOMIC ENERGY AUTHORITY,11/02/2013,MATERIALS & SPARES,FUSION,RS COMPONENTS LTD,5100285221,122.58,,
UNITED KINGDOM ATOMIC ENERGY AUTHORITY,UNITED KINGDOM ATOMIC ENERGY AUTHORITY,11/02/2013,MATERIALS & SPARES,FUSION,RS COMPONENTS LTD,5100285228,76.09,,
UNITED KINGDOM ATOMIC ENERGY AUTHORITY,UNITED KINGDOM ATOMIC ENERGY AUTHORITY,11/02/2013,MATERIALS & SPARES,FUSION,RS COMPONENTS LTD,5100285233,21.52,,
UNITED KINGDOM ATOMIC ENERGY AUTHORITY,UNITED KINGDOM ATOMIC ENERGY AUTHORITY,11/02/2013,MATERIALS & SPARES,FUSION,RS COMPONENTS LTD,5100285256,110.56,,
UNITED KINGDOM ATOMIC ENERGY AUTHORITY,UNITED KINGDOM ATOMIC ENERGY AUTHORITY,11/02/2013,MATERIALS & SPARES,FUSION,FARNELL ELECTRONIC,5100285323,0.87,,
UNITED KINGDOM ATOMIC ENERGY AUTHORITY,UNITED KINGDOM ATOMIC ENERGY AUTHORITY,11/02/2013,MATERIALS & SPARES,FUSION,FARNELL ELECTRONIC,5100285324,115.76,,
UNITED KINGDOM ATOMIC ENERGY AUTHORITY,UNITED KINGDOM ATOMIC ENERGY AUTHORITY,11/02/2013,MATERIALS & SPARES,FUSION,RS COMPONENTS LTD,5100285334,60.95,,
UNITED KINGDOM ATOMIC ENERGY AUTHORITY,UNITED KINGDOM ATOMIC ENERGY AUTHORITY,18/02/2013,MATERIALS & SPARES,FUSION,FILTER TECHNOLOGY LTD,5100285417,1823,,
UNITED KINGDOM ATOMIC ENERGY AUTHORITY,UNITED KINGDOM ATOMIC ENERGY AUTHORITY,18/02/2013,PLANT & EQUIPMENT,FUSION,HES SALES UK LTD,5100285482,100,,
UNITED KINGDOM ATOMIC ENERGY AUTHORITY,UNITED KINGDOM ATOMIC ENERGY AUTHORITY,28/01/2013,MATERIALS & SPARES,FUSION,PI PHYSIKE INSTRUMENTE,5100283990,208,,
UNITED KINGDOM ATOMIC ENERGY AUTHORITY,UNITED KINGDOM ATOMIC ENERGY AUTHORITY,08/02/2013,TRAINING COSTS,FUSION,UNIVERSITY OF THE WEST OF ENGLAND,5100284215,-1734,,
UNITED KINGDOM ATOMIC ENERGY AUTHORITY,UNITED KINGDOM ATOMIC ENERGY AUTHORITY,08/02/2013,TRAINING COSTS,FUSION,UNIVERSITY OF THE WEST OF ENGLAND,5100284216,1530,,
UNITED KINGDOM ATOMIC ENERGY AUTHORITY,UNITED KINGDOM ATOMIC ENERGY AUTHORITY,06/02/2013,PLANT & EQUIPMENT,FUSION,WINLIGHT SYSTEM SA,5100284466,39012.67,,
UNITED KINGDOM ATOMIC ENERGY AUTHORITY,UNITED KINGDOM ATOMIC ENERGY AUTHORITY,28/01/2013,PROFESSIONAL SERVICES,FUSION,MKS INSTRUMENT UK LIMITED,5100284482,415,,
UNITED KINGDOM ATOMIC ENERGY AUTHORITY,UNITED KINGDOM ATOMIC ENERGY AUTHORITY,28/01/2013,MATERIALS & SPARES,FUSION,SCHROFF UK LTD,5100284545,385.4,,
UNITED KINGDOM ATOMIC ENERGY AUTHORITY,UNITED KINGDOM ATOMIC ENERGY AUTHORITY,28/01/2013,MATERIALS & SPARES,FUSION,COMAR INSTRUMENTS,5100284569,493.5,,
UNITED KINGDOM ATOMIC ENERGY AUTHORITY,UNITED KINGDOM ATOMIC ENERGY AUTHORITY,30/01/2013,MATERIALS & SPARES,FUSION,MILLITECH INC,5100284680,9569.37,,
UNITED KINGDOM ATOMIC ENERGY AUTHORITY,UNITED KINGDOM ATOMIC ENERGY AUTHORITY,28/01/2013,PERSONAL PROTECTIVE EQUIPMENT,FUSION,ARCO WESSEX,5100284683,39.72,,
UNITED KINGDOM ATOMIC ENERGY AUTHORITY,UNITED KINGDOM ATOMIC ENERGY AUTHORITY,30/01/2013,MATERIALS & SPARES,FUSION,NEWBURY ELECTRONICS,5100284689,464,,
UNITED KINGDOM ATOMIC ENERGY AUTHORITY,UNITED KINGDOM ATOMIC ENERGY AUTHORITY,28/01/2013,MATERIALS & SPARES,FUSION,RS COMPONENTS LTD,5100284716,10.02,,
UNITED KINGDOM ATOMIC ENERGY AUTHORITY,UNITED KINGDOM ATOMIC ENERGY AUTHORITY,05/02/2013,MATERIALS & SPARES,FUSION,RS COMPONENTS LTD,5100284756,20.16,,
UNITED KINGDOM ATOMIC ENERGY AUTHORITY,UNITED KINGDOM ATOMIC ENERGY AUTHORITY,05/02/2013,MATERIALS & SPARES,FUSION,RS COMPONENTS LTD,5100284770,272.33,,
UNITED KINGDOM ATOMIC ENERGY AUTHORITY,UNITED KINGDOM ATOMIC ENERGY AUTHORITY,05/02/2013,F&F,FUSION,EFG MATTHEWS OFFICE FURNITURE LTD,5100284793,552.8,,
UNITED KINGDOM ATOMIC ENERGY AUTHORITY,UNITED KINGDOM ATOMIC ENERGY AUTHORITY,05/02/2013,MATERIALS & SPARES,FUSION,EDMUND OPTICS LTD,5100284830,26.6,,
UNITED KINGDOM ATOMIC ENERGY AUTHORITY,UNITED KINGDOM ATOMIC ENERGY AUTHORITY,05/02/2013,MATERIALS & SPARES,FUSION,SCHROFF UK LTD,5100284835,58.4,,
UNITED KINGDOM ATOMIC ENERGY AUTHORITY,UNITED KINGDOM ATOMIC ENERGY AUTHORITY,05/02/2013,PLANT & EQUIPMENT,FUSION,A K STEEL LTD,5100284864,468.61,,
UNITED KINGDOM ATOMIC ENERGY AUTHORITY,UNITED KINGDOM ATOMIC ENERGY AUTHORITY,05/02/2013,MATERIALS & SPARES,FUSION,EDMUND OPTICS LTD,5100284963,15.6,,
UNITED KINGDOM ATOMIC ENERGY AUTHORITY,UNITED KINGDOM ATOMIC ENERGY AUTHORITY,13/02/2013,PROFESSIONAL SERVICES,FUSION,SWAGELOK LONDON,5100285158,69.58,,
UNITED KINGDOM ATOMIC ENERGY AUTHORITY,UNITED KINGDOM ATOMIC ENERGY AUTHORITY,11/02/2013,MATERIALS & SPARES,FUSION,RS COMPONENTS LTD,5100285229,141.38,,
UNITED KINGDOM ATOMIC ENERGY AUTHORITY,UNITED KINGDOM ATOMIC ENERGY AUTHORITY,18/02/2013,MATERIALS & SPARES,FUSION,RS COMPONENTS LTD,5100285230,178.88,,
UNITED KINGDOM ATOMIC ENERGY AUTHORITY,UNITED KINGDOM ATOMIC ENERGY AUTHORITY,18/02/2013,MATERIALS & SPARES,FUSION,RS COMPONENTS LTD,5100285241,10.71,,
UNITED KINGDOM ATOMIC ENERGY AUTHORITY,UNITED KINGDOM ATOMIC ENERGY AUTHORITY,11/02/2013,MATERIALS & SPARES,FUSION,RS COMPONENTS LTD,5100285249,27.82,,
UNITED KINGDOM ATOMIC ENERGY AUTHORITY,UNITED KINGDOM ATOMIC ENERGY AUTHORITY,11/02/2013,MATERIALS & SPARES,FUSION,RS COMPONENTS LTD,5100285251,18.08,,
UNITED KINGDOM ATOMIC ENERGY AUTHORITY,UNITED KINGDOM ATOMIC ENERGY AUTHORITY,13/02/2013,PLANT & EQUIPMENT,FUSION,CANBERRA UK LIMITED,5100285254,14754,,
UNITED KINGDOM ATOMIC ENERGY AUTHORITY,UNITED KINGDOM ATOMIC ENERGY AUTHORITY,11/02/2013,MATERIALS & SPARES,FUSION,RS COMPONENTS LTD,5100285263,9.71,,
UNITED KINGDOM ATOMIC ENERGY AUTHORITY,UNITED KINGDOM ATOMIC ENERGY AUTHORITY,13/02/2013,MATERIALS & SPARES,FUSION,DURBIN METAL INDUSTRIES LTD,5100285269,108.5,,
UNITED KINGDOM ATOMIC ENERGY AUTHORITY,UNITED KINGDOM ATOMIC ENERGY AUTHORITY,13/02/2013,MATERIALS & SPARES,FUSION,DURBIN METAL INDUSTRIES LTD,5100285270,43.45,,
UNITED KINGDOM ATOMIC ENERGY AUTHORITY,UNITED KINGDOM ATOMIC ENERGY AUTHORITY,13/02/2013,MATERIALS & SPARES,FUSION,DURBIN METAL INDUSTRIES LTD,5100285271,76.75,,
UNITED KINGDOM ATOMIC ENERGY AUTHORITY,UNITED KINGDOM ATOMIC ENERGY AUTHORITY,11/02/2013,MATERIALS & SPARES,FUSION,RS COMPONENTS LTD,5100285279,161.28,,
UNITED KINGDOM ATOMIC ENERGY AUTHORITY,UNITED KINGDOM ATOMIC ENERGY AUTHORITY,20/02/2013,GASES,FUSION,BOC LTD,5100285284,49.29,,
UNITED KINGDOM ATOMIC ENERGY AUTHORITY,UNITED KINGDOM ATOMIC ENERGY AUTHORITY,11/02/2013,MATERIALS & SPARES,FUSION,RS COMPONENTS LTD,5100285290,92.64,,
UNITED KINGDOM ATOMIC ENERGY AUTHORITY,UNITED KINGDOM ATOMIC ENERGY AUTHORITY,08/02/2013,TRAINING COSTS,FUSION,UNIVERSITY OF THE WEST OF ENGLAND,5100285306,-1800,,
UNITED KINGDOM ATOMIC ENERGY AUTHORITY,UNITED KINGDOM ATOMIC ENERGY AUTHORITY,08/02/2013,TRAINING COSTS,FUSION,UNIVERSITY OF THE WEST OF ENGLAND,5100285307,1350,,
UNITED KINGDOM ATOMIC ENERGY AUTHORITY,UNITED KINGDOM ATOMIC ENERGY AUTHORITY,11/02/2013,MATERIALS & SPARES,FUSION,FARNELL ELECTRONIC,5100285320,130.05,,
UNITED KINGDOM ATOMIC ENERGY AUTHORITY,UNITED KINGDOM ATOMIC ENERGY AUTHORITY,11/02/2013,MATERIALS & SPARES,FUSION,FARNELL ELECTRONIC,5100285322,21.84,,
UNITED KINGDOM ATOMIC ENERGY AUTHORITY,UNITED KINGDOM ATOMIC ENERGY AUTHORITY,20/02/2013,MATERIALS & SPARES,FUSION,RS COMPONENTS LTD,5100285335,8.15,,
UNITED KINGDOM ATOMIC ENERGY AUTHORITY,UNITED KINGDOM ATOMIC ENERGY AUTHORITY,18/02/2013,MATERIALS & SPARES,FUSION,THORLABS LTD,5100285358,83.52,,
UNITED KINGDOM ATOMIC ENERGY AUTHORITY,UNITED KINGDOM ATOMIC ENERGY AUTHORITY,18/02/2013,MATERIALS & SPARES,FUSION,WATLOW LTD,5100285372,168.4,,
UNITED KINGDOM ATOMIC ENERGY AUTHORITY,UNITED KINGDOM ATOMIC ENERGY AUTHORITY,20/02/2013,PLANT & EQUIPMENT,FUSION,SPS Electronic GmbH,5100285414,1409.3,,
UNITED KINGDOM ATOMIC ENERGY AUTHORITY,UNITED KINGDOM ATOMIC ENERGY AUTHORITY,20/02/2013,PROFESSIONAL SERVICES,FUSION,KFKI,5100285415,928.84,,
UNITED KINGDOM ATOMIC ENERGY AUTHORITY,UNITED KINGDOM ATOMIC ENERGY AUTHORITY,18/02/2013,MATERIALS & SPARES,FUSION,Lasermet Ltd,5100285421,2050,,
UNITED KINGDOM ATOMIC ENERGY AUTHORITY,UNITED KINGDOM ATOMIC ENERGY AUTHORITY,18/02/2013,CAR HIRE,FUSION,LEASEDRIVE VELO,5100285428,36.44,,
UNITED KINGDOM ATOMIC ENERGY AUTHORITY,UNITED KINGDOM ATOMIC ENERGY AUTHORITY,18/02/2013,MATERIALS & SPARES,FUSION,RITTAL,5100285437,390,,
UNITED KINGDOM ATOMIC ENERGY AUTHORITY,UNITED KINGDOM ATOMIC ENERGY AUTHORITY,18/02/2013,GASES,FUSION,BOC LTD,5100285464,340.19,,
UNITED KINGDOM ATOMIC ENERGY AUTHORITY,UNITED KINGDOM ATOMIC ENERGY AUTHORITY,18/02/2013,GASES,FUSION,BOC LTD,5100285467,800.06,,
UNITED KINGDOM ATOMIC ENERGY AUTHORITY,UNITED KINGDOM ATOMIC ENERGY AUTHORITY,20/02/2013,MATERIALS & SPARES,FUSION,OXFORD ENGINEERING LTD,5100285471,580,,
UNITED KINGDOM ATOMIC ENERGY AUTHORITY,UNITED KINGDOM ATOMIC ENERGY AUTHORITY,18/02/2013,MATERIALS & SPARES,FUSION,RS COMPONENTS LTD,5100285497,95.82,,
UNITED KINGDOM ATOMIC ENERGY AUTHORITY,UNITED KINGDOM ATOMIC ENERGY AUTHORITY,08/02/2013,TAXIS,FUSION,VISITOR EXPENSES,1900057715,23.40,,
UNITED KINGDOM ATOMIC ENERGY AUTHORITY,UNITED KINGDOM ATOMIC ENERGY AUTHORITY,02/02/2013,SUBSISTENCE,FUSION,EMPLOYEE EXPENSES,100675929,80.98,,
UNITED KINGDOM ATOMIC ENERGY AUTHORITY,UNITED KINGDOM ATOMIC ENERGY AUTHORITY,31/01/2013,MILEAGE ALLOWANCE,FUSION,EMPLOYEE EXPENSES,100675809,48.40,,
UNITED KINGDOM ATOMIC ENERGY AUTHORITY,UNITED KINGDOM ATOMIC ENERGY AUTHORITY,02/02/2013,MILEAGE ALLOWANCE,FUSION,EMPLOYEE EXPENSES,100675926,48.40,,
UNITED KINGDOM ATOMIC ENERGY AUTHORITY,UNITED KINGDOM ATOMIC ENERGY AUTHORITY,09/02/2013,MILEAGE ALLOWANCE,FUSION,EMPLOYEE EXPENSES,100676031,48.40,,
UNITED KINGDOM ATOMIC ENERGY AUTHORITY,UNITED KINGDOM ATOMIC ENERGY AUTHORITY,21/02/2013,MILEAGE ALLOWANCE,FUSION,EMPLOYEE EXPENSES,100678474,48.40,,
UNITED KINGDOM ATOMIC ENERGY AUTHORITY,UNITED KINGDOM ATOMIC ENERGY AUTHORITY,02/02/2013,ROAD TRAVEL,FUSION,EMPLOYEE EXPENSES,100675929,5.72,,
UNITED KINGDOM ATOMIC ENERGY AUTHORITY,UNITED KINGDOM ATOMIC ENERGY AUTHORITY,08/02/2013,PLANT & EQUIPMENT,FUSION,PURCHASE CARDS,100675991,"1,962.50",,
UNITED KINGDOM ATOMIC ENERGY AUTHORITY,UNITED KINGDOM ATOMIC ENERGY AUTHORITY,11/02/2013,FACILITIES MANAGEMENT,FUSION,ISS FACILITIES SERVICES,5100284041,156.35,,
UNITED KINGDOM ATOMIC ENERGY AUTHORITY,UNITED KINGDOM ATOMIC ENERGY AUTHORITY,28/01/2013,SOFTWARE,FUSION,Q ASSOCIATES LTD,5100284540,589.96,,
UNITED KINGDOM ATOMIC ENERGY AUTHORITY,UNITED KINGDOM ATOMIC ENERGY AUTHORITY,11/02/2013,IT EQUIPMENT NON CAPITAL,FUSION,AZTEX SOLUTIONS LIMITED,5100284628,9541.01,,
UNITED KINGDOM ATOMIC ENERGY AUTHORITY,UNITED KINGDOM ATOMIC ENERGY AUTHORITY,05/02/2013,IT EQUIPMENT NON CAPITAL,FUSION,BLUEFORT SECURITY,5100284829,874,,
UNITED KINGDOM ATOMIC ENERGY AUTHORITY,UNITED KINGDOM ATOMIC ENERGY AUTHORITY,11/02/2013,FACILITIES MANAGEMENT,FUSION,ISS FACILITIES SERVICES,5100285122,156.35,,
UNITED KINGDOM ATOMIC ENERGY AUTHORITY,UNITED KINGDOM ATOMIC ENERGY AUTHORITY,18/02/2013,SOFTWARE,FUSION,SDC SYSTEMS LIMITED,5100285409,7122,,
UNITED KINGDOM ATOMIC ENERGY AUTHORITY,UNITED KINGDOM ATOMIC ENERGY AUTHORITY,18/02/2013,IT EQUIPMENT NON CAPITAL,FUSION,GIGASTREAM,5100285416,500,,
UNITED KINGDOM ATOMIC ENERGY AUTHORITY,UNITED KINGDOM ATOMIC ENERGY AUTHORITY,18/02/2013,REPAIRS & MAINTENANCE,FUSION,ASAP Computer Services,5100285507,410,,
UNITED KINGDOM ATOMIC ENERGY AUTHORITY,UNITED KINGDOM ATOMIC ENERGY AUTHORITY,28/01/2013,IT EQUIPMENT NON CAPITAL,FUSION,SCAN COMPUTERS INTERNATIONAL LTD,5100284575,4035.64,,
UNITED KINGDOM ATOMIC ENERGY AUTHORITY,UNITED KINGDOM ATOMIC ENERGY AUTHORITY,28/01/2013,MATERIALS & SPARES,FUSION,FARNELL ELECTRONIC,5100284622,41.07,,
UNITED KINGDOM ATOMIC ENERGY AUTHORITY,UNITED KINGDOM ATOMIC ENERGY AUTHORITY,28/01/2013,MATERIALS & SPARES,FUSION,FARNELL ELECTRONIC,5100284623,29.2,,
UNITED KINGDOM ATOMIC ENERGY AUTHORITY,UNITED KINGDOM ATOMIC ENERGY AUTHORITY,28/01/2013,MATERIALS & SPARES,FUSION,MOUSER ELECTRONICS,5100284647,51,,
UNITED KINGDOM ATOMIC ENERGY AUTHORITY,UNITED KINGDOM ATOMIC ENERGY AUTHORITY,28/01/2013,MATERIALS & SPARES,FUSION,UNDERWOODS ELECTRICAL DISTRIBUTORS,5100284695,735.15,,
UNITED KINGDOM ATOMIC ENERGY AUTHORITY,UNITED KINGDOM ATOMIC ENERGY AUTHORITY,05/02/2013,MATERIALS & SPARES,FUSION,FARNELL ELECTRONIC,5100284877,107.64,,
UNITED KINGDOM ATOMIC ENERGY AUTHORITY,UNITED KINGDOM ATOMIC ENERGY AUTHORITY,05/02/2013,MATERIALS & SPARES,FUSION,FARNELL ELECTRONIC,5100284900,88.58,,
UNITED KINGDOM ATOMIC ENERGY AUTHORITY,UNITED KINGDOM ATOMIC ENERGY AUTHORITY,11/02/2013,IT EQUIPMENT NON CAPITAL,FUSION,MAAINTECH,5100284914,4269,,
UNITED KINGDOM ATOMIC ENERGY AUTHORITY,UNITED KINGDOM ATOMIC ENERGY AUTHORITY,05/02/2013,MATERIALS & SPARES,FUSION,FARNELL ELECTRONIC,5100284954,93,,
UNITED KINGDOM ATOMIC ENERGY AUTHORITY,UNITED KINGDOM ATOMIC ENERGY AUTHORITY,05/02/2013,MATERIALS & SPARES,FUSION,FARNELL ELECTRONIC,5100284955,22.42,,
UNITED KINGDOM ATOMIC ENERGY AUTHORITY,UNITED KINGDOM ATOMIC ENERGY AUTHORITY,05/02/2013,MATERIALS & SPARES,FUSION,FARNELL ELECTRONIC,5100284956,13.84,,
UNITED KINGDOM ATOMIC ENERGY AUTHORITY,UNITED KINGDOM ATOMIC ENERGY AUTHORITY,11/02/2013,REPAIRS & MAINTENANCE,FUSION,NORTHERN DRIVES & CONTROLS,5100285137,244.53,,
UNITED KINGDOM ATOMIC ENERGY AUTHORITY,UNITED KINGDOM ATOMIC ENERGY AUTHORITY,11/02/2013,REPAIRS & MAINTENANCE,FUSION,NORTHERN DRIVES & CONTROLS,5100285140,244.53,,
UNITED KINGDOM ATOMIC ENERGY AUTHORITY,UNITED KINGDOM ATOMIC ENERGY AUTHORITY,11/02/2013,REPAIRS & MAINTENANCE,FUSION,NORTHERN DRIVES & CONTROLS,5100285141,244.53,,
UNITED KINGDOM ATOMIC ENERGY AUTHORITY,UNITED KINGDOM ATOMIC ENERGY AUTHORITY,11/02/2013,REPAIRS & MAINTENANCE,FUSION,NORTHERN DRIVES & CONTROLS,5100285144,244.53,,
UNITED KINGDOM ATOMIC ENERGY AUTHORITY,UNITED KINGDOM ATOMIC ENERGY AUTHORITY,11/02/2013,REPAIRS & MAINTENANCE,FUSION,NORTHERN DRIVES & CONTROLS,5100285150,244.53,,
UNITED KINGDOM ATOMIC ENERGY AUTHORITY,UNITED KINGDOM ATOMIC ENERGY AUTHORITY,11/02/2013,REPAIRS & MAINTENANCE,FUSION,NORTHERN DRIVES & CONTROLS,5100285151,244.53,,
UNITED KINGDOM ATOMIC ENERGY AUTHORITY,UNITED KINGDOM ATOMIC ENERGY AUTHORITY,11/02/2013,REPAIRS & MAINTENANCE,FUSION,NORTHERN DRIVES & CONTROLS,5100285153,244.53,,
UNITED KINGDOM ATOMIC ENERGY AUTHORITY,UNITED KINGDOM ATOMIC ENERGY AUTHORITY,11/02/2013,REPAIRS & MAINTENANCE,FUSION,NORTHERN DRIVES & CONTROLS,5100285154,244.53,,
UNITED KINGDOM ATOMIC ENERGY AUTHORITY,UNITED KINGDOM ATOMIC ENERGY AUTHORITY,11/02/2013,REPAIRS & MAINTENANCE,FUSION,NORTHERN DRIVES & CONTROLS,5100285155,244.53,,
UNITED KINGDOM ATOMIC ENERGY AUTHORITY,UNITED KINGDOM ATOMIC ENERGY AUTHORITY,11/02/2013,MATERIALS & SPARES,FUSION,RS COMPONENTS LTD,5100285215,69.81,,
UNITED KINGDOM ATOMIC ENERGY AUTHORITY,UNITED KINGDOM ATOMIC ENERGY AUTHORITY,11/02/2013,MATERIALS & SPARES,FUSION,RS COMPONENTS LTD,5100285277,57.39,,
UNITED KINGDOM ATOMIC ENERGY AUTHORITY,UNITED KINGDOM ATOMIC ENERGY AUTHORITY,11/02/2013,MATERIALS & SPARES,FUSION,FARNELL ELECTRONIC,5100285325,57.72,,
UNITED KINGDOM ATOMIC ENERGY AUTHORITY,UNITED KINGDOM ATOMIC ENERGY AUTHORITY,20/02/2013,IT EQUIPMENT NON CAPITAL,FUSION,MAAINTECH,5100285506,4439.8,,
UNITED KINGDOM ATOMIC ENERGY AUTHORITY,UNITED KINGDOM ATOMIC ENERGY AUTHORITY,18/02/2013,IT EQUIPMENT NON CAPITAL,FUSION,MAAINTECH,5100285536,1010,,
UNITED KINGDOM ATOMIC ENERGY AUTHORITY,UNITED KINGDOM ATOMIC ENERGY AUTHORITY,28/01/2013,MATERIALS & SPARES,FUSION,FTI LTD,5100284544,331.8,,
UNITED KINGDOM ATOMIC ENERGY AUTHORITY,UNITED KINGDOM ATOMIC ENERGY AUTHORITY,28/01/2013,GASES,FUSION,AIR PRODUCTS PLC,5100284552,94.55,,
UNITED KINGDOM ATOMIC ENERGY AUTHORITY,UNITED KINGDOM ATOMIC ENERGY AUTHORITY,28/01/2013,MATERIALS & SPARES,FUSION,SCREWFIX DIRECT LTD,5100284593,21.65,,
UNITED KINGDOM ATOMIC ENERGY AUTHORITY,UNITED KINGDOM ATOMIC ENERGY AUTHORITY,28/01/2013,MATERIALS & SPARES,FUSION,FTI LTD,5100284626,1357.68,,
UNITED KINGDOM ATOMIC ENERGY AUTHORITY,UNITED KINGDOM ATOMIC ENERGY AUTHORITY,05/02/2013,CAR HIRE,FUSION,LEASEDRIVE VELO,5100284780,36.44,,
UNITED KINGDOM ATOMIC ENERGY AUTHORITY,UNITED KINGDOM ATOMIC ENERGY AUTHORITY,05/02/2013,PLANT & EQUIPMENT,FUSION,FISHER SCIENTIFIC UK LTD,5100284797,78.34,,
UNITED KINGDOM ATOMIC ENERGY AUTHORITY,UNITED KINGDOM ATOMIC ENERGY AUTHORITY,11/02/2013,GASES,FUSION,BOC LTD,5100285021,1162.72,,
UNITED KINGDOM ATOMIC ENERGY AUTHORITY,UNITED KINGDOM ATOMIC ENERGY AUTHORITY,18/02/2013,MATERIALS & SPARES,FUSION,Millipore (UK) Limited,5100285199,2251.2,,
UNITED KINGDOM ATOMIC ENERGY AUTHORITY,UNITED KINGDOM ATOMIC ENERGY AUTHORITY,13/02/2013,GASES,FUSION,BOC LTD,5100285285,184.38,,
UNITED KINGDOM ATOMIC ENERGY AUTHORITY,UNITED KINGDOM ATOMIC ENERGY AUTHORITY,11/02/2013,MATERIALS & SPARES,FUSION,RS COMPONENTS LTD,5100285332,62.67,,
UNITED KINGDOM ATOMIC ENERGY AUTHORITY,UNITED KINGDOM ATOMIC ENERGY AUTHORITY,18/02/2013,MATERIALS & SPARES,FUSION,Millipore (UK) Limited,5100285405,457.8,,
UNITED KINGDOM ATOMIC ENERGY AUTHORITY,UNITED KINGDOM ATOMIC ENERGY AUTHORITY,18/02/2013,PLANT & EQUIPMENT,FUSION,POWELL & CO,5100285439,2328.15,,
UNITED KINGDOM ATOMIC ENERGY AUTHORITY,UNITED KINGDOM ATOMIC ENERGY AUTHORITY,07/02/2013,SUBSISTENCE,FUSION,EMPLOYEE EXPENSES,100675984,92.08,,
UNITED KINGDOM ATOMIC ENERGY AUTHORITY,UNITED KINGDOM ATOMIC ENERGY AUTHORITY,07/02/2013,SUBSISTENCE,FUSION,EMPLOYEE EXPENSES,100675984,9.12,,
UNITED KINGDOM ATOMIC ENERGY AUTHORITY,UNITED KINGDOM ATOMIC ENERGY AUTHORITY,07/02/2013,SUBSISTENCE,FUSION,EMPLOYEE EXPENSES,100675985,86.61,,
UNITED KINGDOM ATOMIC ENERGY AUTHORITY,UNITED KINGDOM ATOMIC ENERGY AUTHORITY,07/02/2013,SUBSISTENCE,FUSION,EMPLOYEE EXPENSES,100675985,17.12,,
UNITED KINGDOM ATOMIC ENERGY AUTHORITY,UNITED KINGDOM ATOMIC ENERGY AUTHORITY,09/02/2013,SUBSISTENCE,FUSION,EMPLOYEE EXPENSES,100676034,734.92,,
UNITED KINGDOM ATOMIC ENERGY AUTHORITY,UNITED KINGDOM ATOMIC ENERGY AUTHORITY,09/02/2013,SUBSISTENCE,FUSION,EMPLOYEE EXPENSES,100676034,11.75,,
UNITED KINGDOM ATOMIC ENERGY AUTHORITY,UNITED KINGDOM ATOMIC ENERGY AUTHORITY,09/02/2013,SUBSISTENCE,FUSION,EMPLOYEE EXPENSES,100676036,89.14,,
UNITED KINGDOM ATOMIC ENERGY AUTHORITY,UNITED KINGDOM ATOMIC ENERGY AUTHORITY,09/02/2013,SUBSISTENCE,FUSION,EMPLOYEE EXPENSES,100676036,4.29,,
UNITED KINGDOM ATOMIC ENERGY AUTHORITY,UNITED KINGDOM ATOMIC ENERGY AUTHORITY,09/02/2013,SUBSISTENCE,FUSION,EMPLOYEE EXPENSES,100676037,275.42,,
UNITED KINGDOM ATOMIC ENERGY AUTHORITY,UNITED KINGDOM ATOMIC ENERGY AUTHORITY,23/02/2013,SUBSISTENCE,FUSION,EMPLOYEE EXPENSES,100678883,140.33,,
UNITED KINGDOM ATOMIC ENERGY AUTHORITY,UNITED KINGDOM ATOMIC ENERGY AUTHORITY,23/02/2013,SUBSISTENCE,FUSION,EMPLOYEE EXPENSES,100678883,13.08,,
UNITED KINGDOM ATOMIC ENERGY AUTHORITY,UNITED KINGDOM ATOMIC ENERGY AUTHORITY,09/02/2013,MILEAGE ALLOWANCE,FUSION,EMPLOYEE EXPENSES,100676036,8.00,,
UNITED KINGDOM ATOMIC ENERGY AUTHORITY,UNITED KINGDOM ATOMIC ENERGY AUTHORITY,09/02/2013,MILEAGE ALLOWANCE,FUSION,EMPLOYEE EXPENSES,100676037,8.00,,
UNITED KINGDOM ATOMIC ENERGY AUTHORITY,UNITED KINGDOM ATOMIC ENERGY AUTHORITY,07/02/2013,AIR TRAVEL,FUSION,EMPLOYEE EXPENSES,100675984,25.18,,
UNITED KINGDOM ATOMIC ENERGY AUTHORITY,UNITED KINGDOM ATOMIC ENERGY AUTHORITY,09/02/2013,RAIL TRAVEL,FUSION,EMPLOYEE EXPENSES,100676035,39.80,,
UNITED KINGDOM ATOMIC ENERGY AUTHORITY,UNITED KINGDOM ATOMIC ENERGY AUTHORITY,09/02/2013,RAIL TRAVEL,FUSION,EMPLOYEE EXPENSES,100676036,37.65,,
UNITED KINGDOM ATOMIC ENERGY AUTHORITY,UNITED KINGDOM ATOMIC ENERGY AUTHORITY,09/02/2013,RAIL TRAVEL,FUSION,EMPLOYEE EXPENSES,100676037,41.05,,
UNITED KINGDOM ATOMIC ENERGY AUTHORITY,UNITED KINGDOM ATOMIC ENERGY AUTHORITY,09/02/2013,RAIL TRAVEL,FUSION,EMPLOYEE EXPENSES,100676037,22.53,,
UNITED KINGDOM ATOMIC ENERGY AUTHORITY,UNITED KINGDOM ATOMIC ENERGY AUTHORITY,09/02/2013,ROAD TRAVEL,FUSION,EMPLOYEE EXPENSES,100676034,34.92,,
UNITED KINGDOM ATOMIC ENERGY AUTHORITY,UNITED KINGDOM ATOMIC ENERGY AUTHORITY,09/02/2013,ROAD TRAVEL,FUSION,EMPLOYEE EXPENSES,100676036,18.75,,
UNITED KINGDOM ATOMIC ENERGY AUTHORITY,UNITED KINGDOM ATOMIC ENERGY AUTHORITY,09/02/2013,ROAD TRAVEL,FUSION,EMPLOYEE EXPENSES,100676037,13.33,,
UNITED KINGDOM ATOMIC ENERGY AUTHORITY,UNITED KINGDOM ATOMIC ENERGY AUTHORITY,07/02/2013,OTHER EMPLOYEE EXPENSES,FUSION,EMPLOYEE EXPENSES,100675985,1.78,,
UNITED KINGDOM ATOMIC ENERGY AUTHORITY,UNITED KINGDOM ATOMIC ENERGY AUTHORITY,09/02/2013,OTHER EMPLOYEE EXPENSES,FUSION,EMPLOYEE EXPENSES,100676036,16.79,,
UNITED KINGDOM ATOMIC ENERGY AUTHORITY,UNITED KINGDOM ATOMIC ENERGY AUTHORITY,23/02/2013,OTHER EMPLOYEE EXPENSES,FUSION,EMPLOYEE EXPENSES,100678883,36.52,,
UNITED KINGDOM ATOMIC ENERGY AUTHORITY,UNITED KINGDOM ATOMIC ENERGY AUTHORITY,21/02/2013,PROFESSIONAL SUBSCRIPTION,FUSION,EMPLOYEE EXPENSES,100678468,149.00,,
UNITED KINGDOM ATOMIC ENERGY AUTHORITY,UNITED KINGDOM ATOMIC ENERGY AUTHORITY,24/02/2013,CONSUMABLES,FUSION,PURCHASE CARDS,100678987,654.00,,
UNITED KINGDOM ATOMIC ENERGY AUTHORITY,UNITED KINGDOM ATOMIC ENERGY AUTHORITY,28/01/2013,PLANT & EQUIPMENT,FUSION,NEW PIG LTD,5100282217,38.49,,
UNITED KINGDOM ATOMIC ENERGY AUTHORITY,UNITED KINGDOM ATOMIC ENERGY AUTHORITY,11/02/2013,PROFESSIONAL SERVICES,FUSION,GLANVILLE CONSULTANTS,5100283988,1251.4,,
UNITED KINGDOM ATOMIC ENERGY AUTHORITY,UNITED KINGDOM ATOMIC ENERGY AUTHORITY,05/02/2013,RENT OF VEHICLE & EQUIPMENT,FUSION,M.J.C SERVICES,5100284053,346.66,,
UNITED KINGDOM ATOMIC ENERGY AUTHORITY,UNITED KINGDOM ATOMIC ENERGY AUTHORITY,30/01/2013,MATERIALS: HAZARDOUS,FUSION,CHEMTECH WASTE MANAGEMENT,5100284326,6158,,
UNITED KINGDOM ATOMIC ENERGY AUTHORITY,UNITED KINGDOM ATOMIC ENERGY AUTHORITY,30/01/2013,MATERIALS: HAZARDOUS,FUSION,CHEMTECH WASTE MANAGEMENT,5100284513,120,,
UNITED KINGDOM ATOMIC ENERGY AUTHORITY,UNITED KINGDOM ATOMIC ENERGY AUTHORITY,28/01/2013,MATERIALS & SPARES,FUSION,FLEXIBLE REINFORCEMENT LIMITED,5100284541,4929,,
UNITED KINGDOM ATOMIC ENERGY AUTHORITY,UNITED KINGDOM ATOMIC ENERGY AUTHORITY,28/01/2013,MATERIALS & SPARES,FUSION,KROHNE LTD,5100284564,430,,
UNITED KINGDOM ATOMIC ENERGY AUTHORITY,UNITED KINGDOM ATOMIC ENERGY AUTHORITY,30/01/2013,PLANT & EQUIPMENT,FUSION,NEW PIG LTD,5100284636,748.68,,
UNITED KINGDOM ATOMIC ENERGY AUTHORITY,UNITED KINGDOM ATOMIC ENERGY AUTHORITY,13/02/2013,PLANT & EQUIPMENT,FUSION,DIRECTA (UK) LTD,5100284654,809.4,,
UNITED KINGDOM ATOMIC ENERGY AUTHORITY,UNITED KINGDOM ATOMIC ENERGY AUTHORITY,28/01/2013,BUILDING REPAIRS,FUSION,KNOWLES & SONS (OXFORD) LTD,5100284681,44,,
UNITED KINGDOM ATOMIC ENERGY AUTHORITY,UNITED KINGDOM ATOMIC ENERGY AUTHORITY,30/01/2013,PLANT & EQUIPMENT,FUSION,KAISER & KRAFT LTD,5100284696,203.4,,
UNITED KINGDOM ATOMIC ENERGY AUTHORITY,UNITED KINGDOM ATOMIC ENERGY AUTHORITY,30/01/2013,MATERIALS & SPARES,FUSION,RS COMPONENTS LTD,5100284711,113.75,,
UNITED KINGDOM ATOMIC ENERGY AUTHORITY,UNITED KINGDOM ATOMIC ENERGY AUTHORITY,05/02/2013,CONSUMABLES,FUSION,SETON,5100284742,1116.95,,
UNITED KINGDOM ATOMIC ENERGY AUTHORITY,UNITED KINGDOM ATOMIC ENERGY AUTHORITY,05/02/2013,MATERIALS & SPARES,FUSION,ALPHA PACKAGING,5100284777,134.1,,
UNITED KINGDOM ATOMIC ENERGY AUTHORITY,UNITED KINGDOM ATOMIC ENERGY AUTHORITY,18/02/2013,MATERIALS & SPARES,FUSION,SCREWFIX DIRECT LTD,5100284847,82.66,,
UNITED KINGDOM ATOMIC ENERGY AUTHORITY,UNITED KINGDOM ATOMIC ENERGY AUTHORITY,31/01/2013,CONSUMABLES,FUSION,Davis Industrial Plastics,5100284895,5624,,
UNITED KINGDOM ATOMIC ENERGY AUTHORITY,UNITED KINGDOM ATOMIC ENERGY AUTHORITY,31/01/2013,CONSUMABLES,FUSION,Davis Industrial Plastics,5100284896,8163.5,,
UNITED KINGDOM ATOMIC ENERGY AUTHORITY,UNITED KINGDOM ATOMIC ENERGY AUTHORITY,18/02/2013,PROFESSIONAL SERVICES,FUSION,TRADEBE,5100284928,62742.75,,
UNITED KINGDOM ATOMIC ENERGY AUTHORITY,UNITED KINGDOM ATOMIC ENERGY AUTHORITY,18/02/2013,PROFESSIONAL SERVICES,FUSION,TRADEBE,5100284970,2160,,
UNITED KINGDOM ATOMIC ENERGY AUTHORITY,UNITED KINGDOM ATOMIC ENERGY AUTHORITY,05/02/2013,PROFESSIONAL SERVICES,FUSION,MCBAINS COOPER,5100284985,14351.45,,
UNITED KINGDOM ATOMIC ENERGY AUTHORITY,UNITED KINGDOM ATOMIC ENERGY AUTHORITY,11/02/2013,MATERIALS & SPARES,FUSION,FASTFIX,5100285027,294.95,,
UNITED KINGDOM ATOMIC ENERGY AUTHORITY,UNITED KINGDOM ATOMIC ENERGY AUTHORITY,11/02/2013,PROFESSIONAL SERVICES,FUSION,GLANVILLE CONSULTANTS,5100285052,3744.09,,
UNITED KINGDOM ATOMIC ENERGY AUTHORITY,UNITED KINGDOM ATOMIC ENERGY AUTHORITY,11/02/2013,PROFESSIONAL SERVICES,FUSION,GLANVILLE CONSULTANTS,5100285053,-1251.4,,
UNITED KINGDOM ATOMIC ENERGY AUTHORITY,UNITED KINGDOM ATOMIC ENERGY AUTHORITY,13/02/2013,RENT OF VEHICLE & EQUIPMENT,FUSION,M.J.C SERVICES,5100285056,346.66,,
UNITED KINGDOM ATOMIC ENERGY AUTHORITY,UNITED KINGDOM ATOMIC ENERGY AUTHORITY,11/02/2013,PLANT & EQUIPMENT,FUSION,THAMES VALLEY SAW SERVICE LTD,5100285059,501.9,,
UNITED KINGDOM ATOMIC ENERGY AUTHORITY,UNITED KINGDOM ATOMIC ENERGY AUTHORITY,18/02/2013,CLEANING,FUSION,BIFFA RECYCLING,5100285063,4.5,,
UNITED KINGDOM ATOMIC ENERGY AUTHORITY,UNITED KINGDOM ATOMIC ENERGY AUTHORITY,18/02/2013,CLEANING,FUSION,BIFFA RECYCLING,5100285064,197.5,,
UNITED KINGDOM ATOMIC ENERGY AUTHORITY,UNITED KINGDOM ATOMIC ENERGY AUTHORITY,18/02/2013,CLEANING,FUSION,BIFFA RECYCLING,5100285065,19,,
UNITED KINGDOM ATOMIC ENERGY AUTHORITY,UNITED KINGDOM ATOMIC ENERGY AUTHORITY,18/02/2013,CLEANING,FUSION,BIFFA RECYCLING,5100285066,15,,
UNITED KINGDOM ATOMIC ENERGY AUTHORITY,UNITED KINGDOM ATOMIC ENERGY AUTHORITY,18/02/2013,CLEANING,FUSION,BIFFA RECYCLING,5100285067,16,,
UNITED KINGDOM ATOMIC ENERGY AUTHORITY,UNITED KINGDOM ATOMIC ENERGY AUTHORITY,18/02/2013,CLEANING,FUSION,BIFFA RECYCLING,5100285068,8,,
UNITED KINGDOM ATOMIC ENERGY AUTHORITY,UNITED KINGDOM ATOMIC ENERGY AUTHORITY,18/02/2013,CLEANING,FUSION,BIFFA RECYCLING,5100285069,531,,
UNITED KINGDOM ATOMIC ENERGY AUTHORITY,UNITED KINGDOM ATOMIC ENERGY AUTHORITY,18/02/2013,CLEANING,FUSION,BIFFA RECYCLING,5100285070,8,,
UNITED KINGDOM ATOMIC ENERGY AUTHORITY,UNITED KINGDOM ATOMIC ENERGY AUTHORITY,18/02/2013,CLEANING,FUSION,BIFFA RECYCLING,5100285071,0.5,,
UNITED KINGDOM ATOMIC ENERGY AUTHORITY,UNITED KINGDOM ATOMIC ENERGY AUTHORITY,18/02/2013,CLEANING,FUSION,BIFFA RECYCLING,5100285072,0.5,,
UNITED KINGDOM ATOMIC ENERGY AUTHORITY,UNITED KINGDOM ATOMIC ENERGY AUTHORITY,18/02/2013,CLEANING,FUSION,BIFFA RECYCLING,5100285073,0.5,,
UNITED KINGDOM ATOMIC ENERGY AUTHORITY,UNITED KINGDOM ATOMIC ENERGY AUTHORITY,18/02/2013,CLEANING,FUSION,BIFFA RECYCLING,5100285074,0.5,,
UNITED KINGDOM ATOMIC ENERGY AUTHORITY,UNITED KINGDOM ATOMIC ENERGY AUTHORITY,18/02/2013,CLEANING,FUSION,BIFFA RECYCLING,5100285075,7.5,,
UNITED KINGDOM ATOMIC ENERGY AUTHORITY,UNITED KINGDOM ATOMIC ENERGY AUTHORITY,13/02/2013,BUILDING REPAIRS,FUSION,LORNE STEWART PLC,5100285080,47198.27,,
UNITED KINGDOM ATOMIC ENERGY AUTHORITY,UNITED KINGDOM ATOMIC ENERGY AUTHORITY,13/02/2013,BUILDING REPAIRS,FUSION,LORNE STEWART PLC,5100285081,3379.92,,
UNITED KINGDOM ATOMIC ENERGY AUTHORITY,UNITED KINGDOM ATOMIC ENERGY AUTHORITY,13/02/2013,BUILDING REPAIRS,FUSION,LORNE STEWART PLC,5100285095,7738.2,,
UNITED KINGDOM ATOMIC ENERGY AUTHORITY,UNITED KINGDOM ATOMIC ENERGY AUTHORITY,18/02/2013,PROFESSIONAL SERVICES,FUSION,HILLS WASTE SOLUTIONS LTD,5100285110,2402.01,,
UNITED KINGDOM ATOMIC ENERGY AUTHORITY,UNITED KINGDOM ATOMIC ENERGY AUTHORITY,18/02/2013,PROFESSIONAL SERVICES,FUSION,HILLS WASTE SOLUTIONS LTD,5100285111,1205.85,,
UNITED KINGDOM ATOMIC ENERGY AUTHORITY,UNITED KINGDOM ATOMIC ENERGY AUTHORITY,18/02/2013,PROFESSIONAL SERVICES,FUSION,HILLS WASTE SOLUTIONS LTD,5100285112,142.74,,
UNITED KINGDOM ATOMIC ENERGY AUTHORITY,UNITED KINGDOM ATOMIC ENERGY AUTHORITY,18/02/2013,PROFESSIONAL SERVICES,FUSION,HILLS WASTE SOLUTIONS LTD,5100285113,135,,
UNITED KINGDOM ATOMIC ENERGY AUTHORITY,UNITED KINGDOM ATOMIC ENERGY AUTHORITY,18/02/2013,PROFESSIONAL SERVICES,FUSION,HILLS WASTE SOLUTIONS LTD,5100285114,417.42,,
UNITED KINGDOM ATOMIC ENERGY AUTHORITY,UNITED KINGDOM ATOMIC ENERGY AUTHORITY,13/02/2013,GASES,FUSION,BOC LTD,5100285276,9.12,,
UNITED KINGDOM ATOMIC ENERGY AUTHORITY,UNITED KINGDOM ATOMIC ENERGY AUTHORITY,18/02/2013,PLANT & EQUIPMENT,FUSION,FISHER SCIENTIFIC UK LTD,5100285313,784.98,,
UNITED KINGDOM ATOMIC ENERGY AUTHORITY,UNITED KINGDOM ATOMIC ENERGY AUTHORITY,11/02/2013,PLANT & EQUIPMENT,FUSION,FISHER SCIENTIFIC UK LTD,5100285314,35.5,,
UNITED KINGDOM ATOMIC ENERGY AUTHORITY,UNITED KINGDOM ATOMIC ENERGY AUTHORITY,18/02/2013,PLANT & EQUIPMENT,FUSION,TUF TOOLS LTD,5100285364,69.2,,
UNITED KINGDOM ATOMIC ENERGY AUTHORITY,UNITED KINGDOM ATOMIC ENERGY AUTHORITY,18/02/2013,PLANT & EQUIPMENT,FUSION,TUF TOOLS LTD,5100285365,52.5,,
UNITED KINGDOM ATOMIC ENERGY AUTHORITY,UNITED KINGDOM ATOMIC ENERGY AUTHORITY,18/02/2013,PERSONAL PROTECTIVE EQUIPMENT,FUSION,ARCO WESSEX,5100285375,17.28,,
UNITED KINGDOM ATOMIC ENERGY AUTHORITY,UNITED KINGDOM ATOMIC ENERGY AUTHORITY,18/02/2013,PERSONAL PROTECTIVE EQUIPMENT,FUSION,ARCO WESSEX,5100285380,79.73,,
UNITED KINGDOM ATOMIC ENERGY AUTHORITY,UNITED KINGDOM ATOMIC ENERGY AUTHORITY,18/02/2013,MATERIALS & SPARES,FUSION,ALPHA ENGINEERING SUPPLIES,5100285412,69,,
UNITED KINGDOM ATOMIC ENERGY AUTHORITY,UNITED KINGDOM ATOMIC ENERGY AUTHORITY,20/02/2013,PLANT & EQUIPMENT,FUSION,KAISER & KRAFT LTD,5100285422,538.2,,
UNITED KINGDOM ATOMIC ENERGY AUTHORITY,UNITED KINGDOM ATOMIC ENERGY AUTHORITY,18/02/2013,PERSONAL PROTECTIVE EQUIPMENT,FUSION,ARCO WESSEX,5100285529,96.96,,
UNITED KINGDOM ATOMIC ENERGY AUTHORITY,UNITED KINGDOM ATOMIC ENERGY AUTHORITY,18/02/2013,PERSONAL PROTECTIVE EQUIPMENT,FUSION,ARCO WESSEX,5100285534,402.4,,
UNITED KINGDOM ATOMIC ENERGY AUTHORITY,UNITED KINGDOM ATOMIC ENERGY AUTHORITY,29/01/2013,RAW MATERIALS & CONSUMABLES,FUSION,Redhill Manufacturing Ltd,1900057690,217.00,,
UNITED KINGDOM ATOMIC ENERGY AUTHORITY,UNITED KINGDOM ATOMIC ENERGY AUTHORITY,28/01/2013,MATERIALS & SPARES,FUSION,RS COMPONENTS LTD,5100284132,3.96,,
UNITED KINGDOM ATOMIC ENERGY AUTHORITY,UNITED KINGDOM ATOMIC ENERGY AUTHORITY,28/01/2013,MATERIALS & SPARES,FUSION,FARNELL ELECTRONIC,5100284577,74.56,,
UNITED KINGDOM ATOMIC ENERGY AUTHORITY,UNITED KINGDOM ATOMIC ENERGY AUTHORITY,28/01/2013,MATERIALS & SPARES,FUSION,FARNELL ELECTRONIC,5100284583,11.89,,
UNITED KINGDOM ATOMIC ENERGY AUTHORITY,UNITED KINGDOM ATOMIC ENERGY AUTHORITY,28/01/2013,PLANT & EQUIPMENT,FUSION,EDWARDS LIMITED,5100284584,4653.43,,
UNITED KINGDOM ATOMIC ENERGY AUTHORITY,UNITED KINGDOM ATOMIC ENERGY AUTHORITY,28/01/2013,MATERIALS & SPARES,FUSION,FARNELL ELECTRONIC,5100284614,42.82,,
UNITED KINGDOM ATOMIC ENERGY AUTHORITY,UNITED KINGDOM ATOMIC ENERGY AUTHORITY,30/01/2013,PROFESSIONAL SERVICES,FUSION,SWAGELOK LONDON,5100284649,78.5,,
UNITED KINGDOM ATOMIC ENERGY AUTHORITY,UNITED KINGDOM ATOMIC ENERGY AUTHORITY,28/01/2013,PERSONAL PROTECTIVE EQUIPMENT,FUSION,ARCO WESSEX,5100284670,32.79,,
UNITED KINGDOM ATOMIC ENERGY AUTHORITY,UNITED KINGDOM ATOMIC ENERGY AUTHORITY,28/01/2013,MATERIALS & SPARES,FUSION,KEY INDUSTRIAL EQUIPMENT LTD,5100284688,11.35,,
UNITED KINGDOM ATOMIC ENERGY AUTHORITY,UNITED KINGDOM ATOMIC ENERGY AUTHORITY,28/01/2013,MATERIALS & SPARES,FUSION,KURT J LESKER,5100284700,203.5,,
UNITED KINGDOM ATOMIC ENERGY AUTHORITY,UNITED KINGDOM ATOMIC ENERGY AUTHORITY,28/01/2013,MATERIALS & SPARES,FUSION,KURT J LESKER,5100284701,2551.5,,
UNITED KINGDOM ATOMIC ENERGY AUTHORITY,UNITED KINGDOM ATOMIC ENERGY AUTHORITY,28/01/2013,MATERIALS & SPARES,FUSION,RS COMPONENTS LTD,5100284709,-3.96,,
UNITED KINGDOM ATOMIC ENERGY AUTHORITY,UNITED KINGDOM ATOMIC ENERGY AUTHORITY,05/02/2013,GASES,FUSION,BOC LTD,5100284802,7.8,,
UNITED KINGDOM ATOMIC ENERGY AUTHORITY,UNITED KINGDOM ATOMIC ENERGY AUTHORITY,05/02/2013,MATERIALS & SPARES,FUSION,FARNELL ELECTRONIC,5100284872,890.9,,
UNITED KINGDOM ATOMIC ENERGY AUTHORITY,UNITED KINGDOM ATOMIC ENERGY AUTHORITY,05/02/2013,MATERIALS & SPARES,FUSION,FARNELL ELECTRONIC,5100284904,117.26,,
UNITED KINGDOM ATOMIC ENERGY AUTHORITY,UNITED KINGDOM ATOMIC ENERGY AUTHORITY,05/02/2013,MATERIALS & SPARES,FUSION,FARNELL ELECTRONIC,5100284905,21.98,,
UNITED KINGDOM ATOMIC ENERGY AUTHORITY,UNITED KINGDOM ATOMIC ENERGY AUTHORITY,11/02/2013,MATERIALS & SPARES,FUSION,RITTAL,5100284906,193.14,,
UNITED KINGDOM ATOMIC ENERGY AUTHORITY,UNITED KINGDOM ATOMIC ENERGY AUTHORITY,05/02/2013,MATERIALS & SPARES,FUSION,CPC PLC,5100284929,17.33,,
UNITED KINGDOM ATOMIC ENERGY AUTHORITY,UNITED KINGDOM ATOMIC ENERGY AUTHORITY,05/02/2013,PERSONAL PROTECTIVE EQUIPMENT,FUSION,BUCK & HICKMAN LTD,5100284930,127.56,,
UNITED KINGDOM ATOMIC ENERGY AUTHORITY,UNITED KINGDOM ATOMIC ENERGY AUTHORITY,05/02/2013,PLANT & EQUIPMENT,FUSION,EDWARDS LIMITED,5100284960,180,,
UNITED KINGDOM ATOMIC ENERGY AUTHORITY,UNITED KINGDOM ATOMIC ENERGY AUTHORITY,11/02/2013,MATERIALS & SPARES,FUSION,RS COMPONENTS LTD,5100285239,32.21,,
UNITED KINGDOM ATOMIC ENERGY AUTHORITY,UNITED KINGDOM ATOMIC ENERGY AUTHORITY,11/02/2013,MATERIALS & SPARES,FUSION,RS COMPONENTS LTD,5100285253,43.12,,
UNITED KINGDOM ATOMIC ENERGY AUTHORITY,UNITED KINGDOM ATOMIC ENERGY AUTHORITY,11/02/2013,MATERIALS & SPARES,FUSION,FARNELL ELECTRONIC,5100285318,109.15,,
UNITED KINGDOM ATOMIC ENERGY AUTHORITY,UNITED KINGDOM ATOMIC ENERGY AUTHORITY,11/02/2013,MATERIALS & SPARES,FUSION,FARNELL ELECTRONIC,5100285319,15.74,,
UNITED KINGDOM ATOMIC ENERGY AUTHORITY,UNITED KINGDOM ATOMIC ENERGY AUTHORITY,18/02/2013,MATERIALS & SPARES,FUSION,CPC PLC,5100285354,38.76,,
UNITED KINGDOM ATOMIC ENERGY AUTHORITY,UNITED KINGDOM ATOMIC ENERGY AUTHORITY,18/02/2013,PROFESSIONAL SERVICES,FUSION,MACHINING TECHNOLOGY (MACH-TECH),5100285379,949.5,,
UNITED KINGDOM ATOMIC ENERGY AUTHORITY,UNITED KINGDOM ATOMIC ENERGY AUTHORITY,18/02/2013,MATERIALS & SPARES,FUSION,RITTAL,5100285436,92.99,,
UNITED KINGDOM ATOMIC ENERGY AUTHORITY,UNITED KINGDOM ATOMIC ENERGY AUTHORITY,18/02/2013,PLANT & EQUIPMENT,FUSION,PFEIFFER VACUUM UK,5100285473,673.96,,
UNITED KINGDOM ATOMIC ENERGY AUTHORITY,UNITED KINGDOM ATOMIC ENERGY AUTHORITY,18/02/2013,PLANT & EQUIPMENT,FUSION,PFEIFFER VACUUM UK,5100285475,180,,
UNITED KINGDOM ATOMIC ENERGY AUTHORITY,UNITED KINGDOM ATOMIC ENERGY AUTHORITY,18/02/2013,MATERIALS & SPARES,FUSION,RS COMPONENTS LTD,5100285500,101.24,,
UNITED KINGDOM ATOMIC ENERGY AUTHORITY,UNITED KINGDOM ATOMIC ENERGY AUTHORITY,07/02/2013,SUBSISTENCE,FUSION,EMPLOYEE EXPENSES,100675981,85.03,,
UNITED KINGDOM ATOMIC ENERGY AUTHORITY,UNITED KINGDOM ATOMIC ENERGY AUTHORITY,07/02/2013,SUBSISTENCE,FUSION,EMPLOYEE EXPENSES,100675981,5.04,,
UNITED KINGDOM ATOMIC ENERGY AUTHORITY,UNITED KINGDOM ATOMIC ENERGY AUTHORITY,07/02/2013,ROAD TRAVEL,FUSION,EMPLOYEE EXPENSES,100675981,29.84,,
UNITED KINGDOM ATOMIC ENERGY AUTHORITY,UNITED KINGDOM ATOMIC ENERGY AUTHORITY,11/02/2013,PROFESSIONAL SERVICES,FUSION,ENERGY SAFETY AND RISK CONSULTANTS,5100285016,6086.92,,
UNITED KINGDOM ATOMIC ENERGY AUTHORITY,UNITED KINGDOM ATOMIC ENERGY AUTHORITY,08/02/2013,SOFTWARE - NON-CAP,FUSION,PURCHASE CARDS,100676003,518.43,,
UNITED KINGDOM ATOMIC ENERGY AUTHORITY,UNITED KINGDOM ATOMIC ENERGY AUTHORITY,08/02/2013,IT EQUIPMENT: NON CAPITAL,FUSION,PURCHASE CARDS,100676004,540.71,,
UNITED KINGDOM ATOMIC ENERGY AUTHORITY,UNITED KINGDOM ATOMIC ENERGY AUTHORITY,05/02/2013,MATERIALS & SPARES,FUSION,RS COMPONENTS LTD,5100283298,313.2,,
UNITED KINGDOM ATOMIC ENERGY AUTHORITY,UNITED KINGDOM ATOMIC ENERGY AUTHORITY,18/02/2013,MATERIALS & SPARES,FUSION,RS COMPONENTS LTD,5100284073,348.84,,
UNITED KINGDOM ATOMIC ENERGY AUTHORITY,UNITED KINGDOM ATOMIC ENERGY AUTHORITY,05/02/2013,PLANT & EQUIPMENT,FUSION,EDMUNDSON ELECTRICALS LTD,5100284376,599.99,,
UNITED KINGDOM ATOMIC ENERGY AUTHORITY,UNITED KINGDOM ATOMIC ENERGY AUTHORITY,28/01/2013,PLANT & EQUIPMENT,FUSION,EDMUNDSON ELECTRICALS LTD,5100284487,2299.43,,
UNITED KINGDOM ATOMIC ENERGY AUTHORITY,UNITED KINGDOM ATOMIC ENERGY AUTHORITY,28/01/2013,PERSONAL PROTECTIVE EQUIPMENT,FUSION,ARCO LTD,5100284592,210.34,,
UNITED KINGDOM ATOMIC ENERGY AUTHORITY,UNITED KINGDOM ATOMIC ENERGY AUTHORITY,28/01/2013,MATERIALS & SPARES,FUSION,FARNELL ELECTRONIC,5100284594,209.47,,
UNITED KINGDOM ATOMIC ENERGY AUTHORITY,UNITED KINGDOM ATOMIC ENERGY AUTHORITY,28/01/2013,BUILDING REPAIRS,FUSION,TILL & WHITEHEAD LTD,5100284595,36.84,,
UNITED KINGDOM ATOMIC ENERGY AUTHORITY,UNITED KINGDOM ATOMIC ENERGY AUTHORITY,28/01/2013,BUILDING REPAIRS,FUSION,TILL & WHITEHEAD LTD,5100284596,281.85,,
UNITED KINGDOM ATOMIC ENERGY AUTHORITY,UNITED KINGDOM ATOMIC ENERGY AUTHORITY,28/01/2013,BUILDING REPAIRS,FUSION,TILL & WHITEHEAD LTD,5100284597,15,,
UNITED KINGDOM ATOMIC ENERGY AUTHORITY,UNITED KINGDOM ATOMIC ENERGY AUTHORITY,28/01/2013,BUILDING REPAIRS,FUSION,TILL & WHITEHEAD LTD,5100284598,156.24,,
UNITED KINGDOM ATOMIC ENERGY AUTHORITY,UNITED KINGDOM ATOMIC ENERGY AUTHORITY,28/01/2013,BUILDING REPAIRS,FUSION,TILL & WHITEHEAD LTD,5100284599,117.43,,
UNITED KINGDOM ATOMIC ENERGY AUTHORITY,UNITED KINGDOM ATOMIC ENERGY AUTHORITY,13/02/2013,MATERIALS & SPARES,FUSION,FARNELL ELECTRONIC,5100284615,39.15,,
UNITED KINGDOM ATOMIC ENERGY AUTHORITY,UNITED KINGDOM ATOMIC ENERGY AUTHORITY,11/02/2013,MATERIALS & SPARES,FUSION,MOUSER ELECTRONICS,5100284627,411.74,,
UNITED KINGDOM ATOMIC ENERGY AUTHORITY,UNITED KINGDOM ATOMIC ENERGY AUTHORITY,28/01/2013,STATIONERY,FUSION,LYRECO UK LIMITED,5100284643,248.77,,
UNITED KINGDOM ATOMIC ENERGY AUTHORITY,UNITED KINGDOM ATOMIC ENERGY AUTHORITY,28/01/2013,STATIONERY,FUSION,LYRECO UK LIMITED,5100284644,134.64,,
UNITED KINGDOM ATOMIC ENERGY AUTHORITY,UNITED KINGDOM ATOMIC ENERGY AUTHORITY,28/01/2013,STATIONERY,FUSION,LYRECO UK LIMITED,5100284645,157.27,,
UNITED KINGDOM ATOMIC ENERGY AUTHORITY,UNITED KINGDOM ATOMIC ENERGY AUTHORITY,28/01/2013,STATIONERY,FUSION,LYRECO UK LIMITED,5100284646,57.99,,
UNITED KINGDOM ATOMIC ENERGY AUTHORITY,UNITED KINGDOM ATOMIC ENERGY AUTHORITY,28/01/2013,MATERIALS & SPARES,FUSION,HOTCHKISS AIR SUPPLY,5100284648,91.74,,
UNITED KINGDOM ATOMIC ENERGY AUTHORITY,UNITED KINGDOM ATOMIC ENERGY AUTHORITY,30/01/2013,PERSONAL PROTECTIVE EQUIPMENT,FUSION,ARCO LTD,5100284664,91.44,,
UNITED KINGDOM ATOMIC ENERGY AUTHORITY,UNITED KINGDOM ATOMIC ENERGY AUTHORITY,30/01/2013,PERSONAL PROTECTIVE EQUIPMENT,FUSION,ARCO LTD,5100284665,112.9,,
UNITED KINGDOM ATOMIC ENERGY AUTHORITY,UNITED KINGDOM ATOMIC ENERGY AUTHORITY,30/01/2013,PERSONAL PROTECTIVE EQUIPMENT,FUSION,ARCO LTD,5100284666,15920,,
UNITED KINGDOM ATOMIC ENERGY AUTHORITY,UNITED KINGDOM ATOMIC ENERGY AUTHORITY,30/01/2013,PERSONAL PROTECTIVE EQUIPMENT,FUSION,ARCO LTD,5100284667,241,,
UNITED KINGDOM ATOMIC ENERGY AUTHORITY,UNITED KINGDOM ATOMIC ENERGY AUTHORITY,30/01/2013,PERSONAL PROTECTIVE EQUIPMENT,FUSION,ARCO LTD,5100284668,46.68,,
UNITED KINGDOM ATOMIC ENERGY AUTHORITY,UNITED KINGDOM ATOMIC ENERGY AUTHORITY,30/01/2013,PERSONAL PROTECTIVE EQUIPMENT,FUSION,ARCO LTD,5100284687,62.04,,
UNITED KINGDOM ATOMIC ENERGY AUTHORITY,UNITED KINGDOM ATOMIC ENERGY AUTHORITY,30/01/2013,PLANT & EQUIPMENT,FUSION,REECE SAFETY PRODUCTS LTD,5100284693,884,,
UNITED KINGDOM ATOMIC ENERGY AUTHORITY,UNITED KINGDOM ATOMIC ENERGY AUTHORITY,28/01/2013,PLANT & EQUIPMENT,FUSION,FISHER SCIENTIFIC UK LTD,5100284704,474.45,,
UNITED KINGDOM ATOMIC ENERGY AUTHORITY,UNITED KINGDOM ATOMIC ENERGY AUTHORITY,28/01/2013,MATERIALS & SPARES,FUSION,RS COMPONENTS LTD,5100284712,21,,
UNITED KINGDOM ATOMIC ENERGY AUTHORITY,UNITED KINGDOM ATOMIC ENERGY AUTHORITY,05/02/2013,MATERIALS & SPARES,FUSION,RS COMPONENTS LTD,5100284717,45.5,,
UNITED KINGDOM ATOMIC ENERGY AUTHORITY,UNITED KINGDOM ATOMIC ENERGY AUTHORITY,05/02/2013,MATERIALS & SPARES,FUSION,RS COMPONENTS LTD,5100284722,64.17,,
UNITED KINGDOM ATOMIC ENERGY AUTHORITY,UNITED KINGDOM ATOMIC ENERGY AUTHORITY,28/01/2013,MATERIALS & SPARES,FUSION,RS COMPONENTS LTD,5100284723,149.23,,
UNITED KINGDOM ATOMIC ENERGY AUTHORITY,UNITED KINGDOM ATOMIC ENERGY AUTHORITY,28/01/2013,PLANT & EQUIPMENT,FUSION,EDMUNDSON ELECTRICALS LTD,5100284737,117.43,,
UNITED KINGDOM ATOMIC ENERGY AUTHORITY,UNITED KINGDOM ATOMIC ENERGY AUTHORITY,28/01/2013,BUILDING REPAIRS,FUSION,MCNAUGHTON BAILEY LTD,5100284743,1520,,
UNITED KINGDOM ATOMIC ENERGY AUTHORITY,UNITED KINGDOM ATOMIC ENERGY AUTHORITY,05/02/2013,BUILDING REPAIRS,FUSION,MCNAUGHTON BAILEY LTD,5100284767,567.5,,
UNITED KINGDOM ATOMIC ENERGY AUTHORITY,UNITED KINGDOM ATOMIC ENERGY AUTHORITY,05/02/2013,MATERIALS & SPARES,FUSION,RS COMPONENTS LTD,5100284771,855.11,,
UNITED KINGDOM ATOMIC ENERGY AUTHORITY,UNITED KINGDOM ATOMIC ENERGY AUTHORITY,05/02/2013,MATERIALS & SPARES,FUSION,ALPHA PACKAGING,5100284775,172.8,,
UNITED KINGDOM ATOMIC ENERGY AUTHORITY,UNITED KINGDOM ATOMIC ENERGY AUTHORITY,05/02/2013,MATERIALS & SPARES,FUSION,OXFORD BOLTS & BEARINGS,5100284788,95.7,,
UNITED KINGDOM ATOMIC ENERGY AUTHORITY,UNITED KINGDOM ATOMIC ENERGY AUTHORITY,05/02/2013,PLANT & EQUIPMENT,FUSION,REECE SAFETY PRODUCTS LTD,5100284795,718.6,,
UNITED KINGDOM ATOMIC ENERGY AUTHORITY,UNITED KINGDOM ATOMIC ENERGY AUTHORITY,05/02/2013,PLANT & EQUIPMENT,FUSION,EDMUNDSON ELECTRICALS LTD,5100284803,85.45,,
UNITED KINGDOM ATOMIC ENERGY AUTHORITY,UNITED KINGDOM ATOMIC ENERGY AUTHORITY,05/02/2013,PLANT & EQUIPMENT,FUSION,EDMUNDSON ELECTRICALS LTD,5100284807,1821.72,,
UNITED KINGDOM ATOMIC ENERGY AUTHORITY,UNITED KINGDOM ATOMIC ENERGY AUTHORITY,05/02/2013,PLANT & EQUIPMENT,FUSION,EDMUNDSON ELECTRICALS LTD,5100284808,42.64,,
UNITED KINGDOM ATOMIC ENERGY AUTHORITY,UNITED KINGDOM ATOMIC ENERGY AUTHORITY,05/02/2013,PLANT & EQUIPMENT,FUSION,EDMUNDSON ELECTRICALS LTD,5100284809,157.51,,
UNITED KINGDOM ATOMIC ENERGY AUTHORITY,UNITED KINGDOM ATOMIC ENERGY AUTHORITY,05/02/2013,REPAIRS & MAINTENANCE,FUSION,BATT CABLES PLC,5100284819,2016.9,,
UNITED KINGDOM ATOMIC ENERGY AUTHORITY,UNITED KINGDOM ATOMIC ENERGY AUTHORITY,05/02/2013,REPAIRS & MAINTENANCE,FUSION,BATT CABLES PLC,5100284820,877.38,,
UNITED KINGDOM ATOMIC ENERGY AUTHORITY,UNITED KINGDOM ATOMIC ENERGY AUTHORITY,20/02/2013,PLANT & EQUIPMENT,FUSION,DIGIKEY CORPORATION,5100284824,136.33,,
UNITED KINGDOM ATOMIC ENERGY AUTHORITY,UNITED KINGDOM ATOMIC ENERGY AUTHORITY,05/02/2013,PLANT & EQUIPMENT,FUSION,EDMUNDSON ELECTRICALS LTD,5100284843,440.54,,
UNITED KINGDOM ATOMIC ENERGY AUTHORITY,UNITED KINGDOM ATOMIC ENERGY AUTHORITY,05/02/2013,PLANT & EQUIPMENT,FUSION,EDMUNDSON ELECTRICALS LTD,5100284844,1414,,
UNITED KINGDOM ATOMIC ENERGY AUTHORITY,UNITED KINGDOM ATOMIC ENERGY AUTHORITY,05/02/2013,PLANT & EQUIPMENT,FUSION,EDMUNDSON ELECTRICALS LTD,5100284845,68.43,,
UNITED KINGDOM ATOMIC ENERGY AUTHORITY,UNITED KINGDOM ATOMIC ENERGY AUTHORITY,05/02/2013,PLANT & EQUIPMENT,FUSION,EDMUNDSON ELECTRICALS LTD,5100284846,490,,
UNITED KINGDOM ATOMIC ENERGY AUTHORITY,UNITED KINGDOM ATOMIC ENERGY AUTHORITY,05/02/2013,PLANT & EQUIPMENT,FUSION,EDMUNDSON ELECTRICALS LTD,5100284848,7.42,,
UNITED KINGDOM ATOMIC ENERGY AUTHORITY,UNITED KINGDOM ATOMIC ENERGY AUTHORITY,05/02/2013,PLANT & EQUIPMENT,FUSION,EDMUNDSON ELECTRICALS LTD,5100284849,348.53,,
UNITED KINGDOM ATOMIC ENERGY AUTHORITY,UNITED KINGDOM ATOMIC ENERGY AUTHORITY,05/02/2013,PLANT & EQUIPMENT,FUSION,EDMUNDSON ELECTRICALS LTD,5100284850,223.17,,
UNITED KINGDOM ATOMIC ENERGY AUTHORITY,UNITED KINGDOM ATOMIC ENERGY AUTHORITY,05/02/2013,PLANT & EQUIPMENT,FUSION,EDMUNDSON ELECTRICALS LTD,5100284851,532.47,,
UNITED KINGDOM ATOMIC ENERGY AUTHORITY,UNITED KINGDOM ATOMIC ENERGY AUTHORITY,05/02/2013,PLANT & EQUIPMENT,FUSION,EDMUNDSON ELECTRICALS LTD,5100284852,863.98,,
UNITED KINGDOM ATOMIC ENERGY AUTHORITY,UNITED KINGDOM ATOMIC ENERGY AUTHORITY,05/02/2013,PERSONAL PROTECTIVE EQUIPMENT,FUSION,ARCO LTD,5100284862,74.9,,
UNITED KINGDOM ATOMIC ENERGY AUTHORITY,UNITED KINGDOM ATOMIC ENERGY AUTHORITY,05/02/2013,PERSONAL PROTECTIVE EQUIPMENT,FUSION,ARCO LTD,5100284865,33.84,,
UNITED KINGDOM ATOMIC ENERGY AUTHORITY,UNITED KINGDOM ATOMIC ENERGY AUTHORITY,05/02/2013,PERSONAL PROTECTIVE EQUIPMENT,FUSION,ARCO LTD,5100284866,62.04,,
UNITED KINGDOM ATOMIC ENERGY AUTHORITY,UNITED KINGDOM ATOMIC ENERGY AUTHORITY,05/02/2013,PERSONAL PROTECTIVE EQUIPMENT,FUSION,ARCO LTD,5100284867,20.68,,
UNITED KINGDOM ATOMIC ENERGY AUTHORITY,UNITED KINGDOM ATOMIC ENERGY AUTHORITY,05/02/2013,PERSONAL PROTECTIVE EQUIPMENT,FUSION,ARCO LTD,5100284868,1641,,
UNITED KINGDOM ATOMIC ENERGY AUTHORITY,UNITED KINGDOM ATOMIC ENERGY AUTHORITY,05/02/2013,PERSONAL PROTECTIVE EQUIPMENT,FUSION,ARCO LTD,5100284869,-68.58,,
UNITED KINGDOM ATOMIC ENERGY AUTHORITY,UNITED KINGDOM ATOMIC ENERGY AUTHORITY,05/02/2013,PLANT & EQUIPMENT,FUSION,FISHER SCIENTIFIC UK LTD,5100284888,13.41,,
UNITED KINGDOM ATOMIC ENERGY AUTHORITY,UNITED KINGDOM ATOMIC ENERGY AUTHORITY,05/02/2013,STATIONERY,FUSION,LYRECO UK LIMITED,5100284893,313.85,,
UNITED KINGDOM ATOMIC ENERGY AUTHORITY,UNITED KINGDOM ATOMIC ENERGY AUTHORITY,05/02/2013,PERSONAL PROTECTIVE EQUIPMENT,FUSION,ARCO LTD,5100284921,2.01,,
UNITED KINGDOM ATOMIC ENERGY AUTHORITY,UNITED KINGDOM ATOMIC ENERGY AUTHORITY,11/02/2013,MATERIALS & SPARES,FUSION,FARNELL ELECTRONIC,5100284943,50.3,,
UNITED KINGDOM ATOMIC ENERGY AUTHORITY,UNITED KINGDOM ATOMIC ENERGY AUTHORITY,05/02/2013,MATERIALS & SPARES,FUSION,FARNELL ELECTRONIC,5100284944,60.9,,
UNITED KINGDOM ATOMIC ENERGY AUTHORITY,UNITED KINGDOM ATOMIC ENERGY AUTHORITY,11/02/2013,MATERIALS & SPARES,FUSION,FARNELL ELECTRONIC,5100284958,235.62,,
UNITED KINGDOM ATOMIC ENERGY AUTHORITY,UNITED KINGDOM ATOMIC ENERGY AUTHORITY,18/02/2013,MATERIALS & SPARES,FUSION,FARNELL ELECTRONIC,5100284959,89.55,,
UNITED KINGDOM ATOMIC ENERGY AUTHORITY,UNITED KINGDOM ATOMIC ENERGY AUTHORITY,11/02/2013,MATERIALS & SPARES,FUSION,PIRTEK OXFORD,5100284961,259.02,,
UNITED KINGDOM ATOMIC ENERGY AUTHORITY,UNITED KINGDOM ATOMIC ENERGY AUTHORITY,05/02/2013,PERSONAL PROTECTIVE EQUIPMENT,FUSION,ARCO LTD,5100284978,37.38,,
UNITED KINGDOM ATOMIC ENERGY AUTHORITY,UNITED KINGDOM ATOMIC ENERGY AUTHORITY,05/02/2013,PERSONAL PROTECTIVE EQUIPMENT,FUSION,ARCO LTD,5100284980,-46.68,,
UNITED KINGDOM ATOMIC ENERGY AUTHORITY,UNITED KINGDOM ATOMIC ENERGY AUTHORITY,05/02/2013,PERSONAL PROTECTIVE EQUIPMENT,FUSION,ARCO LTD,5100284981,81.5,,
UNITED KINGDOM ATOMIC ENERGY AUTHORITY,UNITED KINGDOM ATOMIC ENERGY AUTHORITY,05/02/2013,PERSONAL PROTECTIVE EQUIPMENT,FUSION,ARCO LTD,5100284982,90.46,,
UNITED KINGDOM ATOMIC ENERGY AUTHORITY,UNITED KINGDOM ATOMIC ENERGY AUTHORITY,11/02/2013,REPAIRS & MAINTENANCE,FUSION,BATT CABLES PLC,5100285002,1406.6,,
UNITED KINGDOM ATOMIC ENERGY AUTHORITY,UNITED KINGDOM ATOMIC ENERGY AUTHORITY,11/02/2013,REPAIRS & MAINTENANCE,FUSION,BATT CABLES PLC,5100285003,2303.4,,
UNITED KINGDOM ATOMIC ENERGY AUTHORITY,UNITED KINGDOM ATOMIC ENERGY AUTHORITY,11/02/2013,REPAIRS & MAINTENANCE,FUSION,BATT CABLES PLC,5100285004,5471.8,,
UNITED KINGDOM ATOMIC ENERGY AUTHORITY,UNITED KINGDOM ATOMIC ENERGY AUTHORITY,11/02/2013,REPAIRS & MAINTENANCE,FUSION,BATT CABLES PLC,5100285005,2526,,
UNITED KINGDOM ATOMIC ENERGY AUTHORITY,UNITED KINGDOM ATOMIC ENERGY AUTHORITY,11/02/2013,PLANT & EQUIPMENT,FUSION,EDMUNDSON ELECTRICALS LTD,5100285007,298.1,,
UNITED KINGDOM ATOMIC ENERGY AUTHORITY,UNITED KINGDOM ATOMIC ENERGY AUTHORITY,11/02/2013,PLANT & EQUIPMENT,FUSION,EDMUNDSON ELECTRICALS LTD,5100285009,237.93,,
UNITED KINGDOM ATOMIC ENERGY AUTHORITY,UNITED KINGDOM ATOMIC ENERGY AUTHORITY,11/02/2013,PLANT & EQUIPMENT,FUSION,EDMUNDSON ELECTRICALS LTD,5100285010,708.88,,
UNITED KINGDOM ATOMIC ENERGY AUTHORITY,UNITED KINGDOM ATOMIC ENERGY AUTHORITY,11/02/2013,PLANT & EQUIPMENT,FUSION,EDMUNDSON ELECTRICALS LTD,5100285011,1723.51,,
UNITED KINGDOM ATOMIC ENERGY AUTHORITY,UNITED KINGDOM ATOMIC ENERGY AUTHORITY,11/02/2013,BUILDING REPAIRS,FUSION,TILL & WHITEHEAD LTD,5100285043,0.82,,
UNITED KINGDOM ATOMIC ENERGY AUTHORITY,UNITED KINGDOM ATOMIC ENERGY AUTHORITY,11/02/2013,BUILDING REPAIRS,FUSION,TILL & WHITEHEAD LTD,5100285044,43.3,,
UNITED KINGDOM ATOMIC ENERGY AUTHORITY,UNITED KINGDOM ATOMIC ENERGY AUTHORITY,11/02/2013,VEHICLE REPAIRS,FUSION,SUTTON COURTENAY TYRES,5100285057,171,,
UNITED KINGDOM ATOMIC ENERGY AUTHORITY,UNITED KINGDOM ATOMIC ENERGY AUTHORITY,11/02/2013,SOFTWARE,FUSION,AMTECH POWER SOFTWARE,5100285060,15000,,
UNITED KINGDOM ATOMIC ENERGY AUTHORITY,UNITED KINGDOM ATOMIC ENERGY AUTHORITY,11/02/2013,REPAIRS & MAINTENANCE,FUSION,BATT CABLES PLC,5100285061,2411,,
UNITED KINGDOM ATOMIC ENERGY AUTHORITY,UNITED KINGDOM ATOMIC ENERGY AUTHORITY,11/02/2013,REPAIRS & MAINTENANCE,FUSION,BATT CABLES PLC,5100285062,150,,
UNITED KINGDOM ATOMIC ENERGY AUTHORITY,UNITED KINGDOM ATOMIC ENERGY AUTHORITY,13/02/2013,BUILDING REPAIRS,FUSION,LORNE STEWART PLC,5100285076,2423.63,,
UNITED KINGDOM ATOMIC ENERGY AUTHORITY,UNITED KINGDOM ATOMIC ENERGY AUTHORITY,13/02/2013,BUILDING REPAIRS,FUSION,LORNE STEWART PLC,5100285077,15115.89,,
UNITED KINGDOM ATOMIC ENERGY AUTHORITY,UNITED KINGDOM ATOMIC ENERGY AUTHORITY,13/02/2013,BUILDING REPAIRS,FUSION,LORNE STEWART PLC,5100285099,19454.18,,
UNITED KINGDOM ATOMIC ENERGY AUTHORITY,UNITED KINGDOM ATOMIC ENERGY AUTHORITY,13/02/2013,PERSONAL PROTECTIVE EQUIPMENT,FUSION,ARCO LTD,5100285136,21.6,,
UNITED KINGDOM ATOMIC ENERGY AUTHORITY,UNITED KINGDOM ATOMIC ENERGY AUTHORITY,13/02/2013,PERSONAL PROTECTIVE EQUIPMENT,FUSION,ARCO LTD,5100285138,684,,
UNITED KINGDOM ATOMIC ENERGY AUTHORITY,UNITED KINGDOM ATOMIC ENERGY AUTHORITY,13/02/2013,PERSONAL PROTECTIVE EQUIPMENT,FUSION,ARCO LTD,5100285139,2700,,
UNITED KINGDOM ATOMIC ENERGY AUTHORITY,UNITED KINGDOM ATOMIC ENERGY AUTHORITY,13/02/2013,PERSONAL PROTECTIVE EQUIPMENT,FUSION,ARCO LTD,5100285142,715.2,,
UNITED KINGDOM ATOMIC ENERGY AUTHORITY,UNITED KINGDOM ATOMIC ENERGY AUTHORITY,13/02/2013,PERSONAL PROTECTIVE EQUIPMENT,FUSION,ARCO LTD,5100285145,380,,
UNITED KINGDOM ATOMIC ENERGY AUTHORITY,UNITED KINGDOM ATOMIC ENERGY AUTHORITY,11/02/2013,MATERIALS & SPARES,FUSION,CBL ELECTRIC VEHICLES LTD,5100285160,124.88,,
UNITED KINGDOM ATOMIC ENERGY AUTHORITY,UNITED KINGDOM ATOMIC ENERGY AUTHORITY,11/02/2013,MATERIALS & SPARES,FUSION,CBL ELECTRIC VEHICLES LTD,5100285161,616.86,,
UNITED KINGDOM ATOMIC ENERGY AUTHORITY,UNITED KINGDOM ATOMIC ENERGY AUTHORITY,11/02/2013,MATERIALS & SPARES,FUSION,CBL ELECTRIC VEHICLES LTD,5100285162,99.12,,
UNITED KINGDOM ATOMIC ENERGY AUTHORITY,UNITED KINGDOM ATOMIC ENERGY AUTHORITY,20/02/2013,MATERIALS & SPARES,FUSION,CBL ELECTRIC VEHICLES LTD,5100285163,1227.78,,
UNITED KINGDOM ATOMIC ENERGY AUTHORITY,UNITED KINGDOM ATOMIC ENERGY AUTHORITY,18/02/2013,MATERIALS & SPARES,FUSION,RS COMPONENTS LTD,5100285185,1012.5,,
UNITED KINGDOM ATOMIC ENERGY AUTHORITY,UNITED KINGDOM ATOMIC ENERGY AUTHORITY,13/02/2013,LAUNDRY,FUSION,BLUEBELL LAUNDRY,5100285195,124.1,,
UNITED KINGDOM ATOMIC ENERGY AUTHORITY,UNITED KINGDOM ATOMIC ENERGY AUTHORITY,18/02/2013,MATERIALS & SPARES,FUSION,RS COMPONENTS LTD,5100285212,58.19,,
UNITED KINGDOM ATOMIC ENERGY AUTHORITY,UNITED KINGDOM ATOMIC ENERGY AUTHORITY,18/02/2013,MATERIALS & SPARES,FUSION,RS COMPONENTS LTD,5100285236,58.55,,
UNITED KINGDOM ATOMIC ENERGY AUTHORITY,UNITED KINGDOM ATOMIC ENERGY AUTHORITY,18/02/2013,MATERIALS & SPARES,FUSION,RS COMPONENTS LTD,5100285238,62.77,,
UNITED KINGDOM ATOMIC ENERGY AUTHORITY,UNITED KINGDOM ATOMIC ENERGY AUTHORITY,13/02/2013,MATERIALS & SPARES,FUSION,ALPHA PACKAGING,5100285243,955.25,,
UNITED KINGDOM ATOMIC ENERGY AUTHORITY,UNITED KINGDOM ATOMIC ENERGY AUTHORITY,18/02/2013,MATERIALS & SPARES,FUSION,RS COMPONENTS LTD,5100285260,14.58,,
UNITED KINGDOM ATOMIC ENERGY AUTHORITY,UNITED KINGDOM ATOMIC ENERGY AUTHORITY,13/02/2013,GASES,FUSION,BOC LTD,5100285273,63.84,,
UNITED KINGDOM ATOMIC ENERGY AUTHORITY,UNITED KINGDOM ATOMIC ENERGY AUTHORITY,11/02/2013,MATERIALS & SPARES,FUSION,RS COMPONENTS LTD,5100285291,54.25,,
UNITED KINGDOM ATOMIC ENERGY AUTHORITY,UNITED KINGDOM ATOMIC ENERGY AUTHORITY,11/02/2013,MATERIALS & SPARES,FUSION,RS COMPONENTS LTD,5100285292,40.46,,
UNITED KINGDOM ATOMIC ENERGY AUTHORITY,UNITED KINGDOM ATOMIC ENERGY AUTHORITY,11/02/2013,STATIONERY,FUSION,LYRECO UK LIMITED,5100285300,185.81,,
UNITED KINGDOM ATOMIC ENERGY AUTHORITY,UNITED KINGDOM ATOMIC ENERGY AUTHORITY,11/02/2013,STATIONERY,FUSION,LYRECO UK LIMITED,5100285301,287.81,,
UNITED KINGDOM ATOMIC ENERGY AUTHORITY,UNITED KINGDOM ATOMIC ENERGY AUTHORITY,11/02/2013,STATIONERY,FUSION,LYRECO UK LIMITED,5100285303,-116.97,,
UNITED KINGDOM ATOMIC ENERGY AUTHORITY,UNITED KINGDOM ATOMIC ENERGY AUTHORITY,11/02/2013,STATIONERY,FUSION,LYRECO UK LIMITED,5100285304,116.97,,
UNITED KINGDOM ATOMIC ENERGY AUTHORITY,UNITED KINGDOM ATOMIC ENERGY AUTHORITY,13/02/2013,MATERIALS & SPARES,FUSION,FARNELL ELECTRONIC,5100285321,83.89,,
UNITED KINGDOM ATOMIC ENERGY AUTHORITY,UNITED KINGDOM ATOMIC ENERGY AUTHORITY,18/02/2013,PLANT & EQUIPMENT,FUSION,EDMUNDSON ELECTRICALS LTD,5100285351,491.37,,
UNITED KINGDOM ATOMIC ENERGY AUTHORITY,UNITED KINGDOM ATOMIC ENERGY AUTHORITY,18/02/2013,MATERIALS & SPARES,FUSION,BSS OXFORD,5100285353,92.32,,
UNITED KINGDOM ATOMIC ENERGY AUTHORITY,UNITED KINGDOM ATOMIC ENERGY AUTHORITY,18/02/2013,CONSUMABLES,FUSION,SYNERGYHEALTH (UK) LIMITED,5100285363,654.6,,
UNITED KINGDOM ATOMIC ENERGY AUTHORITY,UNITED KINGDOM ATOMIC ENERGY AUTHORITY,18/02/2013,PLANT & EQUIPMENT,FUSION,EDMUNDSON ELECTRICALS LTD,5100285369,178.68,,
UNITED KINGDOM ATOMIC ENERGY AUTHORITY,UNITED KINGDOM ATOMIC ENERGY AUTHORITY,18/02/2013,PLANT & EQUIPMENT,FUSION,EDMUNDSON ELECTRICALS LTD,5100285370,105.77,,
UNITED KINGDOM ATOMIC ENERGY AUTHORITY,UNITED KINGDOM ATOMIC ENERGY AUTHORITY,18/02/2013,PERSONAL PROTECTIVE EQUIPMENT,FUSION,ARCO LTD,5100285376,40.32,,
UNITED KINGDOM ATOMIC ENERGY AUTHORITY,UNITED KINGDOM ATOMIC ENERGY AUTHORITY,18/02/2013,PERSONAL PROTECTIVE EQUIPMENT,FUSION,ARCO LTD,5100285377,193.2,,
UNITED KINGDOM ATOMIC ENERGY AUTHORITY,UNITED KINGDOM ATOMIC ENERGY AUTHORITY,18/02/2013,PERSONAL PROTECTIVE EQUIPMENT,FUSION,ARCO LTD,5100285382,137.16,,
UNITED KINGDOM ATOMIC ENERGY AUTHORITY,UNITED KINGDOM ATOMIC ENERGY AUTHORITY,20/02/2013,PLANT SPARES,FUSION,CSE INDUSTRIAL ELECTRICAL DISTRIBUT,5100285442,710,,
UNITED KINGDOM ATOMIC ENERGY AUTHORITY,UNITED KINGDOM ATOMIC ENERGY AUTHORITY,20/02/2013,PLANT SPARES,FUSION,CSE INDUSTRIAL ELECTRICAL DISTRIBUT,5100285448,365,,
UNITED KINGDOM ATOMIC ENERGY AUTHORITY,UNITED KINGDOM ATOMIC ENERGY AUTHORITY,20/02/2013,MATERIALS & SPARES,FUSION,OXFORD BOLTS & BEARINGS,5100285483,240.55,,
UNITED KINGDOM ATOMIC ENERGY AUTHORITY,UNITED KINGDOM ATOMIC ENERGY AUTHORITY,18/02/2013,STATIONERY,FUSION,LYRECO UK LIMITED,5100285488,444.13,,
UNITED KINGDOM ATOMIC ENERGY AUTHORITY,UNITED KINGDOM ATOMIC ENERGY AUTHORITY,18/02/2013,STATIONERY,FUSION,LYRECO UK LIMITED,5100285489,28.51,,
UNITED KINGDOM ATOMIC ENERGY AUTHORITY,UNITED KINGDOM ATOMIC ENERGY AUTHORITY,18/02/2013,STATIONERY,FUSION,LYRECO UK LIMITED,5100285490,187.71,,
UNITED KINGDOM ATOMIC ENERGY AUTHORITY,UNITED KINGDOM ATOMIC ENERGY AUTHORITY,18/02/2013,STATIONERY,FUSION,LYRECO UK LIMITED,5100285491,146.07,,
UNITED KINGDOM ATOMIC ENERGY AUTHORITY,UNITED KINGDOM ATOMIC ENERGY AUTHORITY,18/02/2013,MATERIALS & SPARES,FUSION,RS COMPONENTS LTD,5100285504,82,,
UNITED KINGDOM ATOMIC ENERGY AUTHORITY,UNITED KINGDOM ATOMIC ENERGY AUTHORITY,18/02/2013,MATERIALS & SPARES,FUSION,CROMWELL LTD,5100285525,9,,
UNITED KINGDOM ATOMIC ENERGY AUTHORITY,UNITED KINGDOM ATOMIC ENERGY AUTHORITY,20/02/2013,PERSONAL PROTECTIVE EQUIPMENT,FUSION,ARCO LTD,5100285528,79.59,,
UNITED KINGDOM ATOMIC ENERGY AUTHORITY,UNITED KINGDOM ATOMIC ENERGY AUTHORITY,20/02/2013,PERSONAL PROTECTIVE EQUIPMENT,FUSION,ARCO LTD,5100285533,269.12,,
UNITED KINGDOM ATOMIC ENERGY AUTHORITY,UNITED KINGDOM ATOMIC ENERGY AUTHORITY,30/01/2013,PLANT & EQUIPMENT REPAIR,FUSION,Part Tracker,1900057692,2081.44,,
UNITED KINGDOM ATOMIC ENERGY AUTHORITY,UNITED KINGDOM ATOMIC ENERGY AUTHORITY,20/02/2013,MEDICAL EXPENSES,FUSION,IMASS LTD,5100284694,4207.33,,
UNITED KINGDOM ATOMIC ENERGY AUTHORITY,UNITED KINGDOM ATOMIC ENERGY AUTHORITY,28/01/2013,PROFESSIONAL SERVICES,FUSION,PERKIN ELMER LAS UK LTD,5100284044,2661.12,,
UNITED KINGDOM ATOMIC ENERGY AUTHORITY,UNITED KINGDOM ATOMIC ENERGY AUTHORITY,20/02/2013,MATERIALS & SPARES,FUSION,CASELLA CEL LTD,5100284196,4067.5,,
UNITED KINGDOM ATOMIC ENERGY AUTHORITY,UNITED KINGDOM ATOMIC ENERGY AUTHORITY,28/01/2013,GASES,FUSION,BOC LTD,5100284298,186.68,,
UNITED KINGDOM ATOMIC ENERGY AUTHORITY,UNITED KINGDOM ATOMIC ENERGY AUTHORITY,28/01/2013,MATERIALS & SPARES,FUSION,THERMO ELECTRON MANNUFACTURING LTD,5100284330,1688.96,,
UNITED KINGDOM ATOMIC ENERGY AUTHORITY,UNITED KINGDOM ATOMIC ENERGY AUTHORITY,28/01/2013,PLANT & EQUIPMENT,FUSION,ALPHA LABORATORIES,5100284542,174.2,,
UNITED KINGDOM ATOMIC ENERGY AUTHORITY,UNITED KINGDOM ATOMIC ENERGY AUTHORITY,28/01/2013,PLANT & EQUIPMENT,FUSION,ALPHA LABORATORIES,5100284543,1466.45,,
UNITED KINGDOM ATOMIC ENERGY AUTHORITY,UNITED KINGDOM ATOMIC ENERGY AUTHORITY,05/02/2013,PROFESSIONAL SERVICES,FUSION,SCIENTIFICS LTD,5100284632,900,,
UNITED KINGDOM ATOMIC ENERGY AUTHORITY,UNITED KINGDOM ATOMIC ENERGY AUTHORITY,20/02/2013,REPAIRS & MAINTENANCE,FUSION,C GERHARDT UK LTD,5100284642,5179,,
UNITED KINGDOM ATOMIC ENERGY AUTHORITY,UNITED KINGDOM ATOMIC ENERGY AUTHORITY,28/01/2013,PLANT & EQUIPMENT,FUSION,FISHER SCIENTIFIC UK LTD,5100284702,46.08,,
UNITED KINGDOM ATOMIC ENERGY AUTHORITY,UNITED KINGDOM ATOMIC ENERGY AUTHORITY,28/01/2013,PLANT & EQUIPMENT,FUSION,GARDNER DENVER ALTON LTD,5100284726,491,,
UNITED KINGDOM ATOMIC ENERGY AUTHORITY,UNITED KINGDOM ATOMIC ENERGY AUTHORITY,05/02/2013,PROFESSIONAL SERVICES,FUSION,SCIENTIFICS LTD,5100284768,900,,
UNITED KINGDOM ATOMIC ENERGY AUTHORITY,UNITED KINGDOM ATOMIC ENERGY AUTHORITY,05/02/2013,PLANT & EQUIPMENT,FUSION,FISHER SCIENTIFIC UK LTD,5100284796,1307.67,,
UNITED KINGDOM ATOMIC ENERGY AUTHORITY,UNITED KINGDOM ATOMIC ENERGY AUTHORITY,05/02/2013,GASES,FUSION,BOC LTD,5100284818,1338.66,,
UNITED KINGDOM ATOMIC ENERGY AUTHORITY,UNITED KINGDOM ATOMIC ENERGY AUTHORITY,05/02/2013,PERSONAL PROTECTIVE EQUIPMENT,FUSION,SURE SAFE LTD,5100284834,109,,
UNITED KINGDOM ATOMIC ENERGY AUTHORITY,UNITED KINGDOM ATOMIC ENERGY AUTHORITY,05/02/2013,MATERIALS & SPARES,FUSION,WEATHERALL EQUIPMENT,5100284840,98,,
UNITED KINGDOM ATOMIC ENERGY AUTHORITY,UNITED KINGDOM ATOMIC ENERGY AUTHORITY,05/02/2013,PROFESSIONAL SERVICES,FUSION,SCIENTIFICS LTD,5100284885,235,,
UNITED KINGDOM ATOMIC ENERGY AUTHORITY,UNITED KINGDOM ATOMIC ENERGY AUTHORITY,20/02/2013,PLANT & EQUIPMENT,FUSION,CANBERRA UK LIMITED,5100284887,5873,,
UNITED KINGDOM ATOMIC ENERGY AUTHORITY,UNITED KINGDOM ATOMIC ENERGY AUTHORITY,05/02/2013,PLANT & EQUIPMENT,FUSION,FISHER SCIENTIFIC UK LTD,5100284889,565.01,,
UNITED KINGDOM ATOMIC ENERGY AUTHORITY,UNITED KINGDOM ATOMIC ENERGY AUTHORITY,05/02/2013,PLANT & EQUIPMENT,FUSION,FISHER SCIENTIFIC UK LTD,5100284890,30.4,,
UNITED KINGDOM ATOMIC ENERGY AUTHORITY,UNITED KINGDOM ATOMIC ENERGY AUTHORITY,05/02/2013,PLANT & EQUIPMENT,FUSION,FISHER SCIENTIFIC UK LTD,5100284891,239.4,,
UNITED KINGDOM ATOMIC ENERGY AUTHORITY,UNITED KINGDOM ATOMIC ENERGY AUTHORITY,20/02/2013,MATERIALS & SPARES,FUSION,CASELLA CEL LTD,5100284926,3862.5,,
UNITED KINGDOM ATOMIC ENERGY AUTHORITY,UNITED KINGDOM ATOMIC ENERGY AUTHORITY,11/02/2013,HEALTH PHYSICS,FUSION,NUVIA LIMITED,5100284987,20251.31,,
UNITED KINGDOM ATOMIC ENERGY AUTHORITY,UNITED KINGDOM ATOMIC ENERGY AUTHORITY,11/02/2013,MATERIALS & SPARES,FUSION,VWR INTERNATIONAL LTD,5100284998,3760.49,,
UNITED KINGDOM ATOMIC ENERGY AUTHORITY,UNITED KINGDOM ATOMIC ENERGY AUTHORITY,11/02/2013,PROFESSIONAL SERVICES,FUSION,PERKIN ELMER LAS UK LTD,5100285033,479,,
UNITED KINGDOM ATOMIC ENERGY AUTHORITY,UNITED KINGDOM ATOMIC ENERGY AUTHORITY,11/02/2013,PROFESSIONAL SERVICES,FUSION,SCIENTIFICS LTD,5100285035,235,,
UNITED KINGDOM ATOMIC ENERGY AUTHORITY,UNITED KINGDOM ATOMIC ENERGY AUTHORITY,11/02/2013,PROFESSIONAL SERVICES,FUSION,SCIENTIFICS LTD,5100285037,235,,
UNITED KINGDOM ATOMIC ENERGY AUTHORITY,UNITED KINGDOM ATOMIC ENERGY AUTHORITY,11/02/2013,PROFESSIONAL SERVICES,FUSION,PERKIN ELMER LAS UK LTD,5100285054,370.55,,
UNITED KINGDOM ATOMIC ENERGY AUTHORITY,UNITED KINGDOM ATOMIC ENERGY AUTHORITY,20/02/2013,MATERIALS & SPARES,FUSION,CASELLA CEL LTD,5100285103,-3862.5,,
UNITED KINGDOM ATOMIC ENERGY AUTHORITY,UNITED KINGDOM ATOMIC ENERGY AUTHORITY,20/02/2013,MATERIALS & SPARES,FUSION,CASELLA CEL LTD,5100285105,-3352.5,,
UNITED KINGDOM ATOMIC ENERGY AUTHORITY,UNITED KINGDOM ATOMIC ENERGY AUTHORITY,20/02/2013,MATERIALS & SPARES,FUSION,CASELLA CEL LTD,5100285106,3352.5,,
UNITED KINGDOM ATOMIC ENERGY AUTHORITY,UNITED KINGDOM ATOMIC ENERGY AUTHORITY,18/02/2013,GASES,FUSION,BOC LTD,5100285272,150.36,,
UNITED KINGDOM ATOMIC ENERGY AUTHORITY,UNITED KINGDOM ATOMIC ENERGY AUTHORITY,20/02/2013,MATERIALS & SPARES,FUSION,LABCAL LTD,5100285296,222,,
UNITED KINGDOM ATOMIC ENERGY AUTHORITY,UNITED KINGDOM ATOMIC ENERGY AUTHORITY,20/02/2013,PLANT & EQUIPMENT,FUSION,PYCKO SCIENTIFIC LIMITED,5100285310,7250,,
UNITED KINGDOM ATOMIC ENERGY AUTHORITY,UNITED KINGDOM ATOMIC ENERGY AUTHORITY,18/02/2013,PROFESSIONAL SERVICES,FUSION,RADIOCARBON DATING,5100285311,1876,,
UNITED KINGDOM ATOMIC ENERGY AUTHORITY,UNITED KINGDOM ATOMIC ENERGY AUTHORITY,13/02/2013,PROFESSIONAL SERVICES,FUSION,RADIOCARBON DATING,5100285312,16478.8,,
UNITED KINGDOM ATOMIC ENERGY AUTHORITY,UNITED KINGDOM ATOMIC ENERGY AUTHORITY,20/02/2013,PLANT & EQUIPMENT,FUSION,FISHER SCIENTIFIC UK LTD,5100285315,53.25,,
UNITED KINGDOM ATOMIC ENERGY AUTHORITY,UNITED KINGDOM ATOMIC ENERGY AUTHORITY,18/02/2013,PROFESSIONAL SERVICES,FUSION,SCIENTIFICS LTD,5100285338,900,,
UNITED KINGDOM ATOMIC ENERGY AUTHORITY,UNITED KINGDOM ATOMIC ENERGY AUTHORITY,20/02/2013,PROFESSIONAL SERVICES,FUSION,EUROPEAN INSTRUMENTS,5100285339,832,,
UNITED KINGDOM ATOMIC ENERGY AUTHORITY,UNITED KINGDOM ATOMIC ENERGY AUTHORITY,18/02/2013,PLANT & EQUIPMENT,FUSION,ARVAL UK LIMITED,5100285355,271.62,,
UNITED KINGDOM ATOMIC ENERGY AUTHORITY,UNITED KINGDOM ATOMIC ENERGY AUTHORITY,20/02/2013,PROFESSIONAL SERVICES,FUSION,THE SCIENTIFIC INSTRUMENT CENTRE LT,5100285383,637,,
UNITED KINGDOM ATOMIC ENERGY AUTHORITY,UNITED KINGDOM ATOMIC ENERGY AUTHORITY,20/02/2013,MATERIALS & SPARES,FUSION,VWR INTERNATIONAL LTD,5100285480,126.5,,
UNITED KINGDOM ATOMIC ENERGY AUTHORITY,UNITED KINGDOM ATOMIC ENERGY AUTHORITY,18/02/2013,MATERIALS & SPARES,FUSION,RS COMPONENTS LTD,5100285499,113.35,,
UNITED KINGDOM ATOMIC ENERGY AUTHORITY,UNITED KINGDOM ATOMIC ENERGY AUTHORITY,20/02/2013,PROFESSIONAL SERVICES,FUSION,PERKIN ELMER LAS UK LTD,5100285520,3471,,
UNITED KINGDOM ATOMIC ENERGY AUTHORITY,UNITED KINGDOM ATOMIC ENERGY AUTHORITY,28/01/2013,PROFESSIONAL SERVICES,FUSION,MATERIAL MEASUREMENTS LTD.,5100284435,87,,
UNITED KINGDOM ATOMIC ENERGY AUTHORITY,UNITED KINGDOM ATOMIC ENERGY AUTHORITY,11/02/2013,PROFESSIONAL SERVICES,FUSION,MATERIAL MEASUREMENTS LTD.,5100284916,74.83,,
UNITED KINGDOM ATOMIC ENERGY AUTHORITY,UNITED KINGDOM ATOMIC ENERGY AUTHORITY,11/02/2013,PROFESSIONAL SERVICES,FUSION,MATERIAL MEASUREMENTS LTD.,5100284917,151.1,,
UNITED KINGDOM ATOMIC ENERGY AUTHORITY,UNITED KINGDOM ATOMIC ENERGY AUTHORITY,11/02/2013,PROFESSIONAL SERVICES,FUSION,MATERIAL MEASUREMENTS LTD.,5100284918,240,,
UNITED KINGDOM ATOMIC ENERGY AUTHORITY,UNITED KINGDOM ATOMIC ENERGY AUTHORITY,05/02/2013,ADVERTISING STAFF,FUSION,TMP (UK) LTD,5100284968,2028.6,,
UNITED KINGDOM ATOMIC ENERGY AUTHORITY,UNITED KINGDOM ATOMIC ENERGY AUTHORITY,24/02/2013,TRAINING COURSE FEES,FUSION,PURCHASE CARDS,100678985,"1,171.00",,
UNITED KINGDOM ATOMIC ENERGY AUTHORITY,UNITED KINGDOM ATOMIC ENERGY AUTHORITY,05/02/2013,F&F,FUSION,EFG MATTHEWS OFFICE FURNITURE LTD,5100284791,213,,
UNITED KINGDOM ATOMIC ENERGY AUTHORITY,UNITED KINGDOM ATOMIC ENERGY AUTHORITY,13/02/2013,BUILDING REPAIRS,FUSION,LORNE STEWART PLC,5100285088,703.11,,
UNITED KINGDOM ATOMIC ENERGY AUTHORITY,UNITED KINGDOM ATOMIC ENERGY AUTHORITY,20/02/2013,PLANT SPARES,FUSION,HARDMETAL ENG CORNWALL LTD,5100283619,2576.55,,
UNITED KINGDOM ATOMIC ENERGY AUTHORITY,UNITED KINGDOM ATOMIC ENERGY AUTHORITY,18/02/2013,CAR HIRE,FUSION,LEASEDRIVE VELO,5100283986,87.32,,
UNITED KINGDOM ATOMIC ENERGY AUTHORITY,UNITED KINGDOM ATOMIC ENERGY AUTHORITY,11/02/2013,MATERIALS & SPARES,FUSION,RS COMPONENTS LTD,5100284721,437.07,,
UNITED KINGDOM ATOMIC ENERGY AUTHORITY,UNITED KINGDOM ATOMIC ENERGY AUTHORITY,11/02/2013,PLANT SPARES,FUSION,UMICORE PRECIOUS METALS KU LTD,5100284937,79,,
UNITED KINGDOM ATOMIC ENERGY AUTHORITY,UNITED KINGDOM ATOMIC ENERGY AUTHORITY,11/02/2013,PROFESSIONAL SERVICES,FUSION,MACHINING TECHNOLOGY (MACH-TECH),5100285038,487.02,,
UNITED KINGDOM ATOMIC ENERGY AUTHORITY,UNITED KINGDOM ATOMIC ENERGY AUTHORITY,11/02/2013,PROFESSIONAL SERVICES,FUSION,MACHINING TECHNOLOGY (MACH-TECH),5100285039,482.9,,
UNITED KINGDOM ATOMIC ENERGY AUTHORITY,UNITED KINGDOM ATOMIC ENERGY AUTHORITY,11/02/2013,PERSONAL PROTECTIVE EQUIPMENT,FUSION,BUCK & HICKMAN LTD,5100285169,26.4,,
UNITED KINGDOM ATOMIC ENERGY AUTHORITY,UNITED KINGDOM ATOMIC ENERGY AUTHORITY,11/02/2013,MATERIALS & SPARES,FUSION,PMD (UK) LTD,5100285174,159.9,,
UNITED KINGDOM ATOMIC ENERGY AUTHORITY,UNITED KINGDOM ATOMIC ENERGY AUTHORITY,11/02/2013,MATERIALS & SPARES,FUSION,RS COMPONENTS LTD,5100285214,108.45,,
UNITED KINGDOM ATOMIC ENERGY AUTHORITY,UNITED KINGDOM ATOMIC ENERGY AUTHORITY,11/02/2013,MATERIALS & SPARES,FUSION,RS COMPONENTS LTD,5100285258,494.75,,
UNITED KINGDOM ATOMIC ENERGY AUTHORITY,UNITED KINGDOM ATOMIC ENERGY AUTHORITY,18/02/2013,PLANT SPARES,FUSION,BRITE PRECISION,5100285346,972,,
UNITED KINGDOM ATOMIC ENERGY AUTHORITY,UNITED KINGDOM ATOMIC ENERGY AUTHORITY,18/02/2013,PROFESSIONAL SERVICES,FUSION,MACHINING TECHNOLOGY (MACH-TECH),5100285378,3231.95,,
UNITED KINGDOM ATOMIC ENERGY AUTHORITY,UNITED KINGDOM ATOMIC ENERGY AUTHORITY,20/02/2013,PLANT SPARES,FUSION,HARDMETAL ENG CORNWALL LTD,5100285433,2450.4,,
UNITED KINGDOM ATOMIC ENERGY AUTHORITY,UNITED KINGDOM ATOMIC ENERGY AUTHORITY,20/02/2013,PLANT SPARES,FUSION,HARDMETAL ENG CORNWALL LTD,5100285434,2514.15,,
UNITED KINGDOM ATOMIC ENERGY AUTHORITY,UNITED KINGDOM ATOMIC ENERGY AUTHORITY,20/02/2013,PLANT & EQUIPMENT,FUSION,PRECISION TOOLS,5100285492,99.96,,
UNITED KINGDOM ATOMIC ENERGY AUTHORITY,UNITED KINGDOM ATOMIC ENERGY AUTHORITY,18/02/2013,MATERIALS & SPARES,FUSION,CROMWELL LTD,5100285526,72,,
UNITED KINGDOM ATOMIC ENERGY AUTHORITY,UNITED KINGDOM ATOMIC ENERGY AUTHORITY,02/02/2013,TAXIS,FUSION,EMPLOYEE EXPENSES,100675927,18.72,,
UNITED KINGDOM ATOMIC ENERGY AUTHORITY,UNITED KINGDOM ATOMIC ENERGY AUTHORITY,02/02/2013,SUBSISTENCE,FUSION,EMPLOYEE EXPENSES,100675927,154.90,,
UNITED KINGDOM ATOMIC ENERGY AUTHORITY,UNITED KINGDOM ATOMIC ENERGY AUTHORITY,02/02/2013,SUBSISTENCE,FUSION,EMPLOYEE EXPENSES,100675927,3.08,,
UNITED KINGDOM ATOMIC ENERGY AUTHORITY,UNITED KINGDOM ATOMIC ENERGY AUTHORITY,02/02/2013,ROAD TRAVEL,FUSION,EMPLOYEE EXPENSES,100675927,9.32,,
UNITED KINGDOM ATOMIC ENERGY AUTHORITY,UNITED KINGDOM ATOMIC ENERGY AUTHORITY,02/02/2013,OTHER EMPLOYEE EXPENSES,FUSION,EMPLOYEE EXPENSES,100675927,2.00,,
UNITED KINGDOM ATOMIC ENERGY AUTHORITY,UNITED KINGDOM ATOMIC ENERGY AUTHORITY,21/02/2013,TAXIS,FUSION,EMPLOYEE EXPENSES,100678461,76.87,,
UNITED KINGDOM ATOMIC ENERGY AUTHORITY,UNITED KINGDOM ATOMIC ENERGY AUTHORITY,21/02/2013,SUBSISTENCE,FUSION,EMPLOYEE EXPENSES,100678461,134.81,,
UNITED KINGDOM ATOMIC ENERGY AUTHORITY,UNITED KINGDOM ATOMIC ENERGY AUTHORITY,21/02/2013,SUBSISTENCE,FUSION,EMPLOYEE EXPENSES,100678471,176.48,,
UNITED KINGDOM ATOMIC ENERGY AUTHORITY,UNITED KINGDOM ATOMIC ENERGY AUTHORITY,21/02/2013,ROAD TRAVEL,FUSION,EMPLOYEE EXPENSES,100678461,14.60,,
UNITED KINGDOM ATOMIC ENERGY AUTHORITY,UNITED KINGDOM ATOMIC ENERGY AUTHORITY,21/02/2013,ROAD TRAVEL,FUSION,EMPLOYEE EXPENSES,100678471,13.12,,
UNITED KINGDOM ATOMIC ENERGY AUTHORITY,UNITED KINGDOM ATOMIC ENERGY AUTHORITY,21/02/2013,OTHER EMPLOYEE EXPENSES,FUSION,EMPLOYEE EXPENSES,100678461,69.45,,
UNITED KINGDOM ATOMIC ENERGY AUTHORITY,UNITED KINGDOM ATOMIC ENERGY AUTHORITY,05/02/2013,MATERIALS & SPARES,FUSION,WELDTEK ENGINEERING LTD,5100284811,210,,
UNITED KINGDOM ATOMIC ENERGY AUTHORITY,UNITED KINGDOM ATOMIC ENERGY AUTHORITY,28/01/2013,PLANT SPARES,FUSION,TTI GROUP LTD - NITRIDING SERVICES,5100280823,1564.02,,
UNITED KINGDOM ATOMIC ENERGY AUTHORITY,UNITED KINGDOM ATOMIC ENERGY AUTHORITY,28/01/2013,PLANT SPARES,FUSION,TTI GROUP LTD - NITRIDING SERVICES,5100280841,1564.02,,
UNITED KINGDOM ATOMIC ENERGY AUTHORITY,UNITED KINGDOM ATOMIC ENERGY AUTHORITY,28/01/2013,PROFESSIONAL SERVICES,FUSION,FREYA CONSULTING,5100284135,5850,,
UNITED KINGDOM ATOMIC ENERGY AUTHORITY,UNITED KINGDOM ATOMIC ENERGY AUTHORITY,06/02/2013,PLANT & EQUIPMENT,FUSION,JEMA,5100284210,29705.77,,
UNITED KINGDOM ATOMIC ENERGY AUTHORITY,UNITED KINGDOM ATOMIC ENERGY AUTHORITY,28/01/2013,MATERIALS & SPARES,FUSION,THORLABS LTD,5100284546,369.94,,
UNITED KINGDOM ATOMIC ENERGY AUTHORITY,UNITED KINGDOM ATOMIC ENERGY AUTHORITY,28/01/2013,MATERIALS & SPARES,FUSION,Alrad Instruments Ltd,5100284556,297.5,,
UNITED KINGDOM ATOMIC ENERGY AUTHORITY,UNITED KINGDOM ATOMIC ENERGY AUTHORITY,28/01/2013,PLANT & EQUIPMENT,FUSION,PHOTONIC SOLUTIONS PLC,5100284637,760,,
UNITED KINGDOM ATOMIC ENERGY AUTHORITY,UNITED KINGDOM ATOMIC ENERGY AUTHORITY,30/01/2013,MATERIALS & SPARES,FUSION,KEY INDUSTRIAL EQUIPMENT LTD,5100284638,2847.29,,
UNITED KINGDOM ATOMIC ENERGY AUTHORITY,UNITED KINGDOM ATOMIC ENERGY AUTHORITY,28/01/2013,PLANT & EQUIPMENT,FUSION,NEWPORT SPECTRA-PHYSICS LTD,5100284641,1105,,
UNITED KINGDOM ATOMIC ENERGY AUTHORITY,UNITED KINGDOM ATOMIC ENERGY AUTHORITY,28/01/2013,BUILDING REPAIRS,FUSION,KNOWLES & SONS (OXFORD) LTD,5100284682,654.5,,
UNITED KINGDOM ATOMIC ENERGY AUTHORITY,UNITED KINGDOM ATOMIC ENERGY AUTHORITY,28/01/2013,BUILDING REPAIRS,FUSION,KNOWLES & SONS (OXFORD) LTD,5100284684,305.93,,
UNITED KINGDOM ATOMIC ENERGY AUTHORITY,UNITED KINGDOM ATOMIC ENERGY AUTHORITY,30/01/2013,PLANT SPARES,FUSION,TTI GROUP LTD - NITRIDING SERVICES,5100284691,-129.02,,
UNITED KINGDOM ATOMIC ENERGY AUTHORITY,UNITED KINGDOM ATOMIC ENERGY AUTHORITY,30/01/2013,PLANT SPARES,FUSION,TTI GROUP LTD - NITRIDING SERVICES,5100284692,-129.02,,
UNITED KINGDOM ATOMIC ENERGY AUTHORITY,UNITED KINGDOM ATOMIC ENERGY AUTHORITY,28/01/2013,CAR HIRE,FUSION,LEASEDRIVE VELO,5100284697,34.39,,
UNITED KINGDOM ATOMIC ENERGY AUTHORITY,UNITED KINGDOM ATOMIC ENERGY AUTHORITY,30/01/2013,MATERIALS & SPARES,FUSION,Ensinger Precision Engineering Ltd,5100284708,2013.4,,
UNITED KINGDOM ATOMIC ENERGY AUTHORITY,UNITED KINGDOM ATOMIC ENERGY AUTHORITY,28/01/2013,MATERIALS & SPARES,FUSION,RS COMPONENTS LTD,5100284710,89,,
UNITED KINGDOM ATOMIC ENERGY AUTHORITY,UNITED KINGDOM ATOMIC ENERGY AUTHORITY,28/01/2013,CAR HIRE,FUSION,LEASEDRIVE VELO,5100284732,36.94,,
UNITED KINGDOM ATOMIC ENERGY AUTHORITY,UNITED KINGDOM ATOMIC ENERGY AUTHORITY,05/02/2013,MATERIALS & SPARES,FUSION,RS COMPONENTS LTD,5100284749,68.41,,
UNITED KINGDOM ATOMIC ENERGY AUTHORITY,UNITED KINGDOM ATOMIC ENERGY AUTHORITY,28/01/2013,PLANT SPARES,FUSION,TTI GROUP LTD - NITRIDING SERVICES,5100284763,-1564.02,,
UNITED KINGDOM ATOMIC ENERGY AUTHORITY,UNITED KINGDOM ATOMIC ENERGY AUTHORITY,30/01/2013,PLANT SPARES,FUSION,TTI GROUP LTD - NITRIDING SERVICES,5100284764,1564.02,,
UNITED KINGDOM ATOMIC ENERGY AUTHORITY,UNITED KINGDOM ATOMIC ENERGY AUTHORITY,28/01/2013,PLANT SPARES,FUSION,TTI GROUP LTD - NITRIDING SERVICES,5100284765,-1564.02,,
UNITED KINGDOM ATOMIC ENERGY AUTHORITY,UNITED KINGDOM ATOMIC ENERGY AUTHORITY,30/01/2013,PLANT SPARES,FUSION,TTI GROUP LTD - NITRIDING SERVICES,5100284766,1564.02,,
UNITED KINGDOM ATOMIC ENERGY AUTHORITY,UNITED KINGDOM ATOMIC ENERGY AUTHORITY,05/02/2013,MATERIALS & SPARES,FUSION,ALLECTRA LTD,5100284786,199,,
UNITED KINGDOM ATOMIC ENERGY AUTHORITY,UNITED KINGDOM ATOMIC ENERGY AUTHORITY,05/02/2013,MATERIALS & SPARES,FUSION,Castle Metals UK Ltd,5100284804,249.24,,
UNITED KINGDOM ATOMIC ENERGY AUTHORITY,UNITED KINGDOM ATOMIC ENERGY AUTHORITY,30/01/2013,PLANT & EQUIPMENT,FUSION,SCHEDULE EXOTECH,5100284813,76391.85,,
UNITED KINGDOM ATOMIC ENERGY AUTHORITY,UNITED KINGDOM ATOMIC ENERGY AUTHORITY,11/02/2013,PLANT & EQUIPMENT,FUSION,LINDAB LTD,5100284892,22.24,,
UNITED KINGDOM ATOMIC ENERGY AUTHORITY,UNITED KINGDOM ATOMIC ENERGY AUTHORITY,13/02/2013,MATERIALS & SPARES,FUSION,POUNDFIELD PRODUCTS,5100285008,225,,
UNITED KINGDOM ATOMIC ENERGY AUTHORITY,UNITED KINGDOM ATOMIC ENERGY AUTHORITY,11/02/2013,MATERIALS & SPARES,FUSION,THORLABS LTD,5100285029,228.96,,
UNITED KINGDOM ATOMIC ENERGY AUTHORITY,UNITED KINGDOM ATOMIC ENERGY AUTHORITY,11/02/2013,MATERIALS & SPARES,FUSION,FLEXIBLE & SPECIALIST CABLES,5100285046,21451.17,,
UNITED KINGDOM ATOMIC ENERGY AUTHORITY,UNITED KINGDOM ATOMIC ENERGY AUTHORITY,11/02/2013,MATERIALS & SPARES,FUSION,FLEXIBLE & SPECIALIST CABLES,5100285047,16248,,
UNITED KINGDOM ATOMIC ENERGY AUTHORITY,UNITED KINGDOM ATOMIC ENERGY AUTHORITY,11/02/2013,DESIGN & CONSTRUCTION,FUSION,WALKER CONSTRUCTION LTD,5100285049,31644.31,,
UNITED KINGDOM ATOMIC ENERGY AUTHORITY,UNITED KINGDOM ATOMIC ENERGY AUTHORITY,13/02/2013,BUILDING REPAIRS,FUSION,LORNE STEWART PLC,5100285086,975.18,,
UNITED KINGDOM ATOMIC ENERGY AUTHORITY,UNITED KINGDOM ATOMIC ENERGY AUTHORITY,11/02/2013,PROFESSIONAL SERVICES,FUSION,RBH OPTICS,5100285121,2475,,
UNITED KINGDOM ATOMIC ENERGY AUTHORITY,UNITED KINGDOM ATOMIC ENERGY AUTHORITY,11/02/2013,MATERIALS & SPARES,FUSION,CD measurements Ltd,5100285133,8773,,
UNITED KINGDOM ATOMIC ENERGY AUTHORITY,UNITED KINGDOM ATOMIC ENERGY AUTHORITY,18/02/2013,MATERIALS & SPARES,FUSION,ANIXTER (UK) LTD,5100285134,60209.88,,
UNITED KINGDOM ATOMIC ENERGY AUTHORITY,UNITED KINGDOM ATOMIC ENERGY AUTHORITY,11/02/2013,PERSONAL PROTECTIVE EQUIPMENT,FUSION,ARCO WESSEX,5100285164,1615.81,,
UNITED KINGDOM ATOMIC ENERGY AUTHORITY,UNITED KINGDOM ATOMIC ENERGY AUTHORITY,11/02/2013,MATERIALS & SPARES,FUSION,MINI-CIRCUITS EUROPE,5100285198,531.9,,
UNITED KINGDOM ATOMIC ENERGY AUTHORITY,UNITED KINGDOM ATOMIC ENERGY AUTHORITY,11/02/2013,CAR HIRE,FUSION,LEASEDRIVE VELO,5100285299,161,,
UNITED KINGDOM ATOMIC ENERGY AUTHORITY,UNITED KINGDOM ATOMIC ENERGY AUTHORITY,18/02/2013,MATERIALS & SPARES,FUSION,ANIXTER (UK) LTD,5100285340,382,,
UNITED KINGDOM ATOMIC ENERGY AUTHORITY,UNITED KINGDOM ATOMIC ENERGY AUTHORITY,18/02/2013,MATERIALS & SPARES,FUSION,ALPHA ENGINEERING SUPPLIES,5100285410,86.2,,
UNITED KINGDOM ATOMIC ENERGY AUTHORITY,UNITED KINGDOM ATOMIC ENERGY AUTHORITY,20/02/2013,REPAIRS & MAINTENANCE,FUSION,CRANE CARE LTD,5100285510,275,,
UNITED KINGDOM ATOMIC ENERGY AUTHORITY,UNITED KINGDOM ATOMIC ENERGY AUTHORITY,18/02/2013,PERSONAL PROTECTIVE EQUIPMENT,FUSION,ARCO WESSEX,5100285530,415.76,,
UNITED KINGDOM ATOMIC ENERGY AUTHORITY,UNITED KINGDOM ATOMIC ENERGY AUTHORITY,18/02/2013,PERSONAL PROTECTIVE EQUIPMENT,FUSION,ARCO WESSEX,5100285531,64.88,,
UNITED KINGDOM ATOMIC ENERGY AUTHORITY,UNITED KINGDOM ATOMIC ENERGY AUTHORITY,31/01/2013,RAW MATERIALS & CONSUMABLES,FUSION,Hague Fasterners Ltd,1900057704,131.82,,
UNITED KINGDOM ATOMIC ENERGY AUTHORITY,UNITED KINGDOM ATOMIC ENERGY AUTHORITY,05/02/2013,PLANT & EQUIPMENT,FUSION,Anglia Transformers Ltd,1900057711,8583.60,,
UNITED KINGDOM ATOMIC ENERGY AUTHORITY,UNITED KINGDOM ATOMIC ENERGY AUTHORITY,07/02/2013,RAW MATERIALS & CONSUMABLES,FUSION,Belmont Fabrications Ltd,1900057713,396.00,,
UNITED KINGDOM ATOMIC ENERGY AUTHORITY,UNITED KINGDOM ATOMIC ENERGY AUTHORITY,11/02/2013,MATERIALS & SPARES,FUSION,John Cardwell Ltd,1900057720,500.76,,
UNITED KINGDOM ATOMIC ENERGY AUTHORITY,UNITED KINGDOM ATOMIC ENERGY AUTHORITY,19/02/2013,PLANT & EQUIPMENT,FUSION,Minco,1900057739,3575.62,,
UNITED KINGDOM ATOMIC ENERGY AUTHORITY,UNITED KINGDOM ATOMIC ENERGY AUTHORITY,21/02/2013,MATERIALS & SPARES,FUSION,Cressall Resistors Ltd,1900057754,9792.00,,
UNITED KINGDOM ATOMIC ENERGY AUTHORITY,UNITED KINGDOM ATOMIC ENERGY AUTHORITY,31/01/2013,TAXIS,FUSION,EMPLOYEE EXPENSES,100675810,61.36,,
UNITED KINGDOM ATOMIC ENERGY AUTHORITY,UNITED KINGDOM ATOMIC ENERGY AUTHORITY,07/02/2013,TAXIS,FUSION,EMPLOYEE EXPENSES,100675971,19.77,,
UNITED KINGDOM ATOMIC ENERGY AUTHORITY,UNITED KINGDOM ATOMIC ENERGY AUTHORITY,21/02/2013,TAXIS,FUSION,EMPLOYEE EXPENSES,100678476,37.07,,
UNITED KINGDOM ATOMIC ENERGY AUTHORITY,UNITED KINGDOM ATOMIC ENERGY AUTHORITY,23/02/2013,TAXIS,FUSION,EMPLOYEE EXPENSES,100678876,28.74,,
UNITED KINGDOM ATOMIC ENERGY AUTHORITY,UNITED KINGDOM ATOMIC ENERGY AUTHORITY,31/01/2013,SUBSISTENCE,FUSION,EMPLOYEE EXPENSES,100675810,239.53,,
UNITED KINGDOM ATOMIC ENERGY AUTHORITY,UNITED KINGDOM ATOMIC ENERGY AUTHORITY,31/01/2013,SUBSISTENCE,FUSION,EMPLOYEE EXPENSES,100675810,10.37,,
UNITED KINGDOM ATOMIC ENERGY AUTHORITY,UNITED KINGDOM ATOMIC ENERGY AUTHORITY,07/02/2013,SUBSISTENCE,FUSION,EMPLOYEE EXPENSES,100675971,102.43,,
UNITED KINGDOM ATOMIC ENERGY AUTHORITY,UNITED KINGDOM ATOMIC ENERGY AUTHORITY,14/02/2013,SUBSISTENCE,FUSION,EMPLOYEE EXPENSES,100676068,184.13,,
UNITED KINGDOM ATOMIC ENERGY AUTHORITY,UNITED KINGDOM ATOMIC ENERGY AUTHORITY,21/02/2013,SUBSISTENCE,FUSION,EMPLOYEE EXPENSES,100678476,118.09,,
UNITED KINGDOM ATOMIC ENERGY AUTHORITY,UNITED KINGDOM ATOMIC ENERGY AUTHORITY,23/02/2013,SUBSISTENCE,FUSION,EMPLOYEE EXPENSES,100678876,91.96,,
UNITED KINGDOM ATOMIC ENERGY AUTHORITY,UNITED KINGDOM ATOMIC ENERGY AUTHORITY,23/02/2013,SUBSISTENCE,FUSION,EMPLOYEE EXPENSES,100678876,6.16,,
UNITED KINGDOM ATOMIC ENERGY AUTHORITY,UNITED KINGDOM ATOMIC ENERGY AUTHORITY,31/01/2013,RAIL TRAVEL,FUSION,EMPLOYEE EXPENSES,100675810,2.52,,
UNITED KINGDOM ATOMIC ENERGY AUTHORITY,UNITED KINGDOM ATOMIC ENERGY AUTHORITY,31/01/2013,ROAD TRAVEL,FUSION,EMPLOYEE EXPENSES,100675810,29.00,,
UNITED KINGDOM ATOMIC ENERGY AUTHORITY,UNITED KINGDOM ATOMIC ENERGY AUTHORITY,07/02/2013,ROAD TRAVEL,FUSION,EMPLOYEE EXPENSES,100675971,37.50,,
UNITED KINGDOM ATOMIC ENERGY AUTHORITY,UNITED KINGDOM ATOMIC ENERGY AUTHORITY,21/02/2013,ROAD TRAVEL,FUSION,EMPLOYEE EXPENSES,100678470,29.55,,
UNITED KINGDOM ATOMIC ENERGY AUTHORITY,UNITED KINGDOM ATOMIC ENERGY AUTHORITY,21/02/2013,ROAD TRAVEL,FUSION,EMPLOYEE EXPENSES,100678476,24.00,,
UNITED KINGDOM ATOMIC ENERGY AUTHORITY,UNITED KINGDOM ATOMIC ENERGY AUTHORITY,23/02/2013,ROAD TRAVEL,FUSION,EMPLOYEE EXPENSES,100678876,37.50,,
UNITED KINGDOM ATOMIC ENERGY AUTHORITY,UNITED KINGDOM ATOMIC ENERGY AUTHORITY,31/01/2013,OTHER EMPLOYEE EXPENSES,FUSION,EMPLOYEE EXPENSES,100675810,5.90,,
UNITED KINGDOM ATOMIC ENERGY AUTHORITY,UNITED KINGDOM ATOMIC ENERGY AUTHORITY,07/02/2013,OTHER EMPLOYEE EXPENSES,FUSION,EMPLOYEE EXPENSES,100675971,2.45,,
UNITED KINGDOM ATOMIC ENERGY AUTHORITY,UNITED KINGDOM ATOMIC ENERGY AUTHORITY,23/02/2013,OTHER EMPLOYEE EXPENSES,FUSION,EMPLOYEE EXPENSES,100678876,1.96,,
UNITED KINGDOM ATOMIC ENERGY AUTHORITY,UNITED KINGDOM ATOMIC ENERGY AUTHORITY,28/01/2013,MATERIALS & SPARES,FUSION,THORLABS LTD,5100284675,1466.07,,
UNITED KINGDOM ATOMIC ENERGY AUTHORITY,UNITED KINGDOM ATOMIC ENERGY AUTHORITY,28/01/2013,MATERIALS & SPARES,FUSION,THORLABS LTD,5100284738,341.09,,
UNITED KINGDOM ATOMIC ENERGY AUTHORITY,UNITED KINGDOM ATOMIC ENERGY AUTHORITY,05/02/2013,GASES,FUSION,BOC LTD,5100284800,388.37,,
UNITED KINGDOM ATOMIC ENERGY AUTHORITY,UNITED KINGDOM ATOMIC ENERGY AUTHORITY,11/02/2013,MATERIALS & SPARES,FUSION,HIDEN ANALYTICAL LTD,5100285017,7235,,
UNITED KINGDOM ATOMIC ENERGY AUTHORITY,UNITED KINGDOM ATOMIC ENERGY AUTHORITY,08/02/2013,INTERVIEW EXPENSES,FUSION,INTERVIEW EXPENSES,1900057716,16.80,,
UNITED KINGDOM ATOMIC ENERGY AUTHORITY,UNITED KINGDOM ATOMIC ENERGY AUTHORITY,21/02/2013,SUBSISTENCE,FUSION,EMPLOYEE EXPENSES,100678473,337.20,,
UNITED KINGDOM ATOMIC ENERGY AUTHORITY,UNITED KINGDOM ATOMIC ENERGY AUTHORITY,21/02/2013,SUBSISTENCE,FUSION,EMPLOYEE EXPENSES,100678473,6.96,,
UNITED KINGDOM ATOMIC ENERGY AUTHORITY,UNITED KINGDOM ATOMIC ENERGY AUTHORITY,21/02/2013,RAIL TRAVEL,FUSION,EMPLOYEE EXPENSES,100678473,146.38,,
UNITED KINGDOM ATOMIC ENERGY AUTHORITY,UNITED KINGDOM ATOMIC ENERGY AUTHORITY,19/02/2013,RAIL TRAVEL,FUSION,VISITOR EXPENSES,1900057740,173.95,,
UNITED KINGDOM ATOMIC ENERGY AUTHORITY,UNITED KINGDOM ATOMIC ENERGY AUTHORITY,07/02/2013,TAXIS,FUSION,EMPLOYEE EXPENSES,100675972,22.00,,
UNITED KINGDOM ATOMIC ENERGY AUTHORITY,UNITED KINGDOM ATOMIC ENERGY AUTHORITY,09/02/2013,SUBSISTENCE,FUSION,EMPLOYEE EXPENSES,100676025,5.08,,
UNITED KINGDOM ATOMIC ENERGY AUTHORITY,UNITED KINGDOM ATOMIC ENERGY AUTHORITY,07/02/2013,RAIL TRAVEL,FUSION,EMPLOYEE EXPENSES,100675972,23.40,,
UNITED KINGDOM ATOMIC ENERGY AUTHORITY,UNITED KINGDOM ATOMIC ENERGY AUTHORITY,07/02/2013,ROAD TRAVEL,FUSION,EMPLOYEE EXPENSES,100675972,1.90,,
UNITED KINGDOM ATOMIC ENERGY AUTHORITY,UNITED KINGDOM ATOMIC ENERGY AUTHORITY,09/02/2013,ROAD TRAVEL,FUSION,EMPLOYEE EXPENSES,100676025,29.00,,
UNITED KINGDOM ATOMIC ENERGY AUTHORITY,UNITED KINGDOM ATOMIC ENERGY AUTHORITY,11/02/2013,SOFTWARE,FUSION,CULHAM ELECTROMAGNETICS LTD,5100285130,33600,,
UNITED KINGDOM ATOMIC ENERGY AUTHORITY,UNITED KINGDOM ATOMIC ENERGY AUTHORITY,09/02/2013,MILEAGE ALLOWANCE,FUSION,EMPLOYEE EXPENSES,100676039,60.92,,
UNITED KINGDOM ATOMIC ENERGY AUTHORITY,UNITED KINGDOM ATOMIC ENERGY AUTHORITY,20/02/2013,CAR HIRE,FUSION,LEASEDRIVE VELO,5100285440,34.39,,
UNITED KINGDOM ATOMIC ENERGY AUTHORITY,UNITED KINGDOM ATOMIC ENERGY AUTHORITY,07/02/2013,PROFESSIONAL SUBSCRIPTION,FUSION,European Physical Society,1900057714,1040.85,,
UNITED KINGDOM ATOMIC ENERGY AUTHORITY,UNITED KINGDOM ATOMIC ENERGY AUTHORITY,08/02/2013,EXHIBITIONS,FUSION,Travel Places,1900057717,2928.00,,
UNITED KINGDOM ATOMIC ENERGY AUTHORITY,UNITED KINGDOM ATOMIC ENERGY AUTHORITY,11/02/2013,EXHIBITIONS,FUSION,AT Communications Ltd,1900057723,608.52,,
UNITED KINGDOM ATOMIC ENERGY AUTHORITY,UNITED KINGDOM ATOMIC ENERGY AUTHORITY,11/02/2013,EXHIBITIONS,FUSION,Abingdon Town Council,1900057725,264.00,,
UNITED KINGDOM ATOMIC ENERGY AUTHORITY,UNITED KINGDOM ATOMIC ENERGY AUTHORITY,19/02/2013,EXHIBITIONS,FUSION,MTFX Ltd,1900057746,260.00,,
UNITED KINGDOM ATOMIC ENERGY AUTHORITY,UNITED KINGDOM ATOMIC ENERGY AUTHORITY,19/02/2013,EXHIBITIONS,FUSION,Melville Exhibition & Event Services Ltd,1900057747,258.70,,
UNITED KINGDOM ATOMIC ENERGY AUTHORITY,UNITED KINGDOM ATOMIC ENERGY AUTHORITY,02/02/2013,SUBSISTENCE,FUSION,EMPLOYEE EXPENSES,100675920,386.47,,
UNITED KINGDOM ATOMIC ENERGY AUTHORITY,UNITED KINGDOM ATOMIC ENERGY AUTHORITY,21/02/2013,MILEAGE ALLOWANCE,FUSION,EMPLOYEE EXPENSES,100678469,10.80,,
UNITED KINGDOM ATOMIC ENERGY AUTHORITY,UNITED KINGDOM ATOMIC ENERGY AUTHORITY,02/02/2013,RAIL TRAVEL,FUSION,EMPLOYEE EXPENSES,100675920,2.86,,
UNITED KINGDOM ATOMIC ENERGY AUTHORITY,UNITED KINGDOM ATOMIC ENERGY AUTHORITY,02/02/2013,ROAD TRAVEL,FUSION,EMPLOYEE EXPENSES,100675920,6.00,,
UNITED KINGDOM ATOMIC ENERGY AUTHORITY,UNITED KINGDOM ATOMIC ENERGY AUTHORITY,28/01/2013,TRAINING COURSE FEES,FUSION,OXFORD UNIVERSITY,5100284547,700,,
UNITED KINGDOM ATOMIC ENERGY AUTHORITY,UNITED KINGDOM ATOMIC ENERGY AUTHORITY,28/01/2013,UNIVERSITY PLACEMENT,FUSION,UNIVERSITY OF LIVERPOOL,5100284555,570,,
UNITED KINGDOM ATOMIC ENERGY AUTHORITY,UNITED KINGDOM ATOMIC ENERGY AUTHORITY,28/01/2013,UNIVERSITY PLACEMENT,FUSION,MERTON COLLEGE,5100284634,9618.39,,
UNITED KINGDOM ATOMIC ENERGY AUTHORITY,UNITED KINGDOM ATOMIC ENERGY AUTHORITY,28/01/2013,UNIVERSITY PLACEMENT,FUSION,MERTON COLLEGE,5100284635,5000,,
UNITED KINGDOM ATOMIC ENERGY AUTHORITY,UNITED KINGDOM ATOMIC ENERGY AUTHORITY,28/01/2013,UNIVERSITY PLACEMENT,FUSION,STRATHCLYDE UNIVERSITY,5100284731,8541,,
UNITED KINGDOM ATOMIC ENERGY AUTHORITY,UNITED KINGDOM ATOMIC ENERGY AUTHORITY,05/02/2013,CONFERENCES ,FUSION,ST EDMUND HALL,5100284923,2119.74,,
UNITED KINGDOM ATOMIC ENERGY AUTHORITY,UNITED KINGDOM ATOMIC ENERGY AUTHORITY,11/02/2013,UNIVERSITY PLACEMENT,FUSION,IMPERIAL COLLEGE,5100285120,1646,,
UNITED KINGDOM ATOMIC ENERGY AUTHORITY,UNITED KINGDOM ATOMIC ENERGY AUTHORITY,20/02/2013,ADVERTISING STAFF,FUSION,TMP (UK) LTD,5100285468,350,,
UNITED KINGDOM ATOMIC ENERGY AUTHORITY,UNITED KINGDOM ATOMIC ENERGY AUTHORITY,30/01/2013,INTERVIEW EXPENSES,FUSION,INTERVIEW EXPENSES,1900057693,40.00,,
UNITED KINGDOM ATOMIC ENERGY AUTHORITY,UNITED KINGDOM ATOMIC ENERGY AUTHORITY,30/01/2013,INTERVIEW EXPENSES,FUSION,INTERVIEW EXPENSES,1900057694,17.50,,
UNITED KINGDOM ATOMIC ENERGY AUTHORITY,UNITED KINGDOM ATOMIC ENERGY AUTHORITY,30/01/2013,INTERVIEW EXPENSES,FUSION,INTERVIEW EXPENSES,1900057695,11.55,,
UNITED KINGDOM ATOMIC ENERGY AUTHORITY,UNITED KINGDOM ATOMIC ENERGY AUTHORITY,30/01/2013,INTERVIEW EXPENSES,FUSION,INTERVIEW EXPENSES,1900057696,17.50,,
UNITED KINGDOM ATOMIC ENERGY AUTHORITY,UNITED KINGDOM ATOMIC ENERGY AUTHORITY,30/01/2013,INTERVIEW EXPENSES,FUSION,INTERVIEW EXPENSES,1900057697,22.05,,
UNITED KINGDOM ATOMIC ENERGY AUTHORITY,UNITED KINGDOM ATOMIC ENERGY AUTHORITY,18/02/2013,RAIL TRAVEL,FUSION,EMPLOYEE EXPENSES,1900057732,93.60,,
UNITED KINGDOM ATOMIC ENERGY AUTHORITY,UNITED KINGDOM ATOMIC ENERGY AUTHORITY,21/02/2013,TAXIS,FUSION,EMPLOYEE EXPENSES,100678463,21.00,,
UNITED KINGDOM ATOMIC ENERGY AUTHORITY,UNITED KINGDOM ATOMIC ENERGY AUTHORITY,31/01/2013,SUBSISTENCE,FUSION,EMPLOYEE EXPENSES,100675820,199.69,,
UNITED KINGDOM ATOMIC ENERGY AUTHORITY,UNITED KINGDOM ATOMIC ENERGY AUTHORITY,31/01/2013,SUBSISTENCE,FUSION,EMPLOYEE EXPENSES,100675820,8.41,,
UNITED KINGDOM ATOMIC ENERGY AUTHORITY,UNITED KINGDOM ATOMIC ENERGY AUTHORITY,21/02/2013,SUBSISTENCE,FUSION,EMPLOYEE EXPENSES,100678462,14.30,,
UNITED KINGDOM ATOMIC ENERGY AUTHORITY,UNITED KINGDOM ATOMIC ENERGY AUTHORITY,21/02/2013,SUBSISTENCE,FUSION,EMPLOYEE EXPENSES,100678462,119.00,,
UNITED KINGDOM ATOMIC ENERGY AUTHORITY,UNITED KINGDOM ATOMIC ENERGY AUTHORITY,21/02/2013,SUBSISTENCE,FUSION,EMPLOYEE EXPENSES,100678463,100.00,,
UNITED KINGDOM ATOMIC ENERGY AUTHORITY,UNITED KINGDOM ATOMIC ENERGY AUTHORITY,21/02/2013,SUBSISTENCE,FUSION,EMPLOYEE EXPENSES,100678463,9.44,,
UNITED KINGDOM ATOMIC ENERGY AUTHORITY,UNITED KINGDOM ATOMIC ENERGY AUTHORITY,02/02/2013,MILEAGE ALLOWANCE,FUSION,EMPLOYEE EXPENSES,100675921,4.00,,
UNITED KINGDOM ATOMIC ENERGY AUTHORITY,UNITED KINGDOM ATOMIC ENERGY AUTHORITY,07/02/2013,MILEAGE ALLOWANCE,FUSION,EMPLOYEE EXPENSES,100675976,14.80,,
UNITED KINGDOM ATOMIC ENERGY AUTHORITY,UNITED KINGDOM ATOMIC ENERGY AUTHORITY,09/02/2013,MILEAGE ALLOWANCE,FUSION,EMPLOYEE EXPENSES,100676030,10.80,,
UNITED KINGDOM ATOMIC ENERGY AUTHORITY,UNITED KINGDOM ATOMIC ENERGY AUTHORITY,21/02/2013,MILEAGE ALLOWANCE,FUSION,EMPLOYEE EXPENSES,100678462,48.00,,
UNITED KINGDOM ATOMIC ENERGY AUTHORITY,UNITED KINGDOM ATOMIC ENERGY AUTHORITY,31/01/2013,RAIL TRAVEL,FUSION,EMPLOYEE EXPENSES,100675820,10.00,,
UNITED KINGDOM ATOMIC ENERGY AUTHORITY,UNITED KINGDOM ATOMIC ENERGY AUTHORITY,21/02/2013,RAIL TRAVEL,FUSION,EMPLOYEE EXPENSES,100678481,27.70,,
UNITED KINGDOM ATOMIC ENERGY AUTHORITY,UNITED KINGDOM ATOMIC ENERGY AUTHORITY,31/01/2013,ROAD TRAVEL,FUSION,EMPLOYEE EXPENSES,100675820,24.90,,
UNITED KINGDOM ATOMIC ENERGY AUTHORITY,UNITED KINGDOM ATOMIC ENERGY AUTHORITY,31/01/2013,SUBSISTENCE,FUSION,EMPLOYEE EXPENSES,100675807,26.50,,
UNITED KINGDOM ATOMIC ENERGY AUTHORITY,UNITED KINGDOM ATOMIC ENERGY AUTHORITY,31/01/2013,SUBSISTENCE,FUSION,EMPLOYEE EXPENSES,100675807,272.21,,
UNITED KINGDOM ATOMIC ENERGY AUTHORITY,UNITED KINGDOM ATOMIC ENERGY AUTHORITY,02/02/2013,SUBSISTENCE,FUSION,EMPLOYEE EXPENSES,100675922,9.58,,
UNITED KINGDOM ATOMIC ENERGY AUTHORITY,UNITED KINGDOM ATOMIC ENERGY AUTHORITY,14/02/2013,SUBSISTENCE,FUSION,EMPLOYEE EXPENSES,100676052,5.00,,
UNITED KINGDOM ATOMIC ENERGY AUTHORITY,UNITED KINGDOM ATOMIC ENERGY AUTHORITY,14/02/2013,SUBSISTENCE,FUSION,EMPLOYEE EXPENSES,100676052,80.83,,
UNITED KINGDOM ATOMIC ENERGY AUTHORITY,UNITED KINGDOM ATOMIC ENERGY AUTHORITY,31/01/2013,MILEAGE ALLOWANCE,FUSION,EMPLOYEE EXPENSES,100675807,166.80,,
UNITED KINGDOM ATOMIC ENERGY AUTHORITY,UNITED KINGDOM ATOMIC ENERGY AUTHORITY,02/02/2013,MILEAGE ALLOWANCE,FUSION,EMPLOYEE EXPENSES,100675922,82.40,,
UNITED KINGDOM ATOMIC ENERGY AUTHORITY,UNITED KINGDOM ATOMIC ENERGY AUTHORITY,14/02/2013,MILEAGE ALLOWANCE,FUSION,EMPLOYEE EXPENSES,100676052,10.40,,
UNITED KINGDOM ATOMIC ENERGY AUTHORITY,UNITED KINGDOM ATOMIC ENERGY AUTHORITY,14/02/2013,RAIL TRAVEL,FUSION,EMPLOYEE EXPENSES,100676052,10.00,,
UNITED KINGDOM ATOMIC ENERGY AUTHORITY,UNITED KINGDOM ATOMIC ENERGY AUTHORITY,31/01/2013,ROAD TRAVEL,FUSION,EMPLOYEE EXPENSES,100675807,4.17,,
UNITED KINGDOM ATOMIC ENERGY AUTHORITY,UNITED KINGDOM ATOMIC ENERGY AUTHORITY,14/02/2013,ROAD TRAVEL,FUSION,EMPLOYEE EXPENSES,100676052,16.00,,
UNITED KINGDOM ATOMIC ENERGY AUTHORITY,UNITED KINGDOM ATOMIC ENERGY AUTHORITY,14/02/2013,ROAD TRAVEL,FUSION,EMPLOYEE EXPENSES,100676052,6.00,,
UNITED KINGDOM ATOMIC ENERGY AUTHORITY,UNITED KINGDOM ATOMIC ENERGY AUTHORITY,28/01/2013,MATERIALS & SPARES,FUSION,THORLABS LTD,5100284548,359,,
UNITED KINGDOM ATOMIC ENERGY AUTHORITY,UNITED KINGDOM ATOMIC ENERGY AUTHORITY,05/02/2013,MATERIALS & SPARES,FUSION,RS COMPONENTS LTD,5100284761,20.93,,
UNITED KINGDOM ATOMIC ENERGY AUTHORITY,UNITED KINGDOM ATOMIC ENERGY AUTHORITY,20/02/2013,PLANT & EQUIPMENT,FUSION,OCEAN OPTICS B.V,5100284815,418.63,,
UNITED KINGDOM ATOMIC ENERGY AUTHORITY,UNITED KINGDOM ATOMIC ENERGY AUTHORITY,18/02/2013,MATERIALS & SPARES,FUSION,THORLABS LTD,5100285357,94.23,,
UNITED KINGDOM ATOMIC ENERGY AUTHORITY,UNITED KINGDOM ATOMIC ENERGY AUTHORITY,20/02/2013,CAR HIRE,FUSION,LEASEDRIVE VELO,5100285429,96.12,,
UNITED KINGDOM ATOMIC ENERGY AUTHORITY,UNITED KINGDOM ATOMIC ENERGY AUTHORITY,07/02/2013,TAXIS,FUSION,EMPLOYEE EXPENSES,100675974,95.87,,
UNITED KINGDOM ATOMIC ENERGY AUTHORITY,UNITED KINGDOM ATOMIC ENERGY AUTHORITY,07/02/2013,SUBSISTENCE,FUSION,EMPLOYEE EXPENSES,100675974,388.40,,
UNITED KINGDOM ATOMIC ENERGY AUTHORITY,UNITED KINGDOM ATOMIC ENERGY AUTHORITY,07/02/2013,SUBSISTENCE,FUSION,EMPLOYEE EXPENSES,100675974,1.83,,
UNITED KINGDOM ATOMIC ENERGY AUTHORITY,UNITED KINGDOM ATOMIC ENERGY AUTHORITY,07/02/2013,SUBSISTENCE,FUSION,EMPLOYEE EXPENSES,100675980,5.00,,
UNITED KINGDOM ATOMIC ENERGY AUTHORITY,UNITED KINGDOM ATOMIC ENERGY AUTHORITY,07/02/2013,SUBSISTENCE,FUSION,EMPLOYEE EXPENSES,100675980,91.38,,
UNITED KINGDOM ATOMIC ENERGY AUTHORITY,UNITED KINGDOM ATOMIC ENERGY AUTHORITY,14/02/2013,SUBSISTENCE,FUSION,EMPLOYEE EXPENSES,100676056,259.84,,
UNITED KINGDOM ATOMIC ENERGY AUTHORITY,UNITED KINGDOM ATOMIC ENERGY AUTHORITY,07/02/2013,ROAD TRAVEL,FUSION,EMPLOYEE EXPENSES,100675980,39.13,,
UNITED KINGDOM ATOMIC ENERGY AUTHORITY,UNITED KINGDOM ATOMIC ENERGY AUTHORITY,14/02/2013,ROAD TRAVEL,FUSION,EMPLOYEE EXPENSES,100676056,29.00,,
UNITED KINGDOM ATOMIC ENERGY AUTHORITY,UNITED KINGDOM ATOMIC ENERGY AUTHORITY,14/02/2013,ROAD TRAVEL,FUSION,EMPLOYEE EXPENSES,100676056,46.65,,
UNITED KINGDOM ATOMIC ENERGY AUTHORITY,UNITED KINGDOM ATOMIC ENERGY AUTHORITY,24/02/2013,CONFERENCES/MEETINGS,FUSION,PURCHASE CARDS,100678971,547.78,,
UNITED KINGDOM ATOMIC ENERGY AUTHORITY,UNITED KINGDOM ATOMIC ENERGY AUTHORITY,12/02/2013,CONFERENCES/MEETINGS,FUSION,Institute of Physics,1900057727,1254.00,,
UNITED KINGDOM ATOMIC ENERGY AUTHORITY,UNITED KINGDOM ATOMIC ENERGY AUTHORITY,07/02/2013,TAXIS,FUSION,EMPLOYEE EXPENSES,100675975,15.95,,
UNITED KINGDOM ATOMIC ENERGY AUTHORITY,UNITED KINGDOM ATOMIC ENERGY AUTHORITY,21/02/2013,TAXIS,FUSION,EMPLOYEE EXPENSES,100678467,69.66,,
UNITED KINGDOM ATOMIC ENERGY AUTHORITY,UNITED KINGDOM ATOMIC ENERGY AUTHORITY,07/02/2013,SUBSISTENCE,FUSION,EMPLOYEE EXPENSES,100675975,"1,825.45",,
UNITED KINGDOM ATOMIC ENERGY AUTHORITY,UNITED KINGDOM ATOMIC ENERGY AUTHORITY,21/02/2013,SUBSISTENCE,FUSION,EMPLOYEE EXPENSES,100678467,27.16,,
UNITED KINGDOM ATOMIC ENERGY AUTHORITY,UNITED KINGDOM ATOMIC ENERGY AUTHORITY,21/02/2013,SUBSISTENCE,FUSION,EMPLOYEE EXPENSES,100678467,6.94,,
UNITED KINGDOM ATOMIC ENERGY AUTHORITY,UNITED KINGDOM ATOMIC ENERGY AUTHORITY,21/02/2013,SUBSISTENCE,FUSION,EMPLOYEE EXPENSES,100678482,289.65,,
UNITED KINGDOM ATOMIC ENERGY AUTHORITY,UNITED KINGDOM ATOMIC ENERGY AUTHORITY,21/02/2013,RAIL TRAVEL,FUSION,EMPLOYEE EXPENSES,100678467,85.27,,
UNITED KINGDOM ATOMIC ENERGY AUTHORITY,UNITED KINGDOM ATOMIC ENERGY AUTHORITY,21/02/2013,RAIL TRAVEL,FUSION,EMPLOYEE EXPENSES,100678482,45.20,,
UNITED KINGDOM ATOMIC ENERGY AUTHORITY,UNITED KINGDOM ATOMIC ENERGY AUTHORITY,21/02/2013,RAIL TRAVEL,FUSION,EMPLOYEE EXPENSES,100678482,68.92,,
UNITED KINGDOM ATOMIC ENERGY AUTHORITY,UNITED KINGDOM ATOMIC ENERGY AUTHORITY,07/02/2013,ROAD TRAVEL,FUSION,EMPLOYEE EXPENSES,100675975,2.93,,
UNITED KINGDOM ATOMIC ENERGY AUTHORITY,UNITED KINGDOM ATOMIC ENERGY AUTHORITY,21/02/2013,ROAD TRAVEL,FUSION,EMPLOYEE EXPENSES,100678482,4.10,,
UNITED KINGDOM ATOMIC ENERGY AUTHORITY,UNITED KINGDOM ATOMIC ENERGY AUTHORITY,31/01/2013,PROFESSIONAL SUBSCRIPTION,FUSION,EMPLOYEE EXPENSES,100675811,83.00,,
UNITED KINGDOM ATOMIC ENERGY AUTHORITY,UNITED KINGDOM ATOMIC ENERGY AUTHORITY,28/01/2013,PROFESSIONAL SERVICES,FUSION,SCHNEIDER ELECTRIC,5100284532,916,,
UNITED KINGDOM ATOMIC ENERGY AUTHORITY,UNITED KINGDOM ATOMIC ENERGY AUTHORITY,28/01/2013,MATERIALS & SPARES,FUSION,MINI-CIRCUITS EUROPE,5100284535,1705.71,,
UNITED KINGDOM ATOMIC ENERGY AUTHORITY,UNITED KINGDOM ATOMIC ENERGY AUTHORITY,28/01/2013,MATERIALS & SPARES,FUSION,LPKF LASER AND ELECTRONICS LTD,5100284566,800,,
UNITED KINGDOM ATOMIC ENERGY AUTHORITY,UNITED KINGDOM ATOMIC ENERGY AUTHORITY,28/01/2013,MATERIALS & SPARES,FUSION,FARNELL ELECTRONIC,5100284590,91.43,,
UNITED KINGDOM ATOMIC ENERGY AUTHORITY,UNITED KINGDOM ATOMIC ENERGY AUTHORITY,05/02/2013,MATERIALS & SPARES,FUSION,RS COMPONENTS LTD,5100284724,11.08,,
UNITED KINGDOM ATOMIC ENERGY AUTHORITY,UNITED KINGDOM ATOMIC ENERGY AUTHORITY,20/02/2013,CONSUMABLES,FUSION,PRITCHARD SHEET METAL,5100284785,1090.5,,
UNITED KINGDOM ATOMIC ENERGY AUTHORITY,UNITED KINGDOM ATOMIC ENERGY AUTHORITY,05/02/2013,PLANT SPARES,FUSION,SEMAPHORE SYSTEMS LTD,5100284816,115,,
UNITED KINGDOM ATOMIC ENERGY AUTHORITY,UNITED KINGDOM ATOMIC ENERGY AUTHORITY,20/02/2013,PLANT SPARES,FUSION,TRENZ ELECTRONIC GMBH,5100284825,1487.03,,
UNITED KINGDOM ATOMIC ENERGY AUTHORITY,UNITED KINGDOM ATOMIC ENERGY AUTHORITY,05/02/2013,MATERIALS & SPARES,FUSION,FARNELL ELECTRONIC,5100284874,206.35,,
UNITED KINGDOM ATOMIC ENERGY AUTHORITY,UNITED KINGDOM ATOMIC ENERGY AUTHORITY,05/02/2013,PLANT SPARES,FUSION,PARALLEL SYSTEMS LTD,5100284882,1150,,
UNITED KINGDOM ATOMIC ENERGY AUTHORITY,UNITED KINGDOM ATOMIC ENERGY AUTHORITY,05/02/2013,MATERIALS & SPARES,FUSION,XP PLC,5100284886,3990,,
UNITED KINGDOM ATOMIC ENERGY AUTHORITY,UNITED KINGDOM ATOMIC ENERGY AUTHORITY,05/02/2013,MATERIALS & SPARES,FUSION,FARNELL ELECTRONIC,5100284942,482.08,,
UNITED KINGDOM ATOMIC ENERGY AUTHORITY,UNITED KINGDOM ATOMIC ENERGY AUTHORITY,11/02/2013,MATERIALS & SPARES,FUSION,FARNELL ELECTRONIC,5100284945,7.07,,
UNITED KINGDOM ATOMIC ENERGY AUTHORITY,UNITED KINGDOM ATOMIC ENERGY AUTHORITY,11/02/2013,MATERIALS & SPARES,FUSION,RS COMPONENTS LTD,5100285183,34.74,,
UNITED KINGDOM ATOMIC ENERGY AUTHORITY,UNITED KINGDOM ATOMIC ENERGY AUTHORITY,11/02/2013,MATERIALS & SPARES,FUSION,RS COMPONENTS LTD,5100285218,38.78,,
UNITED KINGDOM ATOMIC ENERGY AUTHORITY,UNITED KINGDOM ATOMIC ENERGY AUTHORITY,11/02/2013,MATERIALS & SPARES,FUSION,RS COMPONENTS LTD,5100285274,24.94,,
UNITED KINGDOM ATOMIC ENERGY AUTHORITY,UNITED KINGDOM ATOMIC ENERGY AUTHORITY,20/02/2013,MATERIALS & SPARES,FUSION,LPKF LASER AND ELECTRONICS LTD,5100285519,718.4,,
UNITED KINGDOM ATOMIC ENERGY AUTHORITY,UNITED KINGDOM ATOMIC ENERGY AUTHORITY,20/02/2013,MATERIALS & SPARES,FUSION,RS COMPONENTS LTD,5100285723,-38.78,,
UNITED KINGDOM ATOMIC ENERGY AUTHORITY,UNITED KINGDOM ATOMIC ENERGY AUTHORITY,20/02/2013,MATERIALS & SPARES,FUSION,RS COMPONENTS LTD,5100285724,38.78,,
UNITED KINGDOM ATOMIC ENERGY AUTHORITY,UNITED KINGDOM ATOMIC ENERGY AUTHORITY,08/02/2013,PLANT & EQUIPMENT,FUSION,Ultra Electronics,1900057719,1993.20,,
UNITED KINGDOM ATOMIC ENERGY AUTHORITY,UNITED KINGDOM ATOMIC ENERGY AUTHORITY,23/02/2013,TAXIS,FUSION,EMPLOYEE EXPENSES,100678882,62.30,,
UNITED KINGDOM ATOMIC ENERGY AUTHORITY,UNITED KINGDOM ATOMIC ENERGY AUTHORITY,23/02/2013,SUBSISTENCE,FUSION,EMPLOYEE EXPENSES,100678882,144.37,,
UNITED KINGDOM ATOMIC ENERGY AUTHORITY,UNITED KINGDOM ATOMIC ENERGY AUTHORITY,23/02/2013,SUBSISTENCE,FUSION,EMPLOYEE EXPENSES,100678882,7.29,,
UNITED KINGDOM ATOMIC ENERGY AUTHORITY,UNITED KINGDOM ATOMIC ENERGY AUTHORITY,23/02/2013,ROAD TRAVEL,FUSION,EMPLOYEE EXPENSES,100678882,29.00,,
UNITED KINGDOM ATOMIC ENERGY AUTHORITY,UNITED KINGDOM ATOMIC ENERGY AUTHORITY,08/02/2013,IT EQUIPMENT: NON CAPITAL,FUSION,PURCHASE CARDS,100676004,871.89,,
UNITED KINGDOM ATOMIC ENERGY AUTHORITY,UNITED KINGDOM ATOMIC ENERGY AUTHORITY,20/02/2013,MATERIALS & SPARES,FUSION,OBART PUMPS LTD,5100283277,345.16,,
UNITED KINGDOM ATOMIC ENERGY AUTHORITY,UNITED KINGDOM ATOMIC ENERGY AUTHORITY,20/02/2013,MATERIALS & SPARES,FUSION,RS COMPONENTS LTD,5100284184,251.44,,
UNITED KINGDOM ATOMIC ENERGY AUTHORITY,UNITED KINGDOM ATOMIC ENERGY AUTHORITY,30/01/2013,IT EQUIPMENT NON CAPITAL,FUSION,AZTEX SOLUTIONS LIMITED,5100284433,635,,
UNITED KINGDOM ATOMIC ENERGY AUTHORITY,UNITED KINGDOM ATOMIC ENERGY AUTHORITY,28/01/2013,IT EQUIPMENT NON CAPITAL,FUSION,SCAN COMPUTERS INTERNATIONAL LTD,5100284534,2087.63,,
UNITED KINGDOM ATOMIC ENERGY AUTHORITY,UNITED KINGDOM ATOMIC ENERGY AUTHORITY,28/01/2013,GASES,FUSION,AIR PRODUCTS PLC,5100284551,18.91,,
UNITED KINGDOM ATOMIC ENERGY AUTHORITY,UNITED KINGDOM ATOMIC ENERGY AUTHORITY,28/01/2013,PLANT SPARES,FUSION,AURIGA EUROPE PLC,5100284586,107.2,,
UNITED KINGDOM ATOMIC ENERGY AUTHORITY,UNITED KINGDOM ATOMIC ENERGY AUTHORITY,28/01/2013,MATERIALS & SPARES,FUSION,FARNELL ELECTRONIC,5100284610,37.02,,
UNITED KINGDOM ATOMIC ENERGY AUTHORITY,UNITED KINGDOM ATOMIC ENERGY AUTHORITY,28/01/2013,MATERIALS & SPARES,FUSION,FARNELL ELECTRONIC,5100284611,37.02,,
UNITED KINGDOM ATOMIC ENERGY AUTHORITY,UNITED KINGDOM ATOMIC ENERGY AUTHORITY,28/01/2013,MATERIALS & SPARES,FUSION,FARNELL ELECTRONIC,5100284612,120.15,,
UNITED KINGDOM ATOMIC ENERGY AUTHORITY,UNITED KINGDOM ATOMIC ENERGY AUTHORITY,28/01/2013,MATERIALS & SPARES,FUSION,FARNELL ELECTRONIC,5100284613,239.49,,
UNITED KINGDOM ATOMIC ENERGY AUTHORITY,UNITED KINGDOM ATOMIC ENERGY AUTHORITY,28/01/2013,MATERIALS & SPARES,FUSION,CPC PLC,5100284739,322.52,,
UNITED KINGDOM ATOMIC ENERGY AUTHORITY,UNITED KINGDOM ATOMIC ENERGY AUTHORITY,05/02/2013,MATERIALS & SPARES,FUSION,RS COMPONENTS LTD,5100284750,737.1,,
UNITED KINGDOM ATOMIC ENERGY AUTHORITY,UNITED KINGDOM ATOMIC ENERGY AUTHORITY,05/02/2013,MATERIALS & SPARES,FUSION,SCHROFF UK LTD,5100284833,39.85,,
UNITED KINGDOM ATOMIC ENERGY AUTHORITY,UNITED KINGDOM ATOMIC ENERGY AUTHORITY,05/02/2013,MATERIALS & SPARES,FUSION,SCHROFF UK LTD,5100284836,80.36,,
UNITED KINGDOM ATOMIC ENERGY AUTHORITY,UNITED KINGDOM ATOMIC ENERGY AUTHORITY,11/02/2013,PLANT & EQUIPMENT,FUSION,PULSE POWER AND MEASUREMENT LTD,5100284938,1339,,
UNITED KINGDOM ATOMIC ENERGY AUTHORITY,UNITED KINGDOM ATOMIC ENERGY AUTHORITY,11/02/2013,PLANT & EQUIPMENT,FUSION,PULSE POWER AND MEASUREMENT LTD,5100284939,577,,
UNITED KINGDOM ATOMIC ENERGY AUTHORITY,UNITED KINGDOM ATOMIC ENERGY AUTHORITY,11/02/2013,PLANT & EQUIPMENT REPAIR,FUSION,KERRCO AUTOMATION LTD,5100284941,1098.5,,
UNITED KINGDOM ATOMIC ENERGY AUTHORITY,UNITED KINGDOM ATOMIC ENERGY AUTHORITY,05/02/2013,MATERIALS & SPARES,FUSION,FARNELL ELECTRONIC,5100284951,122.4,,
UNITED KINGDOM ATOMIC ENERGY AUTHORITY,UNITED KINGDOM ATOMIC ENERGY AUTHORITY,05/02/2013,GASES,FUSION,BOC LTD,5100284973,23.4,,
UNITED KINGDOM ATOMIC ENERGY AUTHORITY,UNITED KINGDOM ATOMIC ENERGY AUTHORITY,11/02/2013,MATERIALS & SPARES,FUSION,CPC PLC,5100284993,161.1,,
UNITED KINGDOM ATOMIC ENERGY AUTHORITY,UNITED KINGDOM ATOMIC ENERGY AUTHORITY,11/02/2013,MATERIALS & SPARES,FUSION,DURBIN METAL INDUSTRIES LTD,5100285015,138,,
UNITED KINGDOM ATOMIC ENERGY AUTHORITY,UNITED KINGDOM ATOMIC ENERGY AUTHORITY,11/02/2013,GASES,FUSION,AIR PRODUCTS PLC,5100285032,283.23,,
UNITED KINGDOM ATOMIC ENERGY AUTHORITY,UNITED KINGDOM ATOMIC ENERGY AUTHORITY,13/02/2013,BUILDING REPAIRS,FUSION,LORNE STEWART PLC,5100285087,3431.43,,
UNITED KINGDOM ATOMIC ENERGY AUTHORITY,UNITED KINGDOM ATOMIC ENERGY AUTHORITY,13/02/2013,BUILDING REPAIRS,FUSION,LORNE STEWART PLC,5100285097,1889.46,,
UNITED KINGDOM ATOMIC ENERGY AUTHORITY,UNITED KINGDOM ATOMIC ENERGY AUTHORITY,13/02/2013,BUILDING REPAIRS,FUSION,LORNE STEWART PLC,5100285098,823.7,,
UNITED KINGDOM ATOMIC ENERGY AUTHORITY,UNITED KINGDOM ATOMIC ENERGY AUTHORITY,13/02/2013,PERSONAL PROTECTIVE EQUIPMENT,FUSION,ARCO WESSEX,5100285165,16.76,,
UNITED KINGDOM ATOMIC ENERGY AUTHORITY,UNITED KINGDOM ATOMIC ENERGY AUTHORITY,11/02/2013,MATERIALS & SPARES,FUSION,RS COMPONENTS LTD,5100285184,125.57,,
UNITED KINGDOM ATOMIC ENERGY AUTHORITY,UNITED KINGDOM ATOMIC ENERGY AUTHORITY,18/02/2013,GASES,FUSION,BOC LTD,5100285282,192.45,,
UNITED KINGDOM ATOMIC ENERGY AUTHORITY,UNITED KINGDOM ATOMIC ENERGY AUTHORITY,11/02/2013,SITE SUPPORT SERVICES,FUSION,SCION ESTATES,5100285288,64.32,,
UNITED KINGDOM ATOMIC ENERGY AUTHORITY,UNITED KINGDOM ATOMIC ENERGY AUTHORITY,13/02/2013,STATIONERY,FUSION,LYRECO UK LIMITED,5100285302,5.91,,
UNITED KINGDOM ATOMIC ENERGY AUTHORITY,UNITED KINGDOM ATOMIC ENERGY AUTHORITY,11/02/2013,MATERIALS & SPARES,FUSION,OXFORD BOLTS & BEARINGS,5100285309,19.2,,
UNITED KINGDOM ATOMIC ENERGY AUTHORITY,UNITED KINGDOM ATOMIC ENERGY AUTHORITY,18/02/2013,GASES,FUSION,BOC LTD,5100285402,243,,
UNITED KINGDOM ATOMIC ENERGY AUTHORITY,UNITED KINGDOM ATOMIC ENERGY AUTHORITY,18/02/2013,SITE SUPPORT SERVICES,FUSION,SCION ESTATES,5100285450,707.52,,
UNITED KINGDOM ATOMIC ENERGY AUTHORITY,UNITED KINGDOM ATOMIC ENERGY AUTHORITY,20/02/2013,PLANT & EQUIPMENT,FUSION,Mors Smitt UK Ltd,1900057748,203.71,,
UNITED KINGDOM ATOMIC ENERGY AUTHORITY,UNITED KINGDOM ATOMIC ENERGY AUTHORITY,05/02/2013,PLANT & EQUIPMENT,FUSION,JEMA,5100283621,183555.49,,
UNITED KINGDOM ATOMIC ENERGY AUTHORITY,UNITED KINGDOM ATOMIC ENERGY AUTHORITY,28/01/2013,CAR HIRE,FUSION,LEASEDRIVE VELO,5100284538,36.44,,
UNITED KINGDOM ATOMIC ENERGY AUTHORITY,UNITED KINGDOM ATOMIC ENERGY AUTHORITY,30/01/2013,IT EQUIPMENT NON CAPITAL,FUSION,AZTEX SOLUTIONS LIMITED,5100284574,3924.02,,
UNITED KINGDOM ATOMIC ENERGY AUTHORITY,UNITED KINGDOM ATOMIC ENERGY AUTHORITY,28/01/2013,MATERIALS & SPARES,FUSION,FARNELL ELECTRONIC,5100284605,309.3,,
UNITED KINGDOM ATOMIC ENERGY AUTHORITY,UNITED KINGDOM ATOMIC ENERGY AUTHORITY,05/02/2013,PLANT & EQUIPMENT,FUSION,JEMA,5100284990,-183556.15,,
UNITED KINGDOM ATOMIC ENERGY AUTHORITY,UNITED KINGDOM ATOMIC ENERGY AUTHORITY,13/02/2013,BUILDING REPAIRS,FUSION,LORNE STEWART PLC,5100285089,425.67,,
UNITED KINGDOM ATOMIC ENERGY AUTHORITY,UNITED KINGDOM ATOMIC ENERGY AUTHORITY,11/02/2013,MATERIALS & SPARES,FUSION,INCAM DIGITAL SURVEILLANCE LIMITED,5100285123,14772,,
UNITED KINGDOM ATOMIC ENERGY AUTHORITY,UNITED KINGDOM ATOMIC ENERGY AUTHORITY,13/02/2013,PLANT & EQUIPMENT,FUSION,JEMA (GBP),5100285308,225479.56,,
UNITED KINGDOM ATOMIC ENERGY AUTHORITY,UNITED KINGDOM ATOMIC ENERGY AUTHORITY,20/02/2013,PLANT SPARES,FUSION,ROSH ENGINEERING LTD,5100285472,2906,,
UNITED KINGDOM ATOMIC ENERGY AUTHORITY,UNITED KINGDOM ATOMIC ENERGY AUTHORITY,20/02/2013,PLANT SPARES,FUSION,ROSH ENGINEERING LTD,5100285521,4090,,
UNITED KINGDOM ATOMIC ENERGY AUTHORITY,UNITED KINGDOM ATOMIC ENERGY AUTHORITY,28/01/2013,TRAINING COURSE FEES,FUSION,OXFORD UNIVERSITY,5100284725,576.23,,
UNITED KINGDOM ATOMIC ENERGY AUTHORITY,UNITED KINGDOM ATOMIC ENERGY AUTHORITY,05/02/2013,TRAINING COURSE FEES,FUSION,OXFORD UNIVERSITY,5100284776,912.85,,
UNITED KINGDOM ATOMIC ENERGY AUTHORITY,UNITED KINGDOM ATOMIC ENERGY AUTHORITY,05/02/2013,TRAINING COURSE FEES,FUSION,OXFORD UNIVERSITY,5100284856,490.53,,
UNITED KINGDOM ATOMIC ENERGY AUTHORITY,UNITED KINGDOM ATOMIC ENERGY AUTHORITY,05/02/2013,UNIVERSITY PLACEMENT,FUSION,UNIVERSITY OF YORK,5100284909,3576.82,,
UNITED KINGDOM ATOMIC ENERGY AUTHORITY,UNITED KINGDOM ATOMIC ENERGY AUTHORITY,07/02/2013,TAXIS,FUSION,EMPLOYEE EXPENSES,100675972,10.25,,
UNITED KINGDOM ATOMIC ENERGY AUTHORITY,UNITED KINGDOM ATOMIC ENERGY AUTHORITY,09/02/2013,TAXIS,FUSION,EMPLOYEE EXPENSES,100676025,36.44,,
UNITED KINGDOM ATOMIC ENERGY AUTHORITY,UNITED KINGDOM ATOMIC ENERGY AUTHORITY,14/02/2013,TAXIS,FUSION,EMPLOYEE EXPENSES,100676051,6.26,,
UNITED KINGDOM ATOMIC ENERGY AUTHORITY,UNITED KINGDOM ATOMIC ENERGY AUTHORITY,14/02/2013,TAXIS,FUSION,EMPLOYEE EXPENSES,100676067,23.10,,
UNITED KINGDOM ATOMIC ENERGY AUTHORITY,UNITED KINGDOM ATOMIC ENERGY AUTHORITY,02/02/2013,SUBSISTENCE,FUSION,EMPLOYEE EXPENSES,100675924,382.81,,
UNITED KINGDOM ATOMIC ENERGY AUTHORITY,UNITED KINGDOM ATOMIC ENERGY AUTHORITY,07/02/2013,SUBSISTENCE,FUSION,EMPLOYEE EXPENSES,100675972,322.06,,
UNITED KINGDOM ATOMIC ENERGY AUTHORITY,UNITED KINGDOM ATOMIC ENERGY AUTHORITY,09/02/2013,SUBSISTENCE,FUSION,EMPLOYEE EXPENSES,100676025,"1,904.74",,
UNITED KINGDOM ATOMIC ENERGY AUTHORITY,UNITED KINGDOM ATOMIC ENERGY AUTHORITY,09/02/2013,SUBSISTENCE,FUSION,EMPLOYEE EXPENSES,100676028,116.32,,
UNITED KINGDOM ATOMIC ENERGY AUTHORITY,UNITED KINGDOM ATOMIC ENERGY AUTHORITY,09/02/2013,SUBSISTENCE,FUSION,EMPLOYEE EXPENSES,100676028,4.96,,
UNITED KINGDOM ATOMIC ENERGY AUTHORITY,UNITED KINGDOM ATOMIC ENERGY AUTHORITY,09/02/2013,SUBSISTENCE,FUSION,EMPLOYEE EXPENSES,100676038,119.17,,
UNITED KINGDOM ATOMIC ENERGY AUTHORITY,UNITED KINGDOM ATOMIC ENERGY AUTHORITY,09/02/2013,SUBSISTENCE,FUSION,EMPLOYEE EXPENSES,100676038,2.92,,
UNITED KINGDOM ATOMIC ENERGY AUTHORITY,UNITED KINGDOM ATOMIC ENERGY AUTHORITY,14/02/2013,SUBSISTENCE,FUSION,EMPLOYEE EXPENSES,100676051,358.37,,
UNITED KINGDOM ATOMIC ENERGY AUTHORITY,UNITED KINGDOM ATOMIC ENERGY AUTHORITY,14/02/2013,SUBSISTENCE,FUSION,EMPLOYEE EXPENSES,100676067,"4,245.48",,
UNITED KINGDOM ATOMIC ENERGY AUTHORITY,UNITED KINGDOM ATOMIC ENERGY AUTHORITY,16/02/2013,SUBSISTENCE,FUSION,EMPLOYEE EXPENSES,100676079,45.78,,
UNITED KINGDOM ATOMIC ENERGY AUTHORITY,UNITED KINGDOM ATOMIC ENERGY AUTHORITY,16/02/2013,SUBSISTENCE,FUSION,EMPLOYEE EXPENSES,100676080,"1,193.32",,
UNITED KINGDOM ATOMIC ENERGY AUTHORITY,UNITED KINGDOM ATOMIC ENERGY AUTHORITY,21/02/2013,SUBSISTENCE,FUSION,EMPLOYEE EXPENSES,100678465,229.07,,
UNITED KINGDOM ATOMIC ENERGY AUTHORITY,UNITED KINGDOM ATOMIC ENERGY AUTHORITY,21/02/2013,SUBSISTENCE,FUSION,EMPLOYEE EXPENSES,100678475,913.47,,
UNITED KINGDOM ATOMIC ENERGY AUTHORITY,UNITED KINGDOM ATOMIC ENERGY AUTHORITY,23/02/2013,SUBSISTENCE,FUSION,EMPLOYEE EXPENSES,100678874,114.19,,
UNITED KINGDOM ATOMIC ENERGY AUTHORITY,UNITED KINGDOM ATOMIC ENERGY AUTHORITY,23/02/2013,SUBSISTENCE,FUSION,EMPLOYEE EXPENSES,100678875,111.84,,
UNITED KINGDOM ATOMIC ENERGY AUTHORITY,UNITED KINGDOM ATOMIC ENERGY AUTHORITY,23/02/2013,SUBSISTENCE,FUSION,EMPLOYEE EXPENSES,100678877,115.28,,
UNITED KINGDOM ATOMIC ENERGY AUTHORITY,UNITED KINGDOM ATOMIC ENERGY AUTHORITY,16/02/2013,MILEAGE ALLOWANCE,FUSION,EMPLOYEE EXPENSES,100676079,330.00,,
UNITED KINGDOM ATOMIC ENERGY AUTHORITY,UNITED KINGDOM ATOMIC ENERGY AUTHORITY,21/02/2013,MILEAGE ALLOWANCE,FUSION,EMPLOYEE EXPENSES,100678475,24.00,,
UNITED KINGDOM ATOMIC ENERGY AUTHORITY,UNITED KINGDOM ATOMIC ENERGY AUTHORITY,07/02/2013,RAIL TRAVEL,FUSION,EMPLOYEE EXPENSES,100675972,27.90,,
UNITED KINGDOM ATOMIC ENERGY AUTHORITY,UNITED KINGDOM ATOMIC ENERGY AUTHORITY,07/02/2013,RAIL TRAVEL,FUSION,EMPLOYEE EXPENSES,100675972,13.22,,
UNITED KINGDOM ATOMIC ENERGY AUTHORITY,UNITED KINGDOM ATOMIC ENERGY AUTHORITY,09/02/2013,RAIL TRAVEL,FUSION,EMPLOYEE EXPENSES,100676025,93.99,,
UNITED KINGDOM ATOMIC ENERGY AUTHORITY,UNITED KINGDOM ATOMIC ENERGY AUTHORITY,09/02/2013,RAIL TRAVEL,FUSION,EMPLOYEE EXPENSES,100676028,1.14,,
UNITED KINGDOM ATOMIC ENERGY AUTHORITY,UNITED KINGDOM ATOMIC ENERGY AUTHORITY,09/02/2013,RAIL TRAVEL,FUSION,EMPLOYEE EXPENSES,100676038,1.11,,
UNITED KINGDOM ATOMIC ENERGY AUTHORITY,UNITED KINGDOM ATOMIC ENERGY AUTHORITY,14/02/2013,RAIL TRAVEL,FUSION,EMPLOYEE EXPENSES,100676051,137.56,,
UNITED KINGDOM ATOMIC ENERGY AUTHORITY,UNITED KINGDOM ATOMIC ENERGY AUTHORITY,21/02/2013,RAIL TRAVEL,FUSION,EMPLOYEE EXPENSES,100678475,245.44,,
UNITED KINGDOM ATOMIC ENERGY AUTHORITY,UNITED KINGDOM ATOMIC ENERGY AUTHORITY,23/02/2013,RAIL TRAVEL,FUSION,EMPLOYEE EXPENSES,100678874,1.18,,
UNITED KINGDOM ATOMIC ENERGY AUTHORITY,UNITED KINGDOM ATOMIC ENERGY AUTHORITY,23/02/2013,RAIL TRAVEL,FUSION,EMPLOYEE EXPENSES,100678875,1.18,,
UNITED KINGDOM ATOMIC ENERGY AUTHORITY,UNITED KINGDOM ATOMIC ENERGY AUTHORITY,23/02/2013,RAIL TRAVEL,FUSION,EMPLOYEE EXPENSES,100678877,1.12,,
UNITED KINGDOM ATOMIC ENERGY AUTHORITY,UNITED KINGDOM ATOMIC ENERGY AUTHORITY,02/02/2013,ROAD TRAVEL,FUSION,EMPLOYEE EXPENSES,100675924,37.00,,
UNITED KINGDOM ATOMIC ENERGY AUTHORITY,UNITED KINGDOM ATOMIC ENERGY AUTHORITY,02/02/2013,ROAD TRAVEL,FUSION,EMPLOYEE EXPENSES,100675924,22.49,,
UNITED KINGDOM ATOMIC ENERGY AUTHORITY,UNITED KINGDOM ATOMIC ENERGY AUTHORITY,14/02/2013,ROAD TRAVEL,FUSION,EMPLOYEE EXPENSES,100676067,29.00,,
UNITED KINGDOM ATOMIC ENERGY AUTHORITY,UNITED KINGDOM ATOMIC ENERGY AUTHORITY,14/02/2013,ROAD TRAVEL,FUSION,EMPLOYEE EXPENSES,100676067,4.39,,
UNITED KINGDOM ATOMIC ENERGY AUTHORITY,UNITED KINGDOM ATOMIC ENERGY AUTHORITY,16/02/2013,ROAD TRAVEL,FUSION,EMPLOYEE EXPENSES,100676079,118.15,,
UNITED KINGDOM ATOMIC ENERGY AUTHORITY,UNITED KINGDOM ATOMIC ENERGY AUTHORITY,16/02/2013,SEA TRAVEL,FUSION,EMPLOYEE EXPENSES,100676079,90.00,,
UNITED KINGDOM ATOMIC ENERGY AUTHORITY,UNITED KINGDOM ATOMIC ENERGY AUTHORITY,14/02/2013,OTHER EMPLOYEE EXPENSES,FUSION,EMPLOYEE EXPENSES,100676067,12.74,,
UNITED KINGDOM ATOMIC ENERGY AUTHORITY,UNITED KINGDOM ATOMIC ENERGY AUTHORITY,16/02/2013,OTHER EMPLOYEE EXPENSES,FUSION,EMPLOYEE EXPENSES,100676079,16.38,,
UNITED KINGDOM ATOMIC ENERGY AUTHORITY,UNITED KINGDOM ATOMIC ENERGY AUTHORITY,23/02/2013,OTHER EMPLOYEE EXPENSES,FUSION,EMPLOYEE EXPENSES,100678874,1.68,,
UNITED KINGDOM ATOMIC ENERGY AUTHORITY,UNITED KINGDOM ATOMIC ENERGY AUTHORITY,23/02/2013,OTHER EMPLOYEE EXPENSES,FUSION,EMPLOYEE EXPENSES,100678877,6.17,,
UNITED KINGDOM ATOMIC ENERGY AUTHORITY,UNITED KINGDOM ATOMIC ENERGY AUTHORITY,05/02/2013,PLANT SPARES,FUSION,CONDEC INDUSTRIAL MAINTENANCE,5100284587,44,,
UNITED KINGDOM ATOMIC ENERGY AUTHORITY,UNITED KINGDOM ATOMIC ENERGY AUTHORITY,30/01/2013,TRAINING COSTS,FUSION,THOMSON SCIENTIFIC INC,5100284826,12508.63,,
UNITED KINGDOM ATOMIC ENERGY AUTHORITY,UNITED KINGDOM ATOMIC ENERGY AUTHORITY,13/02/2013,BUILDING REPAIRS,FUSION,LORNE STEWART PLC,5100285082,25.7,,
UNITED KINGDOM ATOMIC ENERGY AUTHORITY,UNITED KINGDOM ATOMIC ENERGY AUTHORITY,13/02/2013,BUILDING REPAIRS,FUSION,LORNE STEWART PLC,5100285096,388.02,,
UNITED KINGDOM ATOMIC ENERGY AUTHORITY,UNITED KINGDOM ATOMIC ENERGY AUTHORITY,31/01/2013,BOOKS & PUBLICATIONS,FUSION,University of York,1900057703,336.00,,
UNITED KINGDOM ATOMIC ENERGY AUTHORITY,UNITED KINGDOM ATOMIC ENERGY AUTHORITY,23/02/2013,SUBSISTENCE,FUSION,EMPLOYEE EXPENSES,100678879,147.00,,
UNITED KINGDOM ATOMIC ENERGY AUTHORITY,UNITED KINGDOM ATOMIC ENERGY AUTHORITY,31/01/2013,MILEAGE ALLOWANCE,FUSION,EMPLOYEE EXPENSES,100675804,4.00,,
UNITED KINGDOM ATOMIC ENERGY AUTHORITY,UNITED KINGDOM ATOMIC ENERGY AUTHORITY,07/02/2013,MILEAGE ALLOWANCE,FUSION,EMPLOYEE EXPENSES,100675970,8.80,,
UNITED KINGDOM ATOMIC ENERGY AUTHORITY,UNITED KINGDOM ATOMIC ENERGY AUTHORITY,21/02/2013,MILEAGE ALLOWANCE,FUSION,EMPLOYEE EXPENSES,100678466,39.20,,
UNITED KINGDOM ATOMIC ENERGY AUTHORITY,UNITED KINGDOM ATOMIC ENERGY AUTHORITY,31/01/2013,ROAD TRAVEL,FUSION,EMPLOYEE EXPENSES,100675804,6.20,,
UNITED KINGDOM ATOMIC ENERGY AUTHORITY,UNITED KINGDOM ATOMIC ENERGY AUTHORITY,02/02/2013,PROFESSIONAL SUBSCRIPTION,FUSION,EMPLOYEE EXPENSES,100675925,138.00,,
UNITED KINGDOM ATOMIC ENERGY AUTHORITY,UNITED KINGDOM ATOMIC ENERGY AUTHORITY,07/02/2013,PROFESSIONAL SUBSCRIPTION,FUSION,EMPLOYEE EXPENSES,100675977,227.00,,
UNITED KINGDOM ATOMIC ENERGY AUTHORITY,UNITED KINGDOM ATOMIC ENERGY AUTHORITY,14/02/2013,PROFESSIONAL SUBSCRIPTION,FUSION,EMPLOYEE EXPENSES,100676050,153.00,,
UNITED KINGDOM ATOMIC ENERGY AUTHORITY,UNITED KINGDOM ATOMIC ENERGY AUTHORITY,14/02/2013,PROFESSIONAL SUBSCRIPTION,FUSION,EMPLOYEE EXPENSES,100676053,50.00,,
UNITED KINGDOM ATOMIC ENERGY AUTHORITY,UNITED KINGDOM ATOMIC ENERGY AUTHORITY,14/02/2013,PROFESSIONAL SUBSCRIPTION,FUSION,EMPLOYEE EXPENSES,100676065,50.00,,
UNITED KINGDOM ATOMIC ENERGY AUTHORITY,UNITED KINGDOM ATOMIC ENERGY AUTHORITY,21/02/2013,PROFESSIONAL SUBSCRIPTION,FUSION,EMPLOYEE EXPENSES,100678477,230.00,,
UNITED KINGDOM ATOMIC ENERGY AUTHORITY,UNITED KINGDOM ATOMIC ENERGY AUTHORITY,21/02/2013,PROFESSIONAL SUBSCRIPTION,FUSION,EMPLOYEE EXPENSES,100678479,197.50,,
UNITED KINGDOM ATOMIC ENERGY AUTHORITY,UNITED KINGDOM ATOMIC ENERGY AUTHORITY,08/02/2013,SOFTWARE - NON-CAP,FUSION,PURCHASE CARDS,100676006,543.69,,
UNITED KINGDOM ATOMIC ENERGY AUTHORITY,UNITED KINGDOM ATOMIC ENERGY AUTHORITY,24/02/2013,TRAINING COURSE FEES,FUSION,PURCHASE CARDS,100678982,700.00,,
UNITED KINGDOM ATOMIC ENERGY AUTHORITY,UNITED KINGDOM ATOMIC ENERGY AUTHORITY,14/02/2013,SUBSISTENCE,FUSION,EMPLOYEE EXPENSES,100676049,172.44,,
UNITED KINGDOM ATOMIC ENERGY AUTHORITY,UNITED KINGDOM ATOMIC ENERGY AUTHORITY,18/02/2013,SUBSISTENCE,FUSION,VISITOR EXPENSES,1900057734,299.26,,
UNITED KINGDOM ATOMIC ENERGY AUTHORITY,UNITED KINGDOM ATOMIC ENERGY AUTHORITY,07/02/2013,SUBSISTENCE,FUSION,EMPLOYEE EXPENSES,100675972,99.16,,
UNITED KINGDOM ATOMIC ENERGY AUTHORITY,UNITED KINGDOM ATOMIC ENERGY AUTHORITY,09/02/2013,ROAD TRAVEL,FUSION,EMPLOYEE EXPENSES,100676026,3.80,,
UNITED KINGDOM ATOMIC ENERGY AUTHORITY,UNITED KINGDOM ATOMIC ENERGY AUTHORITY,09/02/2013,BUSINESS ENTERTAINMENT,FUSION,EMPLOYEE EXPENSES,100676026,154.77,,
UNITED KINGDOM ATOMIC ENERGY AUTHORITY,UNITED KINGDOM ATOMIC ENERGY AUTHORITY,11/02/2013,PROFESSIONAL SERVICES,FUSION,ASSYSTEM UK LTD,5100284821,19113.72,,
UNITED KINGDOM ATOMIC ENERGY AUTHORITY,UNITED KINGDOM ATOMIC ENERGY AUTHORITY,11/02/2013,PROFESSIONAL SERVICES,FUSION,ASSYSTEM UK LTD,5100284822,9336.41,,
UNITED KINGDOM ATOMIC ENERGY AUTHORITY,UNITED KINGDOM ATOMIC ENERGY AUTHORITY,05/02/2013,PROFESSIONAL SERVICES,FUSION,ASSYSTEM UK LTD,5100284823,67039.04,,
UNITED KINGDOM ATOMIC ENERGY AUTHORITY,UNITED KINGDOM ATOMIC ENERGY AUTHORITY,14/02/2013,RELOCATION COSTS,FUSION,EMPLOYEE EXPENSES,100676070,491.67,,
UNITED KINGDOM ATOMIC ENERGY AUTHORITY,UNITED KINGDOM ATOMIC ENERGY AUTHORITY,07/02/2013,SUBSISTENCE,FUSION,EMPLOYEE EXPENSES,100675969,85.67,,
UNITED KINGDOM ATOMIC ENERGY AUTHORITY,UNITED KINGDOM ATOMIC ENERGY AUTHORITY,07/02/2013,SUBSISTENCE,FUSION,EMPLOYEE EXPENSES,100675969,4.04,,
UNITED KINGDOM ATOMIC ENERGY AUTHORITY,UNITED KINGDOM ATOMIC ENERGY AUTHORITY,07/02/2013,RAIL TRAVEL,FUSION,EMPLOYEE EXPENSES,100675969,2.64,,
UNITED KINGDOM ATOMIC ENERGY AUTHORITY,UNITED KINGDOM ATOMIC ENERGY AUTHORITY,23/02/2013,SUBSISTENCE,FUSION,EMPLOYEE EXPENSES,100678874,6.71,,
UNITED KINGDOM ATOMIC ENERGY AUTHORITY,UNITED KINGDOM ATOMIC ENERGY AUTHORITY,23/02/2013,SUBSISTENCE,FUSION,EMPLOYEE EXPENSES,100678875,5.42,,
UNITED KINGDOM ATOMIC ENERGY AUTHORITY,UNITED KINGDOM ATOMIC ENERGY AUTHORITY,23/02/2013,SUBSISTENCE,FUSION,EMPLOYEE EXPENSES,100678877,4.98,,
UNITED KINGDOM ATOMIC ENERGY AUTHORITY,UNITED KINGDOM ATOMIC ENERGY AUTHORITY,20/02/2013,CONSUMABLES,FUSION,CARILLON INDUSTRIAL SERVICES LTD,5100283844,157.44,,
UNITED KINGDOM ATOMIC ENERGY AUTHORITY,UNITED KINGDOM ATOMIC ENERGY AUTHORITY,20/02/2013,CONSUMABLES,FUSION,CARILLON INDUSTRIAL SERVICES LTD,5100284345,41.52,,
UNITED KINGDOM ATOMIC ENERGY AUTHORITY,UNITED KINGDOM ATOMIC ENERGY AUTHORITY,20/02/2013,CONSUMABLES,FUSION,CARILLON INDUSTRIAL SERVICES LTD,5100284347,39.42,,
UNITED KINGDOM ATOMIC ENERGY AUTHORITY,UNITED KINGDOM ATOMIC ENERGY AUTHORITY,05/02/2013,MATERIALS & SPARES,FUSION,RS COMPONENTS LTD,5100284429,28.96,,
UNITED KINGDOM ATOMIC ENERGY AUTHORITY,UNITED KINGDOM ATOMIC ENERGY AUTHORITY,30/01/2013,PERSONAL PROTECTIVE EQUIPMENT,FUSION,ARCO LTD,5100284476,60.4,,
UNITED KINGDOM ATOMIC ENERGY AUTHORITY,UNITED KINGDOM ATOMIC ENERGY AUTHORITY,05/02/2013,PERSONAL PROTECTIVE EQUIPMENT,FUSION,ARCO LTD,5100284480,13.96,,
UNITED KINGDOM ATOMIC ENERGY AUTHORITY,UNITED KINGDOM ATOMIC ENERGY AUTHORITY,05/02/2013,MATERIALS & SPARES,FUSION,TW METALS LTD,5100284484,105,,
UNITED KINGDOM ATOMIC ENERGY AUTHORITY,UNITED KINGDOM ATOMIC ENERGY AUTHORITY,05/02/2013,MATERIALS & SPARES,FUSION,DURBIN METAL INDUSTRIES LTD,5100284511,192.33,,
UNITED KINGDOM ATOMIC ENERGY AUTHORITY,UNITED KINGDOM ATOMIC ENERGY AUTHORITY,05/02/2013,MATERIALS & SPARES,FUSION,DURBIN METAL INDUSTRIES LTD,5100284512,210.75,,
UNITED KINGDOM ATOMIC ENERGY AUTHORITY,UNITED KINGDOM ATOMIC ENERGY AUTHORITY,05/02/2013,PERSONAL PROTECTIVE EQUIPMENT,FUSION,BUCK & HICKMAN LTD,5100284514,56.63,,
UNITED KINGDOM ATOMIC ENERGY AUTHORITY,UNITED KINGDOM ATOMIC ENERGY AUTHORITY,05/02/2013,PERSONAL PROTECTIVE EQUIPMENT,FUSION,BUCK & HICKMAN LTD,5100284515,38.17,,
UNITED KINGDOM ATOMIC ENERGY AUTHORITY,UNITED KINGDOM ATOMIC ENERGY AUTHORITY,28/01/2013,MATERIALS & SPARES,FUSION,BOC,5100284529,125.46,,
UNITED KINGDOM ATOMIC ENERGY AUTHORITY,UNITED KINGDOM ATOMIC ENERGY AUTHORITY,05/02/2013,PLANT & EQUIPMENT,FUSION,PRECISION TOOLS,5100284557,23.01,,
UNITED KINGDOM ATOMIC ENERGY AUTHORITY,UNITED KINGDOM ATOMIC ENERGY AUTHORITY,05/02/2013,MATERIALS & SPARES,FUSION,DURBIN METAL INDUSTRIES LTD,5100284558,55.25,,
UNITED KINGDOM ATOMIC ENERGY AUTHORITY,UNITED KINGDOM ATOMIC ENERGY AUTHORITY,05/02/2013,MATERIALS & SPARES,FUSION,DURBIN METAL INDUSTRIES LTD,5100284560,145.11,,
UNITED KINGDOM ATOMIC ENERGY AUTHORITY,UNITED KINGDOM ATOMIC ENERGY AUTHORITY,05/02/2013,MATERIALS & SPARES,FUSION,DURBIN METAL INDUSTRIES LTD,5100284571,47.37,,
UNITED KINGDOM ATOMIC ENERGY AUTHORITY,UNITED KINGDOM ATOMIC ENERGY AUTHORITY,05/02/2013,MATERIALS & SPARES,FUSION,DURBIN METAL INDUSTRIES LTD,5100284572,33.25,,
UNITED KINGDOM ATOMIC ENERGY AUTHORITY,UNITED KINGDOM ATOMIC ENERGY AUTHORITY,30/01/2013,PERSONAL PROTECTIVE EQUIPMENT,FUSION,ARCO LTD,5100284591,60.4,,
UNITED KINGDOM ATOMIC ENERGY AUTHORITY,UNITED KINGDOM ATOMIC ENERGY AUTHORITY,05/02/2013,MATERIALS & SPARES,FUSION,OERLIKON LEYBOLD VACUUM UK LTD,5100284607,230.85,,
UNITED KINGDOM ATOMIC ENERGY AUTHORITY,UNITED KINGDOM ATOMIC ENERGY AUTHORITY,28/01/2013,PERSONAL PROTECTIVE EQUIPMENT,FUSION,ARCO LTD,5100284669,60.4,,
UNITED KINGDOM ATOMIC ENERGY AUTHORITY,UNITED KINGDOM ATOMIC ENERGY AUTHORITY,05/02/2013,CONSUMABLES,FUSION,CARILLON INDUSTRIAL SERVICES LTD,5100284690,199.28,,
UNITED KINGDOM ATOMIC ENERGY AUTHORITY,UNITED KINGDOM ATOMIC ENERGY AUTHORITY,28/01/2013,MATERIALS & SPARES,FUSION,DURBIN METAL INDUSTRIES LTD,5100284733,30.85,,
UNITED KINGDOM ATOMIC ENERGY AUTHORITY,UNITED KINGDOM ATOMIC ENERGY AUTHORITY,05/02/2013,MATERIALS & SPARES,FUSION,RS COMPONENTS LTD,5100284752,83.43,,
UNITED KINGDOM ATOMIC ENERGY AUTHORITY,UNITED KINGDOM ATOMIC ENERGY AUTHORITY,05/02/2013,MATERIALS & SPARES,FUSION,RS COMPONENTS LTD,5100284769,48.42,,
UNITED KINGDOM ATOMIC ENERGY AUTHORITY,UNITED KINGDOM ATOMIC ENERGY AUTHORITY,05/02/2013,MATERIALS & SPARES,FUSION,RS COMPONENTS LTD,5100284773,13.33,,
UNITED KINGDOM ATOMIC ENERGY AUTHORITY,UNITED KINGDOM ATOMIC ENERGY AUTHORITY,05/02/2013,PLANT SPARES,FUSION,CUTWEL LTD,5100284781,68.41,,
UNITED KINGDOM ATOMIC ENERGY AUTHORITY,UNITED KINGDOM ATOMIC ENERGY AUTHORITY,05/02/2013,PLANT SPARES,FUSION,CUTWEL LTD,5100284782,117.93,,
UNITED KINGDOM ATOMIC ENERGY AUTHORITY,UNITED KINGDOM ATOMIC ENERGY AUTHORITY,05/02/2013,MATERIALS & SPARES,FUSION,METALFAST (A DIVISION OF,5100284798,132,,
UNITED KINGDOM ATOMIC ENERGY AUTHORITY,UNITED KINGDOM ATOMIC ENERGY AUTHORITY,05/02/2013,CONSUMABLES,FUSION,BOXER MACHINE TOOLS SERVICES,5100284799,1342,,
UNITED KINGDOM ATOMIC ENERGY AUTHORITY,UNITED KINGDOM ATOMIC ENERGY AUTHORITY,05/02/2013,PLANT & EQUIPMENT,FUSION,PHS GROUP PLC,5100284805,31.06,,
UNITED KINGDOM ATOMIC ENERGY AUTHORITY,UNITED KINGDOM ATOMIC ENERGY AUTHORITY,05/02/2013,PLANT & EQUIPMENT,FUSION,FISHER SCIENTIFIC UK LTD,5100284806,15.79,,
UNITED KINGDOM ATOMIC ENERGY AUTHORITY,UNITED KINGDOM ATOMIC ENERGY AUTHORITY,05/02/2013,MATERIALS & SPARES,FUSION,SMITHS METAL CENTRES,5100284817,85,,
UNITED KINGDOM ATOMIC ENERGY AUTHORITY,UNITED KINGDOM ATOMIC ENERGY AUTHORITY,05/02/2013,MATERIALS & SPARES,FUSION,METSPIN LTD,5100284831,508.5,,
UNITED KINGDOM ATOMIC ENERGY AUTHORITY,UNITED KINGDOM ATOMIC ENERGY AUTHORITY,05/02/2013,MATERIALS & SPARES,FUSION,DURBIN METAL INDUSTRIES LTD,5100284837,38.5,,
UNITED KINGDOM ATOMIC ENERGY AUTHORITY,UNITED KINGDOM ATOMIC ENERGY AUTHORITY,30/01/2013,PERSONAL PROTECTIVE EQUIPMENT,FUSION,ARCO LTD,5100284854,-60.4,,
UNITED KINGDOM ATOMIC ENERGY AUTHORITY,UNITED KINGDOM ATOMIC ENERGY AUTHORITY,30/01/2013,PERSONAL PROTECTIVE EQUIPMENT,FUSION,ARCO LTD,5100284855,-60.4,,
UNITED KINGDOM ATOMIC ENERGY AUTHORITY,UNITED KINGDOM ATOMIC ENERGY AUTHORITY,05/02/2013,MATERIALS & SPARES,FUSION,SPRINGMASTERS LTD,5100284915,39.2,,
UNITED KINGDOM ATOMIC ENERGY AUTHORITY,UNITED KINGDOM ATOMIC ENERGY AUTHORITY,05/02/2013,MATERIALS & SPARES,FUSION,METALFAST (A DIVISION OF,5100284969,274,,
UNITED KINGDOM ATOMIC ENERGY AUTHORITY,UNITED KINGDOM ATOMIC ENERGY AUTHORITY,05/02/2013,PERSONAL PROTECTIVE EQUIPMENT,FUSION,ARCO LTD,5100284971,60.4,,
UNITED KINGDOM ATOMIC ENERGY AUTHORITY,UNITED KINGDOM ATOMIC ENERGY AUTHORITY,11/02/2013,LAUNDRY,FUSION,CLEAN LINEN SERVICES LTD,5100285012,61.76,,
UNITED KINGDOM ATOMIC ENERGY AUTHORITY,UNITED KINGDOM ATOMIC ENERGY AUTHORITY,11/02/2013,PLANT & EQUIPMENT,FUSION,RENISHAW PLC,5100285014,598,,
UNITED KINGDOM ATOMIC ENERGY AUTHORITY,UNITED KINGDOM ATOMIC ENERGY AUTHORITY,11/02/2013,MATERIALS & SPARES,FUSION,JAC TOOLS LTD,5100285018,42.66,,
UNITED KINGDOM ATOMIC ENERGY AUTHORITY,UNITED KINGDOM ATOMIC ENERGY AUTHORITY,11/02/2013,PLANT & EQUIPMENT,FUSION,GOODFELLOW CAMBRIDGE LTD,5100285022,70.5,,
UNITED KINGDOM ATOMIC ENERGY AUTHORITY,UNITED KINGDOM ATOMIC ENERGY AUTHORITY,11/02/2013,CONSUMABLES,FUSION,CARILLON INDUSTRIAL SERVICES LTD,5100285028,12.87,,
UNITED KINGDOM ATOMIC ENERGY AUTHORITY,UNITED KINGDOM ATOMIC ENERGY AUTHORITY,11/02/2013,CONSUMABLES,FUSION,PRITCHARD SHEET METAL,5100285055,168.1,,
UNITED KINGDOM ATOMIC ENERGY AUTHORITY,UNITED KINGDOM ATOMIC ENERGY AUTHORITY,11/02/2013,PLANT & EQUIPMENT,FUSION,THAMES VALLEY SAW SERVICE LTD,5100285058,45,,
UNITED KINGDOM ATOMIC ENERGY AUTHORITY,UNITED KINGDOM ATOMIC ENERGY AUTHORITY,20/02/2013,PLANT SPARES,FUSION,CUTWEL LTD,5100285128,474.4,,
UNITED KINGDOM ATOMIC ENERGY AUTHORITY,UNITED KINGDOM ATOMIC ENERGY AUTHORITY,13/02/2013,MATERIALS & SPARES,FUSION,PMD (UK) LTD,5100285173,59.9,,
UNITED KINGDOM ATOMIC ENERGY AUTHORITY,UNITED KINGDOM ATOMIC ENERGY AUTHORITY,11/02/2013,PLANT & EQUIPMENT,FUSION,EDWARDS LIMITED,5100285180,70.71,,
UNITED KINGDOM ATOMIC ENERGY AUTHORITY,UNITED KINGDOM ATOMIC ENERGY AUTHORITY,13/02/2013,MATERIALS & SPARES,FUSION,RS COMPONENTS LTD,5100285210,36.1,,
UNITED KINGDOM ATOMIC ENERGY AUTHORITY,UNITED KINGDOM ATOMIC ENERGY AUTHORITY,13/02/2013,MATERIALS & SPARES,FUSION,RS COMPONENTS LTD,5100285217,28.86,,
UNITED KINGDOM ATOMIC ENERGY AUTHORITY,UNITED KINGDOM ATOMIC ENERGY AUTHORITY,11/02/2013,MATERIALS & SPARES,FUSION,RS COMPONENTS LTD,5100285227,56.57,,
UNITED KINGDOM ATOMIC ENERGY AUTHORITY,UNITED KINGDOM ATOMIC ENERGY AUTHORITY,20/02/2013,CONSUMABLES,FUSION,CARILLON INDUSTRIAL SERVICES LTD,5100285242,27.28,,
UNITED KINGDOM ATOMIC ENERGY AUTHORITY,UNITED KINGDOM ATOMIC ENERGY AUTHORITY,13/02/2013,MATERIALS & SPARES,FUSION,DURBIN METAL INDUSTRIES LTD,5100285244,90.72,,
UNITED KINGDOM ATOMIC ENERGY AUTHORITY,UNITED KINGDOM ATOMIC ENERGY AUTHORITY,13/02/2013,MATERIALS & SPARES,FUSION,RS COMPONENTS LTD,5100285255,37.28,,
UNITED KINGDOM ATOMIC ENERGY AUTHORITY,UNITED KINGDOM ATOMIC ENERGY AUTHORITY,13/02/2013,MATERIALS & SPARES,FUSION,TW METALS LTD,5100285262,197,,
UNITED KINGDOM ATOMIC ENERGY AUTHORITY,UNITED KINGDOM ATOMIC ENERGY AUTHORITY,11/02/2013,MATERIALS & SPARES,FUSION,DURBIN METAL INDUSTRIES LTD,5100285265,7.5,,
UNITED KINGDOM ATOMIC ENERGY AUTHORITY,UNITED KINGDOM ATOMIC ENERGY AUTHORITY,11/02/2013,MATERIALS & SPARES,FUSION,DURBIN METAL INDUSTRIES LTD,5100285266,65.85,,
UNITED KINGDOM ATOMIC ENERGY AUTHORITY,UNITED KINGDOM ATOMIC ENERGY AUTHORITY,11/02/2013,MATERIALS & SPARES,FUSION,DURBIN METAL INDUSTRIES LTD,5100285267,1192,,
UNITED KINGDOM ATOMIC ENERGY AUTHORITY,UNITED KINGDOM ATOMIC ENERGY AUTHORITY,11/02/2013,MATERIALS & SPARES,FUSION,DURBIN METAL INDUSTRIES LTD,5100285268,34.4,,
UNITED KINGDOM ATOMIC ENERGY AUTHORITY,UNITED KINGDOM ATOMIC ENERGY AUTHORITY,13/02/2013,GASES,FUSION,BOC LTD,5100285278,27.3,,
UNITED KINGDOM ATOMIC ENERGY AUTHORITY,UNITED KINGDOM ATOMIC ENERGY AUTHORITY,13/02/2013,GASES,FUSION,BOC LTD,5100285281,129.94,,
UNITED KINGDOM ATOMIC ENERGY AUTHORITY,UNITED KINGDOM ATOMIC ENERGY AUTHORITY,11/02/2013,PROFESSIONAL SERVICES,FUSION,METRO ENGINEERING AND PLATING WORKS,5100285287,495,,
UNITED KINGDOM ATOMIC ENERGY AUTHORITY,UNITED KINGDOM ATOMIC ENERGY AUTHORITY,13/02/2013,PLANT & EQUIPMENT,FUSION,RENISHAW PLC,5100285297,47.71,,
UNITED KINGDOM ATOMIC ENERGY AUTHORITY,UNITED KINGDOM ATOMIC ENERGY AUTHORITY,20/02/2013,PLANT SPARES,FUSION,CUTWEL LTD,5100285336,101.41,,
UNITED KINGDOM ATOMIC ENERGY AUTHORITY,UNITED KINGDOM ATOMIC ENERGY AUTHORITY,18/02/2013,PLANT SPARES,FUSION,BRITE PRECISION,5100285345,76,,
UNITED KINGDOM ATOMIC ENERGY AUTHORITY,UNITED KINGDOM ATOMIC ENERGY AUTHORITY,18/02/2013,PLANT & EQUIPMENT,FUSION,SPANOPTIC LTD,5100285356,1880,,
UNITED KINGDOM ATOMIC ENERGY AUTHORITY,UNITED KINGDOM ATOMIC ENERGY AUTHORITY,18/02/2013,MATERIALS & SPARES,FUSION,DURBIN METAL INDUSTRIES LTD,5100285360,265,,
UNITED KINGDOM ATOMIC ENERGY AUTHORITY,UNITED KINGDOM ATOMIC ENERGY AUTHORITY,18/02/2013,MATERIALS & SPARES,FUSION,DURBIN METAL INDUSTRIES LTD,5100285361,66.85,,
UNITED KINGDOM ATOMIC ENERGY AUTHORITY,UNITED KINGDOM ATOMIC ENERGY AUTHORITY,18/02/2013,MATERIALS & SPARES,FUSION,DURBIN METAL INDUSTRIES LTD,5100285362,164.25,,
UNITED KINGDOM ATOMIC ENERGY AUTHORITY,UNITED KINGDOM ATOMIC ENERGY AUTHORITY,18/02/2013,PERSONAL PROTECTIVE EQUIPMENT,FUSION,ARCO LTD,5100285381,9.12,,
UNITED KINGDOM ATOMIC ENERGY AUTHORITY,UNITED KINGDOM ATOMIC ENERGY AUTHORITY,13/02/2013,MATERIALS & SPARES,FUSION,METSPIN LTD,5100285387,261.5,,
UNITED KINGDOM ATOMIC ENERGY AUTHORITY,UNITED KINGDOM ATOMIC ENERGY AUTHORITY,20/02/2013,PLANT SPARES,FUSION,CUTWEL LTD,5100285403,29.87,,
UNITED KINGDOM ATOMIC ENERGY AUTHORITY,UNITED KINGDOM ATOMIC ENERGY AUTHORITY,20/02/2013,CONSUMABLES,FUSION,ALLEGHENY TECHNOLOGIES LTD,5100285408,171.25,,
UNITED KINGDOM ATOMIC ENERGY AUTHORITY,UNITED KINGDOM ATOMIC ENERGY AUTHORITY,20/02/2013,MATERIALS & SPARES,FUSION,JAC TOOLS LTD,5100285419,134.66,,
UNITED KINGDOM ATOMIC ENERGY AUTHORITY,UNITED KINGDOM ATOMIC ENERGY AUTHORITY,20/02/2013,PLANT & EQUIPMENT,FUSION,GOODFELLOW CAMBRIDGE LTD,5100285427,3740,,
UNITED KINGDOM ATOMIC ENERGY AUTHORITY,UNITED KINGDOM ATOMIC ENERGY AUTHORITY,20/02/2013,MATERIALS & SPARES,FUSION,KURT J LESKER,5100285477,113.85,,
UNITED KINGDOM ATOMIC ENERGY AUTHORITY,UNITED KINGDOM ATOMIC ENERGY AUTHORITY,20/02/2013,MATERIALS & SPARES,FUSION,KURT J LESKER,5100285478,52.25,,
UNITED KINGDOM ATOMIC ENERGY AUTHORITY,UNITED KINGDOM ATOMIC ENERGY AUTHORITY,20/02/2013,MATERIALS & SPARES,FUSION,KURT J LESKER,5100285479,283.5,,
UNITED KINGDOM ATOMIC ENERGY AUTHORITY,UNITED KINGDOM ATOMIC ENERGY AUTHORITY,20/02/2013,PROFESSIONAL SERVICES,FUSION,SPECIALIST WELDING SERVICES,5100285513,208.5,,
UNITED KINGDOM ATOMIC ENERGY AUTHORITY,UNITED KINGDOM ATOMIC ENERGY AUTHORITY,20/02/2013,CONSUMABLES,FUSION,CARILLON INDUSTRIAL SERVICES LTD,5100285518,343.63,,
UNITED KINGDOM ATOMIC ENERGY AUTHORITY,UNITED KINGDOM ATOMIC ENERGY AUTHORITY,20/02/2013,MATERIALS & SPARES,FUSION,OXFORD BOLTS & BEARINGS,5100285537,18.25,,
UNITED KINGDOM ATOMIC ENERGY AUTHORITY,UNITED KINGDOM ATOMIC ENERGY AUTHORITY,20/02/2013,PLANT SPARES,FUSION,CUTWEL LTD,5100285622,-89.08,,
UNITED KINGDOM ATOMIC ENERGY AUTHORITY,UNITED KINGDOM ATOMIC ENERGY AUTHORITY,20/02/2013,CONSUMABLES,FUSION,CARILLON INDUSTRIAL SERVICES LTD,5100285708,-157.44,,
UNITED KINGDOM ATOMIC ENERGY AUTHORITY,UNITED KINGDOM ATOMIC ENERGY AUTHORITY,19/02/2013,MATERIALS & SPARES,FUSION,Waveform (Electroforming) Ltd,1900057743,270.00,,
UNITED KINGDOM ATOMIC ENERGY AUTHORITY,UNITED KINGDOM ATOMIC ENERGY AUTHORITY,19/02/2013,MATERIALS & SPARES,FUSION,Premier Deep Hole Drilling,1900057744,230.60,,
UNITED KINGDOM ATOMIC ENERGY AUTHORITY,UNITED KINGDOM ATOMIC ENERGY AUTHORITY,19/02/2013,MATERIALS & SPARES,FUSION,OEM Automatic Ltd,1900057745,184.99,,
UNITED KINGDOM ATOMIC ENERGY AUTHORITY,UNITED KINGDOM ATOMIC ENERGY AUTHORITY,31/01/2013,MILEAGE ALLOWANCE,FUSION,EMPLOYEE EXPENSES,100675802,12.80,,
UNITED KINGDOM ATOMIC ENERGY AUTHORITY,UNITED KINGDOM ATOMIC ENERGY AUTHORITY,31/01/2013,MILEAGE ALLOWANCE,FUSION,EMPLOYEE EXPENSES,100675805,5.60,,
UNITED KINGDOM ATOMIC ENERGY AUTHORITY,UNITED KINGDOM ATOMIC ENERGY AUTHORITY,31/01/2013,MILEAGE ALLOWANCE,FUSION,EMPLOYEE EXPENSES,100675806,8.80,,
UNITED KINGDOM ATOMIC ENERGY AUTHORITY,UNITED KINGDOM ATOMIC ENERGY AUTHORITY,07/02/2013,MILEAGE ALLOWANCE,FUSION,EMPLOYEE EXPENSES,100675968,16.00,,
UNITED KINGDOM ATOMIC ENERGY AUTHORITY,UNITED KINGDOM ATOMIC ENERGY AUTHORITY,14/02/2013,MILEAGE ALLOWANCE,FUSION,EMPLOYEE EXPENSES,100676048,16.00,,
UNITED KINGDOM ATOMIC ENERGY AUTHORITY,UNITED KINGDOM ATOMIC ENERGY AUTHORITY,21/02/2013,MILEAGE ALLOWANCE,FUSION,EMPLOYEE EXPENSES,100678460,12.80,,
UNITED KINGDOM ATOMIC ENERGY AUTHORITY,UNITED KINGDOM ATOMIC ENERGY AUTHORITY,23/02/2013,MILEAGE ALLOWANCE,FUSION,EMPLOYEE EXPENSES,100678878,48.00,,
UNITED KINGDOM ATOMIC ENERGY AUTHORITY,UNITED KINGDOM ATOMIC ENERGY AUTHORITY,11/02/2013,SITE INFRASTRUCTURE,FUSION,SI PUMPS LTD,5100285200,529,,
UNITED KINGDOM ATOMIC ENERGY AUTHORITY,UNITED KINGDOM ATOMIC ENERGY AUTHORITY,18/02/2013,PLANT & EQUIPMENT,FUSION,EDMUNDSON ELECTRICALS LTD,5100285352,357.1,,
UNITED KINGDOM ATOMIC ENERGY AUTHORITY,UNITED KINGDOM ATOMIC ENERGY AUTHORITY,18/02/2013,MATERIALS & SPARES,FUSION,Wychwood Water Systems Ltd,5100285447,211,,
UNITED KINGDOM ATOMIC ENERGY AUTHORITY,UNITED KINGDOM ATOMIC ENERGY AUTHORITY,31/01/2013,TAXIS,FUSION,EMPLOYEE EXPENSES,100675808,99.82,,
UNITED KINGDOM ATOMIC ENERGY AUTHORITY,UNITED KINGDOM ATOMIC ENERGY AUTHORITY,09/02/2013,TAXIS,FUSION,EMPLOYEE EXPENSES,100676029,55.61,,
UNITED KINGDOM ATOMIC ENERGY AUTHORITY,UNITED KINGDOM ATOMIC ENERGY AUTHORITY,31/01/2013,SUBSISTENCE,FUSION,EMPLOYEE EXPENSES,100675808,144.19,,
UNITED KINGDOM ATOMIC ENERGY AUTHORITY,UNITED KINGDOM ATOMIC ENERGY AUTHORITY,31/01/2013,SUBSISTENCE,FUSION,EMPLOYEE EXPENSES,100675808,2.58,,
UNITED KINGDOM ATOMIC ENERGY AUTHORITY,UNITED KINGDOM ATOMIC ENERGY AUTHORITY,09/02/2013,SUBSISTENCE,FUSION,EMPLOYEE EXPENSES,100676029,184.87,,
UNITED KINGDOM ATOMIC ENERGY AUTHORITY,UNITED KINGDOM ATOMIC ENERGY AUTHORITY,31/01/2013,RAIL TRAVEL,FUSION,EMPLOYEE EXPENSES,100675808,13.82,,
UNITED KINGDOM ATOMIC ENERGY AUTHORITY,UNITED KINGDOM ATOMIC ENERGY AUTHORITY,21/02/2013,RAIL TRAVEL,FUSION,EMPLOYEE EXPENSES,100678472,69.20,,
UNITED KINGDOM ATOMIC ENERGY AUTHORITY,UNITED KINGDOM ATOMIC ENERGY AUTHORITY,21/02/2013,ROAD TRAVEL,FUSION,EMPLOYEE EXPENSES,100678472,4.50,,
UNITED KINGDOM ATOMIC ENERGY AUTHORITY,UNITED KINGDOM ATOMIC ENERGY AUTHORITY,31/01/2013,OTHER EMPLOYEE EXPENSES,FUSION,EMPLOYEE EXPENSES,100675808,6.99,,
UNITED KINGDOM ATOMIC ENERGY AUTHORITY,UNITED KINGDOM ATOMIC ENERGY AUTHORITY,28/01/2013,MATERIALS & SPARES,PROPERTY,KEY INDUSTRIAL EQUIPMENT LTD,5100284037,57.85,,
UNITED KINGDOM ATOMIC ENERGY AUTHORITY,UNITED KINGDOM ATOMIC ENERGY AUTHORITY,28/01/2013,BUILDING REPAIRS,PROPERTY,KNOWLES & SONS (OXFORD) LTD,5100284219,33993.35,,
UNITED KINGDOM ATOMIC ENERGY AUTHORITY,UNITED KINGDOM ATOMIC ENERGY AUTHORITY,28/01/2013,PROFESSIONAL SERVICES,PROPERTY,BARCELLOS LTD,5100284630,400,,
UNITED KINGDOM ATOMIC ENERGY AUTHORITY,UNITED KINGDOM ATOMIC ENERGY AUTHORITY,05/02/2013,SECURITY & EMERGENCY,PROPERTY,RELIANCE SECURITY GROUP PLC,5100284787,99944.23,,
UNITED KINGDOM ATOMIC ENERGY AUTHORITY,UNITED KINGDOM ATOMIC ENERGY AUTHORITY,05/02/2013,SECURITY & EMERGENCY,PROPERTY,RELIANCE SECURITY GROUP PLC,5100284789,1250,,
UNITED KINGDOM ATOMIC ENERGY AUTHORITY,UNITED KINGDOM ATOMIC ENERGY AUTHORITY,11/02/2013,PROFESSIONAL SERVICES,PROPERTY,GLANVILLE CONSULTANTS,5100285050,135.92,,
UNITED KINGDOM ATOMIC ENERGY AUTHORITY,UNITED KINGDOM ATOMIC ENERGY AUTHORITY,13/02/2013,BUILDING REPAIRS,PROPERTY,LORNE STEWART PLC,5100285078,22176.44,,
UNITED KINGDOM ATOMIC ENERGY AUTHORITY,UNITED KINGDOM ATOMIC ENERGY AUTHORITY,13/02/2013,BUILDING REPAIRS,PROPERTY,LORNE STEWART PLC,5100285101,13939.81,,
UNITED KINGDOM ATOMIC ENERGY AUTHORITY,UNITED KINGDOM ATOMIC ENERGY AUTHORITY,18/02/2013,SECURITY & EMERGENCY,PROPERTY,RELIANCE SECURITY GROUP PLC,5100285132,4340,,
UNITED KINGDOM ATOMIC ENERGY AUTHORITY,UNITED KINGDOM ATOMIC ENERGY AUTHORITY,01/02/2013,ADVERTISING STAFF,PROPERTY,UBM Information Ltd,1900057707,350.00,,
UNITED KINGDOM ATOMIC ENERGY AUTHORITY,UNITED KINGDOM ATOMIC ENERGY AUTHORITY,30/01/2013,SECURITY & EMERGENCY,PROPERTY,TRINITY PROTETION SYSTEMS,5100284506,802,,
UNITED KINGDOM ATOMIC ENERGY AUTHORITY,UNITED KINGDOM ATOMIC ENERGY AUTHORITY,13/02/2013,BUILDING REPAIRS,PROPERTY,LORNE STEWART PLC,5100285093,253.08,,
UNITED KINGDOM ATOMIC ENERGY AUTHORITY,UNITED KINGDOM ATOMIC ENERGY AUTHORITY,18/02/2013,SITE SUPPORT SERVICES,PROPERTY,GREEN SCHEME,5100283750,556.31,,
UNITED KINGDOM ATOMIC ENERGY AUTHORITY,UNITED KINGDOM ATOMIC ENERGY AUTHORITY,28/01/2013,BUILDING REPAIRS,PROPERTY,KNOWLES & SONS (OXFORD) LTD,5100284220,3306.38,,
UNITED KINGDOM ATOMIC ENERGY AUTHORITY,UNITED KINGDOM ATOMIC ENERGY AUTHORITY,28/01/2013,SITE SUPPORT SERVICES,PROPERTY,GREEN SCHEME,5100284549,480,,
UNITED KINGDOM ATOMIC ENERGY AUTHORITY,UNITED KINGDOM ATOMIC ENERGY AUTHORITY,05/02/2013,REPAIRS & MAINTENANCE,PROPERTY,BATT CABLES PLC,5100284999,2070,,
UNITED KINGDOM ATOMIC ENERGY AUTHORITY,UNITED KINGDOM ATOMIC ENERGY AUTHORITY,11/02/2013,REPAIRS & MAINTENANCE,PROPERTY,BATT CABLES PLC,5100285000,2783.6,,
UNITED KINGDOM ATOMIC ENERGY AUTHORITY,UNITED KINGDOM ATOMIC ENERGY AUTHORITY,11/02/2013,REPAIRS & MAINTENANCE,PROPERTY,BATT CABLES PLC,5100285001,2179.4,,
UNITED KINGDOM ATOMIC ENERGY AUTHORITY,UNITED KINGDOM ATOMIC ENERGY AUTHORITY,13/02/2013,BUILDING REPAIRS,PROPERTY,LORNE STEWART PLC,5100285079,2372.82,,
UNITED KINGDOM ATOMIC ENERGY AUTHORITY,UNITED KINGDOM ATOMIC ENERGY AUTHORITY,13/02/2013,BUILDING REPAIRS,PROPERTY,LORNE STEWART PLC,5100285100,3721.03,,
UNITED KINGDOM ATOMIC ENERGY AUTHORITY,UNITED KINGDOM ATOMIC ENERGY AUTHORITY,11/02/2013,CLEANING,PROPERTY,OCS CLEANING & SUPPORT SERVICES,5100283439,1200.81,,
UNITED KINGDOM ATOMIC ENERGY AUTHORITY,UNITED KINGDOM ATOMIC ENERGY AUTHORITY,11/02/2013,CLEANING,PROPERTY,OCS CLEANING & SUPPORT SERVICES,5100285115,-123.6,,
UNITED KINGDOM ATOMIC ENERGY AUTHORITY,UNITED KINGDOM ATOMIC ENERGY AUTHORITY,11/02/2013,CLEANING,PROPERTY,OCS CLEANING & SUPPORT SERVICES,5100285116,-1200.81,,
UNITED KINGDOM ATOMIC ENERGY AUTHORITY,UNITED KINGDOM ATOMIC ENERGY AUTHORITY,11/02/2013,CLEANING,PROPERTY,OCS CLEANING & SUPPORT SERVICES,5100285117,27785.25,,
UNITED KINGDOM ATOMIC ENERGY AUTHORITY,UNITED KINGDOM ATOMIC ENERGY AUTHORITY,11/02/2013,CLEANING,PROPERTY,OCS CLEANING & SUPPORT SERVICES,5100285118,930.96,,
UNITED KINGDOM ATOMIC ENERGY AUTHORITY,UNITED KINGDOM ATOMIC ENERGY AUTHORITY,18/02/2013,CLEANING,PROPERTY,OCS CLEANING & SUPPORT SERVICES,5100285431,27785.25,,
UNITED KINGDOM ATOMIC ENERGY AUTHORITY,UNITED KINGDOM ATOMIC ENERGY AUTHORITY,30/01/2013,PROFESSIONAL SERVICES,PROPERTY,GRUNDON WASTE MANAGEMENT LTD,5100284346,296.81,,
UNITED KINGDOM ATOMIC ENERGY AUTHORITY,UNITED KINGDOM ATOMIC ENERGY AUTHORITY,30/01/2013,PROFESSIONAL SERVICES,PROPERTY,GRUNDON WASTE MANAGEMENT LTD,5100284348,642.84,,
UNITED KINGDOM ATOMIC ENERGY AUTHORITY,UNITED KINGDOM ATOMIC ENERGY AUTHORITY,30/01/2013,PROFESSIONAL SERVICES,PROPERTY,GRUNDON WASTE MANAGEMENT LTD,5100284349,544.64,,
UNITED KINGDOM ATOMIC ENERGY AUTHORITY,UNITED KINGDOM ATOMIC ENERGY AUTHORITY,30/01/2013,PROFESSIONAL SERVICES,PROPERTY,GRUNDON WASTE MANAGEMENT LTD,5100284353,136.53,,
UNITED KINGDOM ATOMIC ENERGY AUTHORITY,UNITED KINGDOM ATOMIC ENERGY AUTHORITY,30/01/2013,PROFESSIONAL SERVICES,PROPERTY,GRUNDON WASTE MANAGEMENT LTD,5100284354,131.88,,
UNITED KINGDOM ATOMIC ENERGY AUTHORITY,UNITED KINGDOM ATOMIC ENERGY AUTHORITY,30/01/2013,PROFESSIONAL SERVICES,PROPERTY,GRUNDON WASTE MANAGEMENT LTD,5100284358,32.97,,
UNITED KINGDOM ATOMIC ENERGY AUTHORITY,UNITED KINGDOM ATOMIC ENERGY AUTHORITY,30/01/2013,PROFESSIONAL SERVICES,PROPERTY,GRUNDON WASTE MANAGEMENT LTD,5100284360,32.97,,
UNITED KINGDOM ATOMIC ENERGY AUTHORITY,UNITED KINGDOM ATOMIC ENERGY AUTHORITY,30/01/2013,PROFESSIONAL SERVICES,PROPERTY,GRUNDON WASTE MANAGEMENT LTD,5100284361,65.94,,
UNITED KINGDOM ATOMIC ENERGY AUTHORITY,UNITED KINGDOM ATOMIC ENERGY AUTHORITY,05/02/2013,PRINTING & GRAPHICS,PROPERTY,IDENTILAM PLC,5100284779,1989,,
UNITED KINGDOM ATOMIC ENERGY AUTHORITY,UNITED KINGDOM ATOMIC ENERGY AUTHORITY,05/02/2013,CLEANING,PROPERTY,BIFFA RECYCLING,5100284783,132,,
UNITED KINGDOM ATOMIC ENERGY AUTHORITY,UNITED KINGDOM ATOMIC ENERGY AUTHORITY,05/02/2013,CLEANING,PROPERTY,BIFFA RECYCLING,5100284784,132,,
UNITED KINGDOM ATOMIC ENERGY AUTHORITY,UNITED KINGDOM ATOMIC ENERGY AUTHORITY,30/01/2013,IT EQUIPMENT NON CAPITAL,PROPERTY,THANKQ LIMITED,5100284858,1825,,
UNITED KINGDOM ATOMIC ENERGY AUTHORITY,UNITED KINGDOM ATOMIC ENERGY AUTHORITY,05/02/2013,SECURITY & EMERGENCY,PROPERTY,SHRED-IT,5100284913,190,,
UNITED KINGDOM ATOMIC ENERGY AUTHORITY,UNITED KINGDOM ATOMIC ENERGY AUTHORITY,11/02/2013,SITE SUPPORT SERVICES,PROPERTY,GO PLANT LTD,5100285048,608.5,,
UNITED KINGDOM ATOMIC ENERGY AUTHORITY,UNITED KINGDOM ATOMIC ENERGY AUTHORITY,13/02/2013,BUILDING REPAIRS,PROPERTY,LORNE STEWART PLC,5100285085,361.15,,
UNITED KINGDOM ATOMIC ENERGY AUTHORITY,UNITED KINGDOM ATOMIC ENERGY AUTHORITY,13/02/2013,BUILDING REPAIRS,PROPERTY,LORNE STEWART PLC,5100285091,373.96,,
UNITED KINGDOM ATOMIC ENERGY AUTHORITY,UNITED KINGDOM ATOMIC ENERGY AUTHORITY,18/02/2013,SITE SUPPORT SERVICES,PROPERTY,SCION ESTATES,5100285456,1541.52,,
UNITED KINGDOM ATOMIC ENERGY AUTHORITY,UNITED KINGDOM ATOMIC ENERGY AUTHORITY,18/02/2013,SITE SUPPORT SERVICES,PROPERTY,SCION ESTATES,5100285457,10276.76,,
UNITED KINGDOM ATOMIC ENERGY AUTHORITY,UNITED KINGDOM ATOMIC ENERGY AUTHORITY,30/01/2013,PROFESSIONAL SERVICES,PROPERTY,GRUNDON WASTE MANAGEMENT LTD,5100284362,76.65,,
UNITED KINGDOM ATOMIC ENERGY AUTHORITY,UNITED KINGDOM ATOMIC ENERGY AUTHORITY,28/01/2013,CATERING,PROPERTY,AVENANCE PLC,5100284745,3995.2,,
UNITED KINGDOM ATOMIC ENERGY AUTHORITY,UNITED KINGDOM ATOMIC ENERGY AUTHORITY,28/01/2013,CATERING,PROPERTY,AVENANCE PLC,5100284746,9900.05,,
UNITED KINGDOM ATOMIC ENERGY AUTHORITY,UNITED KINGDOM ATOMIC ENERGY AUTHORITY,28/01/2013,CATERING,PROPERTY,AVENANCE PLC,5100284747,-225.45,,
UNITED KINGDOM ATOMIC ENERGY AUTHORITY,UNITED KINGDOM ATOMIC ENERGY AUTHORITY,05/02/2013,CATERING,PROPERTY,AVENANCE PLC,5100284911,69.66,,
UNITED KINGDOM ATOMIC ENERGY AUTHORITY,UNITED KINGDOM ATOMIC ENERGY AUTHORITY,05/02/2013,CATERING,PROPERTY,AVENANCE PLC,5100284912,599,,
UNITED KINGDOM ATOMIC ENERGY AUTHORITY,UNITED KINGDOM ATOMIC ENERGY AUTHORITY,18/02/2013,GASES,PROPERTY,BOC LTD,5100284976,136.4,,
UNITED KINGDOM ATOMIC ENERGY AUTHORITY,UNITED KINGDOM ATOMIC ENERGY AUTHORITY,18/02/2013,SECURITY & EMERGENCY,PROPERTY,RELIANCE SECURITY GROUP PLC,5100285131,3029.46,,
UNITED KINGDOM ATOMIC ENERGY AUTHORITY,UNITED KINGDOM ATOMIC ENERGY AUTHORITY,18/02/2013,CATERING,PROPERTY,CLEANSING SERVICE GROUP LTD,5100285406,54.6,,
UNITED KINGDOM ATOMIC ENERGY AUTHORITY,UNITED KINGDOM ATOMIC ENERGY AUTHORITY,18/02/2013,CATERING,PROPERTY,CLEANSING SERVICE GROUP LTD,5100285407,74.3,,
UNITED KINGDOM ATOMIC ENERGY AUTHORITY,UNITED KINGDOM ATOMIC ENERGY AUTHORITY,18/02/2013,CATERING,PROPERTY,AVENANCE PLC,5100285455,865.82,,
UNITED KINGDOM ATOMIC ENERGY AUTHORITY,UNITED KINGDOM ATOMIC ENERGY AUTHORITY,18/02/2013,UTILITIES/GAS,PROPERTY,COFELY LTD,5100284881,320.01,,
UNITED KINGDOM ATOMIC ENERGY AUTHORITY,UNITED KINGDOM ATOMIC ENERGY AUTHORITY,05/02/2013,UTILITIES/GAS,PROPERTY,COFELY LTD,5100284964,20044.73,,
UNITED KINGDOM ATOMIC ENERGY AUTHORITY,UNITED KINGDOM ATOMIC ENERGY AUTHORITY,05/02/2013,UTILITIES/GAS,PROPERTY,COFELY LTD,5100284967,26582.5,,
UNITED KINGDOM ATOMIC ENERGY AUTHORITY,UNITED KINGDOM ATOMIC ENERGY AUTHORITY,13/02/2013,UTILITIES/ELECTRICITY,PROPERTY,EDF ENERGY,5100285186,3378.68,,
UNITED KINGDOM ATOMIC ENERGY AUTHORITY,UNITED KINGDOM ATOMIC ENERGY AUTHORITY,13/02/2013,UTILITIES/ELECTRICITY,PROPERTY,EDF ENERGY,5100285187,31336.07,,
UNITED KINGDOM ATOMIC ENERGY AUTHORITY,UNITED KINGDOM ATOMIC ENERGY AUTHORITY,13/02/2013,UTILITIES/ELECTRICITY,PROPERTY,EDF ENERGY,5100285188,-0.39,,
UNITED KINGDOM ATOMIC ENERGY AUTHORITY,UNITED KINGDOM ATOMIC ENERGY AUTHORITY,13/02/2013,UTILITIES/ELECTRICITY,PROPERTY,EDF ENERGY,5100285189,67.75,,
UNITED KINGDOM ATOMIC ENERGY AUTHORITY,UNITED KINGDOM ATOMIC ENERGY AUTHORITY,13/02/2013,UTILITIES/ELECTRICITY,PROPERTY,EDF ENERGY,5100285190,1662.12,,
UNITED KINGDOM ATOMIC ENERGY AUTHORITY,UNITED KINGDOM ATOMIC ENERGY AUTHORITY,13/02/2013,UTILITIES/ELECTRICITY,PROPERTY,EDF ENERGY,5100285191,784.7,,
UNITED KINGDOM ATOMIC ENERGY AUTHORITY,UNITED KINGDOM ATOMIC ENERGY AUTHORITY,13/02/2013,UTILITIES/ELECTRICITY,PROPERTY,EDF ENERGY,5100285192,26019.21,,
UNITED KINGDOM ATOMIC ENERGY AUTHORITY,UNITED KINGDOM ATOMIC ENERGY AUTHORITY,13/02/2013,UTILITIES/ELECTRICITY,PROPERTY,EDF ENERGY,5100285193,515.95,,
UNITED KINGDOM ATOMIC ENERGY AUTHORITY,UNITED KINGDOM ATOMIC ENERGY AUTHORITY,13/02/2013,UTILITIES/ELECTRICITY,PROPERTY,EDF ENERGY,5100285194,25705.23,,
UNITED KINGDOM ATOMIC ENERGY AUTHORITY,UNITED KINGDOM ATOMIC ENERGY AUTHORITY,18/02/2013,UTILITIES/GAS,PROPERTY,COFELY LTD,5100285246,72811.35,,
UNITED KINGDOM ATOMIC ENERGY AUTHORITY,UNITED KINGDOM ATOMIC ENERGY AUTHORITY,18/02/2013,UTILITIES/GAS,PROPERTY,COFELY LTD,5100285248,4620.54,,
UNITED KINGDOM ATOMIC ENERGY AUTHORITY,UNITED KINGDOM ATOMIC ENERGY AUTHORITY,18/02/2013,UTILITIES/ELECTRICITY,PROPERTY,BRITISH GAS BUSINESS,5100285389,270.45,,
UNITED KINGDOM ATOMIC ENERGY AUTHORITY,UNITED KINGDOM ATOMIC ENERGY AUTHORITY,18/02/2013,UTILITIES/ELECTRICITY,PROPERTY,BRITISH GAS BUSINESS,5100285390,126.88,,
UNITED KINGDOM ATOMIC ENERGY AUTHORITY,UNITED KINGDOM ATOMIC ENERGY AUTHORITY,18/02/2013,UTILITIES/ELECTRICITY,PROPERTY,BRITISH GAS BUSINESS,5100285391,918.82,,
UNITED KINGDOM ATOMIC ENERGY AUTHORITY,UNITED KINGDOM ATOMIC ENERGY AUTHORITY,18/02/2013,UTILITIES/ELECTRICITY,PROPERTY,BRITISH GAS BUSINESS,5100285392,176.82,,
UNITED KINGDOM ATOMIC ENERGY AUTHORITY,UNITED KINGDOM ATOMIC ENERGY AUTHORITY,18/02/2013,UTILITIES/ELECTRICITY,PROPERTY,BRITISH GAS BUSINESS,5100285393,68.37,,
UNITED KINGDOM ATOMIC ENERGY AUTHORITY,UNITED KINGDOM ATOMIC ENERGY AUTHORITY,18/02/2013,UTILITIES/ELECTRICITY,PROPERTY,BRITISH GAS BUSINESS,5100285394,536.24,,
UNITED KINGDOM ATOMIC ENERGY AUTHORITY,UNITED KINGDOM ATOMIC ENERGY AUTHORITY,18/02/2013,UTILITIES/ELECTRICITY,PROPERTY,BRITISH GAS BUSINESS,5100285395,1073.2,,
UNITED KINGDOM ATOMIC ENERGY AUTHORITY,UNITED KINGDOM ATOMIC ENERGY AUTHORITY,18/02/2013,UTILITIES/ELECTRICITY,PROPERTY,BRITISH GAS BUSINESS,5100285396,549.47,,
UNITED KINGDOM ATOMIC ENERGY AUTHORITY,UNITED KINGDOM ATOMIC ENERGY AUTHORITY,18/02/2013,UTILITIES/ELECTRICITY,PROPERTY,BRITISH GAS BUSINESS,5100285397,951.13,,
UNITED KINGDOM ATOMIC ENERGY AUTHORITY,UNITED KINGDOM ATOMIC ENERGY AUTHORITY,13/02/2013,UTILITIES/WATER,PROPERTY,THAMES WATER UTILITIES,5100285399,3242.82,,
UNITED KINGDOM ATOMIC ENERGY AUTHORITY,UNITED KINGDOM ATOMIC ENERGY AUTHORITY,13/02/2013,UTILITIES/WATER,PROPERTY,THAMES WATER UTILITIES,5100285400,9576.1,,
UNITED KINGDOM ATOMIC ENERGY AUTHORITY,UNITED KINGDOM ATOMIC ENERGY AUTHORITY,28/01/2013,DESIGN & CONSTRUCTION,PROPERTY,HILLMOORE FIRE PROTECTION LIMITED,5100284652,13172.21,,
UNITED KINGDOM ATOMIC ENERGY AUTHORITY,UNITED KINGDOM ATOMIC ENERGY AUTHORITY,28/01/2013,DESIGN & CONSTRUCTION,PROPERTY,HILLMOORE FIRE PROTECTION LIMITED,5100284653,1676.47,,
UNITED KINGDOM ATOMIC ENERGY AUTHORITY,UNITED KINGDOM ATOMIC ENERGY AUTHORITY,28/01/2013,DESIGN & CONSTRUCTION,PROPERTY,HILLMOORE FIRE PROTECTION LIMITED,5100284655,9100.8,,
UNITED KINGDOM ATOMIC ENERGY AUTHORITY,UNITED KINGDOM ATOMIC ENERGY AUTHORITY,05/02/2013,PROFESSIONAL SERVICES,PROPERTY,MCBAINS COOPER,5100284932,3312,,
UNITED KINGDOM ATOMIC ENERGY AUTHORITY,UNITED KINGDOM ATOMIC ENERGY AUTHORITY,11/02/2013,PLANT & EQUIPMENT,PROPERTY,AALCO LIMITED,5100284995,301.9,,
UNITED KINGDOM ATOMIC ENERGY AUTHORITY,UNITED KINGDOM ATOMIC ENERGY AUTHORITY,13/02/2013,BUILDING REPAIRS,PROPERTY,LORNE STEWART PLC,5100285083,39081.14,,
UNITED KINGDOM ATOMIC ENERGY AUTHORITY,UNITED KINGDOM ATOMIC ENERGY AUTHORITY,13/02/2013,BUILDING REPAIRS,PROPERTY,LORNE STEWART PLC,5100285090,25.21,,
UNITED KINGDOM ATOMIC ENERGY AUTHORITY,UNITED KINGDOM ATOMIC ENERGY AUTHORITY,13/02/2013,BUILDING REPAIRS,PROPERTY,LORNE STEWART PLC,5100285094,1156.48,,
UNITED KINGDOM ATOMIC ENERGY AUTHORITY,UNITED KINGDOM ATOMIC ENERGY AUTHORITY,11/02/2013,PROFESSIONAL SERVICES,PROPERTY,GLANVILLE CONSULTANTS,5100285171,231.23,,
